Workbook

Sheet Dash
C2: CyCost 1.2 | E2: Cyclical Accrual Cost for $100m Infrastructure Project | O2: Global Projects Center | W2: [Beta 1.2 11172016 Public]
W3: ccbf
C4: Budget Cycle
C11: Standard Case
C18: Alternative Case
C25: Deferred Maintenance
J30: 1
C32: Displaced Spending
C39: Countercyclical Borrowing Facility
I44: Standard PV Cost: | J44: =Tech2!J49 -> 1e-07
I45: Alternative PV Cost: | J45: =Tech2!K49 -> 0.01
I46: Difference: | J46: =J44-J45 -> -0.0099999
C47: Value for Money
I48: Standard Realized Rate: | J48: =DebtAccr!J20 -> 0
I49: Alternative Realized Rate: | J49: =DebtCCBF!J20 -> 0
I50: Difference: | J50: =J48-J49 -> 0

Sheet HS
B2: Budget Cycle Heuristic/Stochastic Interface [Demonstration Input Interface]
D28: Selected Value (Years, Rounded): | E28: =Tech3!D34 -> 3
L35: Data Summary
O37: Mean | P37: Stan Dev | Q37: Max | R37: Min | U37: Cycle Start Information
N39: Revenue Change YoY | O39: =Tech3!C6 -> 1.031568627 | P39: =Tech3!D6 -> 0.03354087638 | Q39: =Tech3!E6 -> 1.095 | R39: =Tech3!F6 -> 0.92 | U39: Current Phase: | V39: Uncon
N41: Constrained Cycle Length | O41: =Tech3!C14 -> 2.833333333 | P41: =Tech3!D14 -> 1.067187373 | Q41: =Tech3!E14 -> 4 | R41: =Tech3!F14 -> 1 | U41: Age of Current Phase | V41: 6
N43: Unconstrained Cycle Length | O43: =Tech3!C11 -> 4.857142857 | P43: =Tech3!D11 -> 1.551825784 | Q43: =Tech3!E11 -> 7 | R43: =Tech3!F11 -> 2 | U43: Chance of Phase Change [2016]: | V43: [90%]
N45: Data Sources: | P45: [CAFRs 1965-2015; other]
D53: Selected Value (Years, Rounded): | E53: =Tech3!D29 -> 5

Sheet DebtAccr (hidden)
A1: Standard Capitalization
A4: Timeline | K4: 0 | L4: =K4+1 -> 1 | M4: =L4+1 -> 2 | N4: 3 | O4: 4 | P4: 5 | Q4: 6 | R4: 7 | S4: 8 | T4: 9 | U4: 10 | V4: 11 | W4: 12 | X4: 13 | Y4: 14 | Z4: 15 | AA4: 16 | AB4: 17 | AC4: 18 | AD4: 19 | AE4: 20 | AF4: 21 | AG4: 22 | AH4: 23 | AI4: 24 | AJ4: 25 | AK4: 26 | AL4: 27 | AM4: 28 | AN4: 29 | AO4: 30
A6: Cycle Countdown
A7: Cycle Graphic | K7: =Tech1!K8 -> 0 | L7: =Tech1!L8 -> 0 | M7: =Tech1!M8 -> 0 | N7: =Tech1!N8 -> 0 | O7: =Tech1!O8 -> 0 | P7: =Tech1!P8 -> 0 | Q7: =Tech1!Q8 -> 0 | R7: =Tech1!R8 -> 0 | S7: =Tech1!S8 -> 0 | T7: =Tech1!T8 -> 0 | U7: =Tech1!U8 -> 0 | V7: =Tech1!V8 -> 0 | W7: =Tech1!W8 -> 0 | X7: =Tech1!X8 -> 0 | Y7: =Tech1!Y8 -> 0 | Z7: =Tech1!Z8 -> 0 | AA7: =Tech1!AA8 -> 0 | AB7: =Tech1!AB8 -> 0 | AC7: =Tech1!AC8 -> 0 | AD7: =Tech1!AD8 -> 0 | AE7: =Tech1!AE8 -> 0 | AF7: =Tech1!AF8 -> 0 | AG7: =Tech1!AG8 -> 0 | AH7: =Tech1!AH8 -> 0 | AI7: =Tech1!AI8 -> 0 | AJ7: =Tech1!AJ8 -> 0 | AK7: =Tech1!AK8 -> 0 | AL7: =Tech1!AL8 -> 0 | AM7: =Tech1!AM8 -> 0 | AN7: =Tech1!AN8 -> 0 | AO7: =Tech1!AO8 -> 0
A9: Summary
F10: Tech1 Input | G10: Calcs
A11: Base Debt Balance | L11: =L44 -> 9.666666667e-08 | M11: =M44 -> 9.333333333e-08 | N11: 9e-08 | O11: 8.666666667e-08 | P11: 8.333333333e-08 | Q11: 8e-08 | R11: 7.666666667e-08 | S11: 7.333333333e-08 | T11: 7e-08 | U11: 6.666666667e-08 | V11: 6.333333333e-08 | W11: 6e-08 | X11: 5.666666667e-08 | Y11: 5.333333333e-08 | Z11: 5e-08 | AA11: 4.666666667e-08 | AB11: 4.333333333e-08 | AC11: 4e-08 | AD11: 3.666666667e-08 | AE11: 3.333333333e-08 | AF11: 3e-08 | AG11: 2.666666667e-08 | AH11: 2.333333333e-08 | AI11: 2e-08 | AJ11: 1.666666667e-08 | AK11: 1.333333333e-08 | AL11: 1e-08 | AM11: 6.666666667e-09 | AN11: 3.333333333e-09 | AO11: -1.571643164e-23
A12: Def Main Accrued Principal Balance | L12: =L64 -> 0 | M12: =M64 -> 0 | N12: 0 | O12: 0 | P12: 0 | Q12: 0 | R12: 0 | S12: 0 | T12: 0 | U12: 0 | V12: 0 | W12: 0 | X12: 0 | Y12: 0 | Z12: 0 | AA12: 0 | AB12: 0 | AC12: 0 | AD12: 0 | AE12: 0 | AF12: 0 | AG12: 0 | AH12: 0 | AI12: 0 | AJ12: 0 | AK12: 0 | AL12: 0 | AM12: 0 | AN12: 0 | AO12: 0
A13: Dis Spend Accrued Principal Balance | L13: =L89 -> 0 | M13: =M89 -> 0 | N13: 0 | O13: 0 | P13: 0 | Q13: 0 | R13: 0 | S13: 0 | T13: 0 | U13: 0 | V13: 0 | W13: 0 | X13: 0 | Y13: 0 | Z13: 0 | AA13: 0 | AB13: 0 | AC13: 0 | AD13: 0 | AE13: 0 | AF13: 0 | AG13: 0 | AH13: 0 | AI13: 0 | AJ13: 0 | AK13: 0 | AL13: 0 | AM13: 0 | AN13: 0 | AO13: 0
A15: Def Main Accrued Cost | L15: =L69 -> 0 | M15: =M69 -> 0 | N15: 0 | O15: 0 | P15: 0 | Q15: 0 | R15: 0 | S15: 0 | T15: 0 | U15: 0 | V15: 0 | W15: 0 | X15: 0 | Y15: 0 | Z15: 0 | AA15: 0 | AB15: 0 | AC15: 0 | AD15: 0 | AE15: 0 | AF15: 0 | AG15: 0 | AH15: 0 | AI15: 0 | AJ15: 0 | AK15: 0 | AL15: 0 | AM15: 0 | AN15: 0 | AO15: 0
A16: Dis Spend Accrued Cost | L16: =L94 -> 0 | M16: =M94 -> 0 | N16: 0 | O16: 0 | P16: 0 | Q16: 0 | R16: 0 | S16: 0 | T16: 0 | U16: 0 | V16: 0 | W16: 0 | X16: 0 | Y16: 0 | Z16: 0 | AA16: 0 | AB16: 0 | AC16: 0 | AD16: 0 | AE16: 0 | AF16: 0 | AG16: 0 | AH16: 0 | AI16: 0 | AJ16: 0 | AK16: 0 | AL16: 0 | AM16: 0 | AN16: 0 | AO16: 0
A17: Total Accrued Cost | L17: =L15+L16 -> 0 | M17: =M15+M16 -> 0 | N17: 0 | O17: 0 | P17: 0 | Q17: 0 | R17: 0 | S17: 0 | T17: 0 | U17: 0 | V17: 0 | W17: 0 | X17: 0 | Y17: 0 | Z17: 0 | AA17: 0 | AB17: 0 | AC17: 0 | AD17: 0 | AE17: 0 | AF17: 0 | AG17: 0 | AH17: 0 | AI17: 0 | AJ17: 0 | AK17: 0 | AL17: 0 | AM17: 0 | AN17: 0 | AO17: 0
J18: IRR | K18: NPV
A19: NPV Debt Capitalization Cost (Base Debt Interest + Accrual Cost) | F19: =Tech1!D10 -> 0 | K19: =NPV(F19,DebtAccr!L19:AO19) -> 1e-07 | L19: =L43+(L58+L83)-(L55+L80) -> 3.333333333e-09 | M19: =M43+(M58+M83)-(M55+M80) -> 3.333333333e-09 | N19: 3.333333333e-09 | O19: 3.333333333e-09 | P19: 3.333333333e-09 | Q19: 3.333333333e-09 | R19: 3.333333333e-09 | S19: 3.333333333e-09 | T19: 3.333333333e-09 | U19: 3.333333333e-09 | V19: 3.333333333e-09 | W19: 3.333333333e-09 | X19: 3.333333333e-09 | Y19: 3.333333333e-09 | Z19: 3.333333333e-09 | AA19: 3.333333333e-09 | AB19: 3.333333333e-09 | AC19: 3.333333333e-09 | AD19: 3.333333333e-09 | AE19: 3.333333333e-09 | AF19: 3.333333333e-09 | AG19: 3.333333333e-09 | AH19: 3.333333333e-09 | AI19: 3.333333333e-09 | AJ19: 3.333333333e-09 | AK19: 3.333333333e-09 | AL19: 3.333333333e-09 | AM19: 3.333333333e-09 | AN19: 3.333333333e-09 | AO19: 3.333333333e-09
A20: Realized Financial Cost of Base Debt | F20: Pmt Equivalent: | G20: =(K19/F41)*G43 -> 3.333333333e-09 | J20: =IF(F41>10,IRR(K20:AO20),0) -> 0 | K20: =-F41 -> -1e-07 | L20: =$G$20 -> 3.333333333e-09 | M20: =$G$20 -> 3.333333333e-09 | N20: 3.333333333e-09 | O20: 3.333333333e-09 | P20: 3.333333333e-09 | Q20: 3.333333333e-09 | R20: 3.333333333e-09 | S20: 3.333333333e-09 | T20: 3.333333333e-09 | U20: 3.333333333e-09 | V20: 3.333333333e-09 | W20: 3.333333333e-09 | X20: 3.333333333e-09 | Y20: 3.333333333e-09 | Z20: 3.333333333e-09 | AA20: 3.333333333e-09 | AB20: 3.333333333e-09 | AC20: 3.333333333e-09 | AD20: 3.333333333e-09 | AE20: 3.333333333e-09 | AF20: 3.333333333e-09 | AG20: 3.333333333e-09 | AH20: 3.333333333e-09 | AI20: 3.333333333e-09 | AJ20: 3.333333333e-09 | AK20: 3.333333333e-09 | AL20: 3.333333333e-09 | AM20: 3.333333333e-09 | AN20: 3.333333333e-09 | AO20: 3.333333333e-09
A22: Total Def Main Accrued Balance | F22: =F54 -> 0 | L22: =L59 -> 0 | M22: =M59 -> 0 | N22: 0 | O22: 0 | P22: 0 | Q22: 0 | R22: 0 | S22: 0 | T22: 0 | U22: 0 | V22: 0 | W22: 0 | X22: 0 | Y22: 0 | Z22: 0 | AA22: 0 | AB22: 0 | AC22: 0 | AD22: 0 | AE22: 0 | AF22: 0 | AG22: 0 | AH22: 0 | AI22: 0 | AJ22: 0 | AK22: 0 | AL22: 0 | AM22: 0 | AN22: 0 | AO22: 0
A23: Total Displaced Spending Accrued Balance | F23: =F79 -> 0 | L23: =L84 -> 0 | M23: =M84 -> 0 | N23: 0 | O23: 0 | P23: 0 | Q23: 0 | R23: 0 | S23: 0 | T23: 0 | U23: 0 | V23: 0 | W23: 0 | X23: 0 | Y23: 0 | Z23: 0 | AA23: 0 | AB23: 0 | AC23: 0 | AD23: 0 | AE23: 0 | AF23: 0 | AG23: 0 | AH23: 0 | AI23: 0 | AJ23: 0 | AK23: 0 | AL23: 0 | AM23: 0 | AN23: 0 | AO23: 0
A24: Base Debt Balance | F24: =F42 -> 0 | L24: =L11 -> 9.666666667e-08 | M24: =M11 -> 9.333333333e-08 | N24: 9e-08 | O24: 8.666666667e-08 | P24: 8.333333333e-08 | Q24: 8e-08 | R24: 7.666666667e-08 | S24: 7.333333333e-08 | T24: 7e-08 | U24: 6.666666667e-08 | V24: 6.333333333e-08 | W24: 6e-08 | X24: 5.666666667e-08 | Y24: 5.333333333e-08 | Z24: 5e-08 | AA24: 4.666666667e-08 | AB24: 4.333333333e-08 | AC24: 4e-08 | AD24: 3.666666667e-08 | AE24: 3.333333333e-08 | AF24: 3e-08 | AG24: 2.666666667e-08 | AH24: 2.333333333e-08 | AI24: 2e-08 | AJ24: 1.666666667e-08 | AK24: 1.333333333e-08 | AL24: 1e-08 | AM24: 6.666666667e-09 | AN24: 3.333333333e-09 | AO24: -1.571643164e-23
A25: Total Accrued and Debt Balance | L25: =+SUM(L22:L24) -> 9.666666667e-08 | M25: =+SUM(M22:M24) -> 9.333333333e-08 | N25: 9e-08 | O25: 8.666666667e-08 | P25: 8.333333333e-08 | Q25: 8e-08 | R25: 7.666666667e-08 | S25: 7.333333333e-08 | T25: 7e-08 | U25: 6.666666667e-08 | V25: 6.333333333e-08 | W25: 6e-08 | X25: 5.666666667e-08 | Y25: 5.333333333e-08 | Z25: 5e-08 | AA25: 4.666666667e-08 | AB25: 4.333333333e-08 | AC25: 4e-08 | AD25: 3.666666667e-08 | AE25: 3.333333333e-08 | AF25: 3e-08 | AG25: 2.666666667e-08 | AH25: 2.333333333e-08 | AI25: 2e-08 | AJ25: 1.666666667e-08 | AK25: 1.333333333e-08 | AL25: 1e-08 | AM25: 6.666666667e-09 | AN25: 3.333333333e-09 | AO25: -1.571643164e-23
A27: Weighted Average Cost of Financing (WACF) | L27: =($F$22*(L22/L25))+($F$23*(L23/L25))+($F$24*(L24/L25)) -> 0 | M27: =($F$22*(M22/M25))+($F$23*(M23/M25))+($F$24*(M24/M25)) -> 0 | N27: 0 | O27: 0 | P27: 0 | Q27: 0 | R27: 0 | S27: 0 | T27: 0 | U27: 0 | V27: 0 | W27: 0 | X27: 0 | Y27: 0 | Z27: 0 | AA27: 0 | AB27: 0 | AC27: 0 | AD27: 0 | AE27: 0 | AF27: 0 | AG27: 0 | AH27: 0 | AI27: 0 | AJ27: 0 | AK27: 0 | AL27: 0 | AM27: 0 | AN27: 0 | AO27: 0
A30: Base Debt Amortization | L30: =L43 -> 3.333333333e-09 | M30: =M43 -> 3.333333333e-09 | N30: 3.333333333e-09 | O30: 3.333333333e-09 | P30: 3.333333333e-09 | Q30: 3.333333333e-09 | R30: 3.333333333e-09 | S30: 3.333333333e-09 | T30: 3.333333333e-09 | U30: 3.333333333e-09 | V30: 3.333333333e-09 | W30: 3.333333333e-09 | X30: 3.333333333e-09 | Y30: 3.333333333e-09 | Z30: 3.333333333e-09 | AA30: 3.333333333e-09 | AB30: 3.333333333e-09 | AC30: 3.333333333e-09 | AD30: 3.333333333e-09 | AE30: 3.333333333e-09 | AF30: 3.333333333e-09 | AG30: 3.333333333e-09 | AH30: 3.333333333e-09 | AI30: 3.333333333e-09 | AJ30: 3.333333333e-09 | AK30: 3.333333333e-09 | AL30: 3.333333333e-09 | AM30: 3.333333333e-09 | AN30: 3.333333333e-09 | AO30: 3.333333333e-09
A31: Operations | L31: =Tech1!$D$13 -> 0 | M31: =Tech1!$D$13 -> 0 | N31: =Tech1!$D$13 -> 0 | O31: =Tech1!$D$13 -> 0 | P31: =Tech1!$D$13 -> 0 | Q31: =Tech1!$D$13 -> 0 | R31: =Tech1!$D$13 -> 0 | S31: =Tech1!$D$13 -> 0 | T31: =Tech1!$D$13 -> 0 | U31: =Tech1!$D$13 -> 0 | V31: =Tech1!$D$13 -> 0 | W31: =Tech1!$D$13 -> 0 | X31: =Tech1!$D$13 -> 0 | Y31: =Tech1!$D$13 -> 0 | Z31: =Tech1!$D$13 -> 0 | AA31: =Tech1!$D$13 -> 0 | AB31: =Tech1!$D$13 -> 0 | AC31: =Tech1!$D$13 -> 0 | AD31: =Tech1!$D$13 -> 0 | AE31: =Tech1!$D$13 -> 0 | AF31: =Tech1!$D$13 -> 0 | AG31: =Tech1!$D$13 -> 0 | AH31: =Tech1!$D$13 -> 0 | AI31: =Tech1!$D$13 -> 0 | AJ31: =Tech1!$D$13 -> 0 | AK31: =Tech1!$D$13 -> 0 | AL31: =Tech1!$D$13 -> 0 | AM31: =Tech1!$D$13 -> 0 | AN31: =Tech1!$D$13 -> 0 | AO31: =Tech1!$D$13 -> 0
A32: Maintenance | K32: =SUM(L32:AO32) -> 0 | L32: =(L50-L51)+L63 -> 0 | M32: =(M50-M51)+M63 -> 0 | N32: 0 | O32: 0 | P32: 0 | Q32: 0 | R32: 0 | S32: 0 | T32: 0 | U32: 0 | V32: 0 | W32: 0 | X32: 0 | Y32: 0 | Z32: 0 | AA32: 0 | AB32: 0 | AC32: 0 | AD32: 0 | AE32: 0 | AF32: 0 | AG32: 0 | AH32: 0 | AI32: 0 | AJ32: 0 | AK32: 0 | AL32: 0 | AM32: 0 | AN32: 0 | AO32: 0
A33: Cyclical Cost | K33: =SUM(L33:AO33) -> 0 | L33: =(L83-L80)+L68 -> 0 | M33: =(M83-M80)+M68 -> 0 | N33: 0 | O33: 0 | P33: 0 | Q33: 0 | R33: 0 | S33: 0 | T33: 0 | U33: 0 | V33: 0 | W33: 0 | X33: 0 | Y33: 0 | Z33: 0 | AA33: 0 | AB33: 0 | AC33: 0 | AD33: 0 | AE33: 0 | AF33: 0 | AG33: 0 | AH33: 0 | AI33: 0 | AJ33: 0 | AK33: 0 | AL33: 0 | AM33: 0 | AN33: 0 | AO33: 0
A34: Total Net Cash Flow in Fiscal Context | L34: =SUM(L30:L33) -> 3.333333333e-09 | M34: =SUM(M30:M33) -> 3.333333333e-09 | N34: 3.333333333e-09 | O34: 3.333333333e-09 | P34: 3.333333333e-09 | Q34: 3.333333333e-09 | R34: 3.333333333e-09 | S34: 3.333333333e-09 | T34: 3.333333333e-09 | U34: 3.333333333e-09 | V34: 3.333333333e-09 | W34: 3.333333333e-09 | X34: 3.333333333e-09 | Y34: 3.333333333e-09 | Z34: 3.333333333e-09 | AA34: 3.333333333e-09 | AB34: 3.333333333e-09 | AC34: 3.333333333e-09 | AD34: 3.333333333e-09 | AE34: 3.333333333e-09 | AF34: 3.333333333e-09 | AG34: 3.333333333e-09 | AH34: 3.333333333e-09 | AI34: 3.333333333e-09 | AJ34: 3.333333333e-09 | AK34: 3.333333333e-09 | AL34: 3.333333333e-09 | AM34: 3.333333333e-09 | AN34: 3.333333333e-09 | AO34: 3.333333333e-09
A39: Base Debt
F40: Tech1 Input | G40: Calcs
A41: Balance (Begin) | F41: =Tech1!D7 -> 1e-07 | L41: =F41 -> 1e-07 | M41: =L44 -> 9.666666667e-08 | N41: =M44 -> 9.333333333e-08 | O41: 9e-08 | P41: 8.666666667e-08 | Q41: 8.333333333e-08 | R41: 8e-08 | S41: 7.666666667e-08 | T41: 7.333333333e-08 | U41: 7e-08 | V41: 6.666666667e-08 | W41: 6.333333333e-08 | X41: 6e-08 | Y41: 5.666666667e-08 | Z41: 5.333333333e-08 | AA41: 5e-08 | AB41: 4.666666667e-08 | AC41: 4.333333333e-08 | AD41: 4e-08 | AE41: 3.666666667e-08 | AF41: 3.333333333e-08 | AG41: 3e-08 | AH41: 2.666666667e-08 | AI41: 2.333333333e-08 | AJ41: 2e-08 | AK41: 1.666666667e-08 | AL41: 1.333333333e-08 | AM41: 1e-08 | AN41: 6.666666667e-09 | AO41: 3.333333333e-09
A42: Interest | F42: =Tech1!D10 -> 0 | L42: =L41*$F$42 -> 0 | M42: 0 | N42: 0 | O42: 0 | P42: 0 | Q42: 0 | R42: 0 | S42: 0 | T42: 0 | U42: 0 | V42: 0 | W42: 0 | X42: 0 | Y42: 0 | Z42: 0 | AA42: 0 | AB42: 0 | AC42: 0 | AD42: 0 | AE42: 0 | AF42: 0 | AG42: 0 | AH42: 0 | AI42: 0 | AJ42: 0 | AK42: 0 | AL42: 0 | AM42: 0 | AN42: 0 | AO42: 0
A43: Payment | G43: =-PMT(F42,F45,F41,F43) -> 3.333333333e-09 | L43: =$G$43 -> 3.333333333e-09 | M43: 3.333333333e-09 | N43: 3.333333333e-09 | O43: 3.333333333e-09 | P43: 3.333333333e-09 | Q43: 3.333333333e-09 | R43: 3.333333333e-09 | S43: 3.333333333e-09 | T43: 3.333333333e-09 | U43: 3.333333333e-09 | V43: 3.333333333e-09 | W43: 3.333333333e-09 | X43: 3.333333333e-09 | Y43: 3.333333333e-09 | Z43: 3.333333333e-09 | AA43: 3.333333333e-09 | AB43: 3.333333333e-09 | AC43: 3.333333333e-09 | AD43: 3.333333333e-09 | AE43: 3.333333333e-09 | AF43: 3.333333333e-09 | AG43: 3.333333333e-09 | AH43: 3.333333333e-09 | AI43: 3.333333333e-09 | AJ43: 3.333333333e-09 | AK43: 3.333333333e-09 | AL43: 3.333333333e-09 | AM43: 3.333333333e-09 | AN43: 3.333333333e-09 | AO43: 3.333333333e-09
A44: Balance (End) | F44: =Tech1!D8 -> 0 | L44: =L41+L42-L43 -> 9.666666667e-08 | M44: =M41+M42-M43 -> 9.333333333e-08 | N44: =N41+N42-N43 -> 9e-08 | O44: 8.666666667e-08 | P44: 8.333333333e-08 | Q44: 8e-08 | R44: 7.666666667e-08 | S44: 7.333333333e-08 | T44: 7e-08 | U44: 6.666666667e-08 | V44: 6.333333333e-08 | W44: 6e-08 | X44: 5.666666667e-08 | Y44: 5.333333333e-08 | Z44: 5e-08 | AA44: 4.666666667e-08 | AB44: 4.333333333e-08 | AC44: 4e-08 | AD44: 3.666666667e-08 | AE44: 3.333333333e-08 | AF44: 3e-08 | AG44: 2.666666667e-08 | AH44: 2.333333333e-08 | AI44: 2e-08 | AJ44: 1.666666667e-08 | AK44: 1.333333333e-08 | AL44: 1e-08 | AM44: 6.666666667e-09 | AN44: 3.333333333e-09 | AO44: -1.571643164e-23
A45: Term | F45: =Tech1!D9 -> 30
A48: Deferred Maintenance Accrual
F49: Tech1 Input | G49: Calcs
A50: Annual Maintenance Schedule | F50: =Tech1!D12 -> 0 | L50: =$F$50 -> 0 | M50: =$F$50 -> 0 | N50: 0 | O50: 0 | P50: 0 | Q50: 0 | R50: 0 | S50: 0 | T50: 0 | U50: 0 | V50: 0 | W50: 0 | X50: 0 | Y50: 0 | Z50: 0 | AA50: 0 | AB50: 0 | AC50: 0 | AD50: 0 | AE50: 0 | AF50: 0 | AG50: 0 | AH50: 0 | AI50: 0 | AJ50: 0 | AK50: 0 | AL50: 0 | AM50: 0 | AN50: 0 | AO50: 0
A51: Maintenance Deferred During Constrained Cycle | F51: =Tech1!D23 -> 0 | G51: =F50*F51 -> 0 | L51: =IF(L$7=-1,$G51,0) -> 0 | M51: =IF(M$7=-1,$G51,0) -> 0 | N51: 0 | O51: 0 | P51: 0 | Q51: 0 | R51: 0 | S51: 0 | T51: 0 | U51: 0 | V51: 0 | W51: 0 | X51: 0 | Y51: 0 | Z51: 0 | AA51: 0 | AB51: 0 | AC51: 0 | AD51: 0 | AE51: 0 | AF51: 0 | AG51: 0 | AH51: 0 | AI51: 0 | AJ51: 0 | AK51: 0 | AL51: 0 | AM51: 0 | AN51: 0 | AO51: 0
A53: Deferred Maintenance Balance (Begin) | L53: 0 | M53: =L59 -> 0 | N53: =M59 -> 0 | O53: 0 | P53: 0 | Q53: 0 | R53: 0 | S53: 0 | T53: 0 | U53: 0 | V53: 0 | W53: 0 | X53: 0 | Y53: 0 | Z53: 0 | AA53: 0 | AB53: 0 | AC53: 0 | AD53: 0 | AE53: 0 | AF53: 0 | AG53: 0 | AH53: 0 | AI53: 0 | AJ53: 0 | AK53: 0 | AL53: 0 | AM53: 0 | AN53: 0 | AO53: 0
A54: Def Main Accrual Cost | F54: =Tech1!D24 -> 0 | L54: =L53*$F54 -> 0 | M54: =M53*$F54 -> 0 | N54: =N53*$F54 -> 0 | O54: =O53*$F54 -> 0 | P54: =P53*$F54 -> 0 | Q54: =Q53*$F54 -> 0 | R54: =R53*$F54 -> 0 | S54: =S53*$F54 -> 0 | T54: =T53*$F54 -> 0 | U54: =U53*$F54 -> 0 | V54: =V53*$F54 -> 0 | W54: =W53*$F54 -> 0 | X54: =X53*$F54 -> 0 | Y54: =Y53*$F54 -> 0 | Z54: =Z53*$F54 -> 0 | AA54: =AA53*$F54 -> 0 | AB54: =AB53*$F54 -> 0 | AC54: =AC53*$F54 -> 0 | AD54: =AD53*$F54 -> 0 | AE54: =AE53*$F54 -> 0 | AF54: =AF53*$F54 -> 0 | AG54: =AG53*$F54 -> 0 | AH54: =AH53*$F54 -> 0 | AI54: =AI53*$F54 -> 0 | AJ54: =AJ53*$F54 -> 0 | AK54: =AK53*$F54 -> 0 | AL54: =AL53*$F54 -> 0 | AM54: =AM53*$F54 -> 0 | AN54: =AN53*$F54 -> 0 | AO54: =AO53*$F54 -> 0
A55: Annual Def Main | L55: =L51 -> 0 | M55: =M51 -> 0 | N55: =N51 -> 0 | O55: 0 | P55: 0 | Q55: 0 | R55: 0 | S55: 0 | T55: 0 | U55: 0 | V55: 0 | W55: 0 | X55: 0 | Y55: 0 | Z55: 0 | AA55: 0 | AB55: 0 | AC55: 0 | AD55: 0 | AE55: 0 | AF55: 0 | AG55: 0 | AH55: 0 | AI55: 0 | AJ55: 0 | AK55: 0 | AL55: 0 | AM55: 0 | AN55: 0 | AO55: 0
A56: Remediation During Unconstrained Cycle | F56: =Tech1!D25 -> 1
A57: Remediation Amortization Period | F57: =Tech1!$D$20 -> 5
A58: Remediation Payments | L58: =IF(L$7=1,MAX(-PMT($F54,$F57,L53)*$F56,K58),0) -> 0 | M58: 0 | N58: 0 | O58: 0 | P58: 0 | Q58: 0 | R58: 0 | S58: 0 | T58: 0 | U58: 0 | V58: 0 | W58: 0 | X58: 0 | Y58: 0 | Z58: 0 | AA58: 0 | AB58: 0 | AC58: 0 | AD58: 0 | AE58: 0 | AF58: 0 | AG58: 0 | AH58: 0 | AI58: 0 | AJ58: 0 | AK58: 0 | AL58: 0 | AM58: 0 | AN58: 0 | AO58: =AO53+AO54+AO55 -> 0
A59: Deferred Maintenance Balance (End) | L59: =L53+L54+L55-L58 -> 0 | M59: 0 | N59: 0 | O59: 0 | P59: 0 | Q59: 0 | R59: 0 | S59: 0 | T59: 0 | U59: 0 | V59: 0 | W59: 0 | X59: 0 | Y59: 0 | Z59: 0 | AA59: 0 | AB59: 0 | AC59: 0 | AD59: 0 | AE59: 0 | AF59: 0 | AG59: 0 | AH59: 0 | AI59: 0 | AJ59: 0 | AK59: 0 | AL59: 0 | AM59: 0 | AN59: 0 | AO59: 0
A61: Accrual Principal Balance (Begin) | L61: =L53 -> 0 | M61: =L64 -> 0 | N61: =M64 -> 0 | O61: 0 | P61: 0 | Q61: 0 | R61: 0 | S61: 0 | T61: 0 | U61: 0 | V61: 0 | W61: 0 | X61: 0 | Y61: 0 | Z61: 0 | AA61: 0 | AB61: 0 | AC61: 0 | AD61: 0 | AE61: 0 | AF61: 0 | AG61: 0 | AH61: 0 | AI61: 0 | AJ61: 0 | AK61: 0 | AL61: 0 | AM61: 0 | AN61: 0 | AO61: 0
A62: Annual Def Main | L62: =L55 -> 0 | M62: =M55 -> 0 | N62: 0 | O62: 0 | P62: 0 | Q62: 0 | R62: 0 | S62: 0 | T62: 0 | U62: 0 | V62: 0 | W62: 0 | X62: 0 | Y62: 0 | Z62: 0 | AA62: 0 | AB62: 0 | AC62: 0 | AD62: 0 | AE62: 0 | AF62: 0 | AG62: 0 | AH62: 0 | AI62: 0 | AJ62: 0 | AK62: 0 | AL62: 0 | AM62: 0 | AN62: 0 | AO62: 0
A63: Remediation Payment Allocation (Principal First) | L63: =MIN(L61+L62,L58) -> 0 | M63: 0 | N63: 0 | O63: 0 | P63: 0 | Q63: 0 | R63: =MIN(R61+R62,R58) -> 0 | S63: =MIN(S61+S62,S58) -> 0 | T63: 0 | U63: 0 | V63: 0 | W63: 0 | X63: 0 | Y63: 0 | Z63: 0 | AA63: 0 | AB63: 0 | AC63: 0 | AD63: 0 | AE63: 0 | AF63: 0 | AG63: 0 | AH63: 0 | AI63: 0 | AJ63: 0 | AK63: 0 | AL63: 0 | AM63: 0 | AN63: 0 | AO63: 0
A64: Accrual Principal Balance (End) | L64: =L61+L62-L63 -> 0 | M64: =M61+M62-M63 -> 0 | N64: 0 | O64: 0 | P64: 0 | Q64: 0 | R64: 0 | S64: 0 | T64: 0 | U64: 0 | V64: 0 | W64: 0 | X64: 0 | Y64: 0 | Z64: 0 | AA64: 0 | AB64: 0 | AC64: 0 | AD64: 0 | AE64: 0 | AF64: 0 | AG64: 0 | AH64: 0 | AI64: 0 | AJ64: 0 | AK64: 0 | AL64: 0 | AM64: 0 | AN64: 0 | AO64: 0
A66: Accrual Cost Balance (Begin) | L66: 0 | M66: =L69 -> 0 | N66: =M69 -> 0 | O66: 0 | P66: 0 | Q66: 0 | R66: 0 | S66: 0 | T66: 0 | U66: 0 | V66: 0 | W66: 0 | X66: 0 | Y66: 0 | Z66: 0 | AA66: 0 | AB66: 0 | AC66: 0 | AD66: 0 | AE66: 0 | AF66: 0 | AG66: 0 | AH66: 0 | AI66: 0 | AJ66: 0 | AK66: 0 | AL66: 0 | AM66: 0 | AN66: 0 | AO66: 0
A67: Def Main Accrual Cost | L67: =L54 -> 0 | M67: =M54 -> 0 | N67: =N54 -> 0 | O67: 0 | P67: 0 | Q67: 0 | R67: 0 | S67: 0 | T67: 0 | U67: 0 | V67: 0 | W67: 0 | X67: 0 | Y67: 0 | Z67: 0 | AA67: 0 | AB67: 0 | AC67: 0 | AD67: 0 | AE67: 0 | AF67: 0 | AG67: 0 | AH67: 0 | AI67: 0 | AJ67: 0 | AK67: 0 | AL67: 0 | AM67: 0 | AN67: 0 | AO67: 0
A68: Remediation Payment Allocation (Cost Last) | L68: =L58-L63 -> 0 | M68: =M58-M63 -> 0 | N68: =N58-N63 -> 0 | O68: 0 | P68: 0 | Q68: 0 | R68: 0 | S68: 0 | T68: 0 | U68: 0 | V68: 0 | W68: 0 | X68: 0 | Y68: 0 | Z68: 0 | AA68: 0 | AB68: 0 | AC68: 0 | AD68: 0 | AE68: 0 | AF68: 0 | AG68: 0 | AH68: 0 | AI68: 0 | AJ68: 0 | AK68: 0 | AL68: 0 | AM68: 0 | AN68: 0 | AO68: 0
A69: Accrual Cost Balance (End) | L69: =L66+L67-L68 -> 0 | M69: =M66+M67-M68 -> 0 | N69: 0 | O69: 0 | P69: 0 | Q69: 0 | R69: 0 | S69: 0 | T69: 0 | U69: 0 | V69: 0 | W69: 0 | X69: 0 | Y69: 0 | Z69: 0 | AA69: 0 | AB69: 0 | AC69: 0 | AD69: 0 | AE69: 0 | AF69: 0 | AG69: 0 | AH69: 0 | AI69: 0 | AJ69: 0 | AK69: 0 | AL69: 0 | AM69: 0 | AN69: 0 | AO69: 0
A72: Displaced Spending Accrual
F73: Tech1 Input | G73: Calcs
A74: Annual Mandatory Project Spending (Ops + DS) | F74: =Tech1!$D$13 -> 0 | G74: =F74+$G$43 -> 3.333333333e-09 | L74: =$F74+L$43 -> 3.333333333e-09 | M74: =$F74+M$43 -> 3.333333333e-09 | N74: 3.333333333e-09 | O74: 3.333333333e-09 | P74: 3.333333333e-09 | Q74: 3.333333333e-09 | R74: 3.333333333e-09 | S74: 3.333333333e-09 | T74: 3.333333333e-09 | U74: 3.333333333e-09 | V74: 3.333333333e-09 | W74: 3.333333333e-09 | X74: 3.333333333e-09 | Y74: 3.333333333e-09 | Z74: 3.333333333e-09 | AA74: 3.333333333e-09 | AB74: 3.333333333e-09 | AC74: 3.333333333e-09 | AD74: 3.333333333e-09 | AE74: 3.333333333e-09 | AF74: 3.333333333e-09 | AG74: 3.333333333e-09 | AH74: 3.333333333e-09 | AI74: 3.333333333e-09 | AJ74: 3.333333333e-09 | AK74: 3.333333333e-09 | AL74: 3.333333333e-09 | AM74: 3.333333333e-09 | AN74: 3.333333333e-09 | AO74: 3.333333333e-09
A75: Non-Deferred Maintenance | L75: =L50-L51 -> 0 | M75: =M50-M51 -> 0 | N75: 0 | O75: 0 | P75: 0 | Q75: 0 | R75: 0 | S75: 0 | T75: 0 | U75: 0 | V75: 0 | W75: 0 | X75: 0 | Y75: 0 | Z75: 0 | AA75: 0 | AB75: 0 | AC75: 0 | AD75: 0 | AE75: 0 | AF75: 0 | AG75: 0 | AH75: 0 | AI75: 0 | AJ75: 0 | AK75: 0 | AL75: 0 | AM75: 0 | AN75: 0 | AO75: 0
A76: Other Spending Displaced Constrained Cycle | F76: =Tech1!$D$27 -> 0 | G76: =(G74+(F50-G51))*F76 -> 0 | L76: =IF(L$7=-1,(L74+L75)*$F$76,0) -> 0 | M76: 0 | N76: 0 | O76: 0 | P76: 0 | Q76: 0 | R76: 0 | S76: 0 | T76: 0 | U76: 0 | V76: 0 | W76: 0 | X76: 0 | Y76: 0 | Z76: 0 | AA76: 0 | AB76: 0 | AC76: 0 | AD76: 0 | AE76: 0 | AF76: 0 | AG76: 0 | AH76: 0 | AI76: 0 | AJ76: 0 | AK76: 0 | AL76: 0 | AM76: 0 | AN76: 0 | AO76: 0
A78: Displaced Spending Balance (Begin) | L78: 0 | M78: =L84 -> 0 | N78: =M84 -> 0 | O78: 0 | P78: 0 | Q78: 0 | R78: 0 | S78: 0 | T78: 0 | U78: 0 | V78: 0 | W78: 0 | X78: 0 | Y78: 0 | Z78: 0 | AA78: 0 | AB78: 0 | AC78: 0 | AD78: 0 | AE78: 0 | AF78: 0 | AG78: 0 | AH78: 0 | AI78: 0 | AJ78: 0 | AK78: 0 | AL78: 0 | AM78: 0 | AN78: 0 | AO78: 0
A79: Displaced Spending Accrual Cost | F79: =Tech1!$D$35 -> 0 | L79: =L78*$F79 -> 0 | M79: =M78*$F79 -> 0 | N79: =N78*$F79 -> 0 | O79: =O78*$F79 -> 0 | P79: =P78*$F79 -> 0 | Q79: =Q78*$F79 -> 0 | R79: =R78*$F79 -> 0 | S79: =S78*$F79 -> 0 | T79: =T78*$F79 -> 0 | U79: =U78*$F79 -> 0 | V79: =V78*$F79 -> 0 | W79: =W78*$F79 -> 0 | X79: =X78*$F79 -> 0 | Y79: =Y78*$F79 -> 0 | Z79: =Z78*$F79 -> 0 | AA79: =AA78*$F79 -> 0 | AB79: =AB78*$F79 -> 0 | AC79: =AC78*$F79 -> 0 | AD79: =AD78*$F79 -> 0 | AE79: =AE78*$F79 -> 0 | AF79: =AF78*$F79 -> 0 | AG79: =AG78*$F79 -> 0 | AH79: =AH78*$F79 -> 0 | AI79: =AI78*$F79 -> 0 | AJ79: =AJ78*$F79 -> 0 | AK79: =AK78*$F79 -> 0 | AL79: =AL78*$F79 -> 0 | AM79: =AM78*$F79 -> 0 | AN79: =AN78*$F79 -> 0 | AO79: =AO78*$F79 -> 0
A80: Annual Displaced Spending | L80: =L76 -> 0 | M80: =M76 -> 0 | N80: 0 | O80: 0 | P80: 0 | Q80: 0 | R80: 0 | S80: 0 | T80: 0 | U80: 0 | V80: 0 | W80: 0 | X80: 0 | Y80: 0 | Z80: 0 | AA80: 0 | AB80: 0 | AC80: 0 | AD80: 0 | AE80: 0 | AF80: 0 | AG80: 0 | AH80: 0 | AI80: 0 | AJ80: 0 | AK80: 0 | AL80: 0 | AM80: 0 | AN80: 0 | AO80: 0
A81: Remediation During Unconstrained Cycle | F81: =Tech1!$D$28 -> 1
A82: Remediation Amortization Period | F82: =Tech1!$D$20 -> 5
A83: Remediation Payments | L83: =IF(L$7=1,MAX(-PMT($F79,$F82,L78)*$F81,K83),0) -> 0 | M83: 0 | N83: 0 | O83: 0 | P83: 0 | Q83: 0 | R83: 0 | S83: 0 | T83: 0 | U83: 0 | V83: 0 | W83: 0 | X83: 0 | Y83: 0 | Z83: 0 | AA83: 0 | AB83: 0 | AC83: 0 | AD83: 0 | AE83: 0 | AF83: 0 | AG83: 0 | AH83: 0 | AI83: 0 | AJ83: 0 | AK83: 0 | AL83: 0 | AM83: 0 | AN83: 0 | AO83: =AO78+AO79+AO80 -> 0
A84: Displaced Spending Balance (End) | L84: =L78+L79+L80-L83 -> 0 | M84: 0 | N84: 0 | O84: 0 | P84: 0 | Q84: 0 | R84: 0 | S84: 0 | T84: 0 | U84: 0 | V84: 0 | W84: 0 | X84: 0 | Y84: 0 | Z84: 0 | AA84: 0 | AB84: 0 | AC84: 0 | AD84: 0 | AE84: 0 | AF84: 0 | AG84: 0 | AH84: 0 | AI84: 0 | AJ84: 0 | AK84: 0 | AL84: 0 | AM84: 0 | AN84: 0 | AO84: 0
A86: Accrual Principal Balance (Begin) | L86: =L78 -> 0 | M86: =L89 -> 0 | N86: =M89 -> 0 | O86: 0 | P86: 0 | Q86: 0 | R86: 0 | S86: 0 | T86: 0 | U86: 0 | V86: 0 | W86: 0 | X86: 0 | Y86: 0 | Z86: 0 | AA86: 0 | AB86: 0 | AC86: 0 | AD86: 0 | AE86: 0 | AF86: 0 | AG86: 0 | AH86: 0 | AI86: 0 | AJ86: 0 | AK86: 0 | AL86: 0 | AM86: 0 | AN86: 0 | AO86: 0
A87: Annual Displaced Spending | L87: =L80 -> 0 | M87: =M80 -> 0 | N87: 0 | O87: 0 | P87: 0 | Q87: 0 | R87: 0 | S87: 0 | T87: 0 | U87: 0 | V87: 0 | W87: 0 | X87: 0 | Y87: 0 | Z87: 0 | AA87: 0 | AB87: 0 | AC87: 0 | AD87: 0 | AE87: 0 | AF87: 0 | AG87: 0 | AH87: 0 | AI87: 0 | AJ87: 0 | AK87: 0 | AL87: 0 | AM87: 0 | AN87: 0 | AO87: 0
A88: Remediation Payment Allocation (Principal First) | L88: =MIN(L86+L87,L83) -> 0 | M88: =MIN(M86+M87,M83) -> 0 | N88: =MIN(N86+N87,N83) -> 0 | O88: =MIN(O86+O87,O83) -> 0 | P88: =MIN(P86+P87,P83) -> 0 | Q88: =MIN(Q86+Q87,Q83) -> 0 | R88: =MIN(R86+R87,R83) -> 0 | S88: =MIN(S86+S87,S83) -> 0 | T88: =MIN(T86+T87,T83) -> 0 | U88: =MIN(U86+U87,U83) -> 0 | V88: =MIN(V86+V87,V83) -> 0 | W88: =MIN(W86+W87,W83) -> 0 | X88: =MIN(X86+X87,X83) -> 0 | Y88: =MIN(Y86+Y87,Y83) -> 0 | Z88: =MIN(Z86+Z87,Z83) -> 0 | AA88: =MIN(AA86+AA87,AA83) -> 0 | AB88: =MIN(AB86+AB87,AB83) -> 0 | AC88: =MIN(AC86+AC87,AC83) -> 0 | AD88: =MIN(AD86+AD87,AD83) -> 0 | AE88: =MIN(AE86+AE87,AE83) -> 0 | AF88: =MIN(AF86+AF87,AF83) -> 0 | AG88: =MIN(AG86+AG87,AG83) -> 0 | AH88: =MIN(AH86+AH87,AH83) -> 0 | AI88: =MIN(AI86+AI87,AI83) -> 0 | AJ88: =MIN(AJ86+AJ87,AJ83) -> 0 | AK88: =MIN(AK86+AK87,AK83) -> 0 | AL88: =MIN(AL86+AL87,AL83) -> 0 | AM88: =MIN(AM86+AM87,AM83) -> 0 | AN88: =MIN(AN86+AN87,AN83) -> 0 | AO88: =MIN(AO86+AO87,AO83) -> 0
A89: Accrual Principal Balance (End) | L89: =L86+L87-L88 -> 0 | M89: =M86+M87-M88 -> 0 | N89: 0 | O89: 0 | P89: 0 | Q89: 0 | R89: 0 | S89: 0 | T89: 0 | U89: 0 | V89: 0 | W89: 0 | X89: 0 | Y89: 0 | Z89: 0 | AA89: 0 | AB89: 0 | AC89: 0 | AD89: 0 | AE89: 0 | AF89: 0 | AG89: 0 | AH89: 0 | AI89: 0 | AJ89: 0 | AK89: 0 | AL89: 0 | AM89: 0 | AN89: 0 | AO89: 0
A91: Accrual Cost Balance (Begin) | L91: 0 | M91: =L94 -> 0 | N91: =M94 -> 0 | O91: 0 | P91: 0 | Q91: 0 | R91: 0 | S91: 0 | T91: 0 | U91: 0 | V91: 0 | W91: 0 | X91: 0 | Y91: 0 | Z91: 0 | AA91: 0 | AB91: 0 | AC91: 0 | AD91: 0 | AE91: 0 | AF91: 0 | AG91: 0 | AH91: 0 | AI91: 0 | AJ91: 0 | AK91: 0 | AL91: 0 | AM91: 0 | AN91: 0 | AO91: 0
A92: Annual Displaced Spending Cost | L92: =L79 -> 0 | M92: =M79 -> 0 | N92: =N79 -> 0 | O92: 0 | P92: 0 | Q92: 0 | R92: 0 | S92: 0 | T92: 0 | U92: 0 | V92: 0 | W92: 0 | X92: 0 | Y92: 0 | Z92: 0 | AA92: 0 | AB92: 0 | AC92: 0 | AD92: 0 | AE92: 0 | AF92: 0 | AG92: 0 | AH92: 0 | AI92: 0 | AJ92: 0 | AK92: 0 | AL92: 0 | AM92: 0 | AN92: 0 | AO92: 0
A93: Remediation Payment Allocation (Cost Last) | L93: =L83-L88 -> 0 | M93: =M83-M88 -> 0 | N93: =N83-N88 -> 0 | O93: 0 | P93: 0 | Q93: 0 | R93: 0 | S93: 0 | T93: 0 | U93: 0 | V93: 0 | W93: 0 | X93: 0 | Y93: 0 | Z93: 0 | AA93: 0 | AB93: 0 | AC93: 0 | AD93: 0 | AE93: 0 | AF93: 0 | AG93: 0 | AH93: 0 | AI93: 0 | AJ93: 0 | AK93: 0 | AL93: 0 | AM93: 0 | AN93: 0 | AO93: 0
A94: Accrual Cost Balance (End) | L94: =L91+L92-L93 -> 0 | M94: =M91+M92-M93 -> 0 | N94: 0 | O94: 0 | P94: 0 | Q94: 0 | R94: 0 | S94: 0 | T94: 0 | U94: 0 | V94: 0 | W94: 0 | X94: 0 | Y94: 0 | Z94: 0 | AA94: 0 | AB94: 0 | AC94: 0 | AD94: 0 | AE94: 0 | AF94: 0 | AG94: 0 | AH94: 0 | AI94: 0 | AJ94: 0 | AK94: 0 | AL94: 0 | AM94: 0 | AN94: 0 | AO94: 0

Sheet DebtCCBF (hidden)
A1: Alternative and CCBF Capitalization
A4: Timeline | K4: 0 | L4: =K4+1 -> 1 | M4: =L4+1 -> 2 | N4: 3 | O4: 4 | P4: 5 | Q4: 6 | R4: 7 | S4: 8 | T4: 9 | U4: 10 | V4: 11 | W4: 12 | X4: 13 | Y4: 14 | Z4: 15 | AA4: 16 | AB4: 17 | AC4: 18 | AD4: 19 | AE4: 20 | AF4: 21 | AG4: 22 | AH4: 23 | AI4: 24 | AJ4: 25 | AK4: 26 | AL4: 27 | AM4: 28 | AN4: 29 | AO4: 30
A6: Cycle Countdown
A7: Cycle Graphic | K7: =Tech1!K8 -> 0 | L7: =Tech1!L8 -> 0 | M7: =Tech1!M8 -> 0 | N7: =Tech1!N8 -> 0 | O7: =Tech1!O8 -> 0 | P7: =Tech1!P8 -> 0 | Q7: =Tech1!Q8 -> 0 | R7: =Tech1!R8 -> 0 | S7: =Tech1!S8 -> 0 | T7: =Tech1!T8 -> 0 | U7: =Tech1!U8 -> 0 | V7: =Tech1!V8 -> 0 | W7: =Tech1!W8 -> 0 | X7: =Tech1!X8 -> 0 | Y7: =Tech1!Y8 -> 0 | Z7: =Tech1!Z8 -> 0 | AA7: =Tech1!AA8 -> 0 | AB7: =Tech1!AB8 -> 0 | AC7: =Tech1!AC8 -> 0 | AD7: =Tech1!AD8 -> 0 | AE7: =Tech1!AE8 -> 0 | AF7: =Tech1!AF8 -> 0 | AG7: =Tech1!AG8 -> 0 | AH7: =Tech1!AH8 -> 0 | AI7: =Tech1!AI8 -> 0 | AJ7: =Tech1!AJ8 -> 0 | AK7: =Tech1!AK8 -> 0 | AL7: =Tech1!AL8 -> 0 | AM7: =Tech1!AM8 -> 0 | AN7: =Tech1!AN8 -> 0 | AO7: =Tech1!AO8 -> 0
A9: Summary
F10: Tech2 Input | G10: Calcs
A11: Base Debt2 Balance | L11: =L44 -> 0.009666666667 | M11: =M44 -> 0.009333333333 | N11: 0.009 | O11: 0.008666666667 | P11: 0.008333333333 | Q11: 0.008 | R11: 0.007666666667 | S11: 0.007333333333 | T11: 0.007 | U11: 0.006666666667 | V11: 0.006333333333 | W11: 0.006 | X11: 0.005666666667 | Y11: 0.005333333333 | Z11: 0.005 | AA11: 0.004666666667 | AB11: 0.004333333333 | AC11: 0.004 | AD11: 0.003666666667 | AE11: 0.003333333333 | AF11: 0.003 | AG11: 0.002666666667 | AH11: 0.002333333333 | AI11: 0.002 | AJ11: 0.001666666667 | AK11: 0.001333333333 | AL11: 0.001 | AM11: 0.0006666666667 | AN11: 0.0003333333333 | AO11: 4.662069342e-18
A12: CCBF Principal Balance | L12: =L64 -> 0 | M12: =M64 -> 0 | N12: 0 | O12: 0 | P12: 0 | Q12: 0 | R12: 0 | S12: 0 | T12: 0 | U12: 0 | V12: 0 | W12: 0 | X12: 0 | Y12: 0 | Z12: 0 | AA12: 0 | AB12: 0 | AC12: 0 | AD12: 0 | AE12: 0 | AF12: 0 | AG12: 0 | AH12: 0 | AI12: 0 | AJ12: 0 | AK12: 0 | AL12: 0 | AM12: 0 | AN12: 0 | AO12: 0
A13: Dis Spend Accrued Principal Balance | L13: =L89 -> 0 | M13: =M89 -> 0 | N13: 0 | O13: 0 | P13: 0 | Q13: 0 | R13: 0 | S13: 0 | T13: 0 | U13: 0 | V13: 0 | W13: 0 | X13: 0 | Y13: 0 | Z13: 0 | AA13: 0 | AB13: 0 | AC13: 0 | AD13: 0 | AE13: 0 | AF13: 0 | AG13: 0 | AH13: 0 | AI13: 0 | AJ13: 0 | AK13: 0 | AL13: 0 | AM13: 0 | AN13: 0 | AO13: 0
A15: CCBF Accrued Cost | L15: =L69 -> 0 | M15: =M69 -> 0 | N15: 0 | O15: 0 | P15: 0 | Q15: 0 | R15: 0 | S15: 0 | T15: 0 | U15: 0 | V15: 0 | W15: 0 | X15: 0 | Y15: 0 | Z15: 0 | AA15: 0 | AB15: 0 | AC15: 0 | AD15: 0 | AE15: 0 | AF15: 0 | AG15: 0 | AH15: 0 | AI15: 0 | AJ15: 0 | AK15: 0 | AL15: 0 | AM15: 0 | AN15: 0 | AO15: 0
A16: Dis Spend Accrued Cost | L16: =L94 -> 0 | M16: =M94 -> 0 | N16: 0 | O16: 0 | P16: 0 | Q16: 0 | R16: 0 | S16: 0 | T16: 0 | U16: 0 | V16: 0 | W16: 0 | X16: 0 | Y16: 0 | Z16: 0 | AA16: 0 | AB16: 0 | AC16: 0 | AD16: 0 | AE16: 0 | AF16: 0 | AG16: 0 | AH16: 0 | AI16: 0 | AJ16: 0 | AK16: 0 | AL16: 0 | AM16: 0 | AN16: 0 | AO16: 0
A17: Total Accrued Cost | L17: =L15+L16 -> 0 | M17: =M15+M16 -> 0 | N17: 0 | O17: 0 | P17: 0 | Q17: 0 | R17: 0 | S17: 0 | T17: 0 | U17: 0 | V17: 0 | W17: 0 | X17: 0 | Y17: 0 | Z17: 0 | AA17: 0 | AB17: 0 | AC17: 0 | AD17: 0 | AE17: 0 | AF17: 0 | AG17: 0 | AH17: 0 | AI17: 0 | AJ17: 0 | AK17: 0 | AL17: 0 | AM17: 0 | AN17: 0 | AO17: 0
J18: IRR | K18: NPV
A19: NPV Debt2 Capitalization Cost (Base Debt2 Interest + Accrual Cost) | K19: =NPV(F24,DebtCCBF!L19:AO19) -> 0.01 | L19: =L43+(L58+L83)-(L55+L80) -> 0.0003333333333 | M19: =M43+(M58+M83)-(M55+M80) -> 0.0003333333333 | N19: 0.0003333333333 | O19: 0.0003333333333 | P19: 0.0003333333333 | Q19: 0.0003333333333 | R19: 0.0003333333333 | S19: 0.0003333333333 | T19: 0.0003333333333 | U19: 0.0003333333333 | V19: 0.0003333333333 | W19: 0.0003333333333 | X19: 0.0003333333333 | Y19: 0.0003333333333 | Z19: 0.0003333333333 | AA19: 0.0003333333333 | AB19: 0.0003333333333 | AC19: 0.0003333333333 | AD19: 0.0003333333333 | AE19: 0.0003333333333 | AF19: 0.0003333333333 | AG19: 0.0003333333333 | AH19: 0.0003333333333 | AI19: 0.0003333333333 | AJ19: 0.0003333333333 | AK19: 0.0003333333333 | AL19: 0.0003333333333 | AM19: 0.0003333333333 | AN19: 0.0003333333333 | AO19: 0.0003333333333
A20: Realized Financial Cost of Base Debt2 | F20: Pmt Equivalent: | G20: =(K19/F41)*G43 -> 0.0003333333333 | J20: =IF(F41>10,IRR(K20:AO20),0) -> 0 | K20: =-F41 -> -0.01 | L20: =$G$20 -> 0.0003333333333 | M20: =$G$20 -> 0.0003333333333 | N20: 0.0003333333333 | O20: 0.0003333333333 | P20: 0.0003333333333 | Q20: 0.0003333333333 | R20: 0.0003333333333 | S20: 0.0003333333333 | T20: 0.0003333333333 | U20: 0.0003333333333 | V20: 0.0003333333333 | W20: 0.0003333333333 | X20: 0.0003333333333 | Y20: 0.0003333333333 | Z20: 0.0003333333333 | AA20: 0.0003333333333 | AB20: 0.0003333333333 | AC20: 0.0003333333333 | AD20: 0.0003333333333 | AE20: 0.0003333333333 | AF20: 0.0003333333333 | AG20: 0.0003333333333 | AH20: 0.0003333333333 | AI20: 0.0003333333333 | AJ20: 0.0003333333333 | AK20: 0.0003333333333 | AL20: 0.0003333333333 | AM20: 0.0003333333333 | AN20: 0.0003333333333 | AO20: 0.0003333333333
A22: Total CCBF Balance | F22: =Tech2!D23 -> 0.0375 | L22: =L59 -> 0 | M22: =M59 -> 0 | N22: 0 | O22: 0 | P22: 0 | Q22: 0 | R22: 0 | S22: 0 | T22: 0 | U22: 0 | V22: 0 | W22: 0 | X22: 0 | Y22: 0 | Z22: 0 | AA22: 0 | AB22: 0 | AC22: 0 | AD22: 0 | AE22: 0 | AF22: 0 | AG22: 0 | AH22: 0 | AI22: 0 | AJ22: 0 | AK22: 0 | AL22: 0 | AM22: 0 | AN22: 0 | AO22: 0
A23: Total Displaced Spending Accrued Balance | F23: =F79 -> 0 | L23: =L84 -> 0 | M23: =M84 -> 0 | N23: 0 | O23: 0 | P23: 0 | Q23: 0 | R23: 0 | S23: 0 | T23: 0 | U23: 0 | V23: 0 | W23: 0 | X23: 0 | Y23: 0 | Z23: 0 | AA23: 0 | AB23: 0 | AC23: 0 | AD23: 0 | AE23: 0 | AF23: 0 | AG23: 0 | AH23: 0 | AI23: 0 | AJ23: 0 | AK23: 0 | AL23: 0 | AM23: 0 | AN23: 0 | AO23: 0
A24: Base Debt2 Balance | F24: =Tech2!D10 -> 0 | L24: =L11 -> 0.009666666667 | M24: =M11 -> 0.009333333333 | N24: 0.009 | O24: 0.008666666667 | P24: 0.008333333333 | Q24: 0.008 | R24: 0.007666666667 | S24: 0.007333333333 | T24: 0.007 | U24: 0.006666666667 | V24: 0.006333333333 | W24: 0.006 | X24: 0.005666666667 | Y24: 0.005333333333 | Z24: 0.005 | AA24: 0.004666666667 | AB24: 0.004333333333 | AC24: 0.004 | AD24: 0.003666666667 | AE24: 0.003333333333 | AF24: 0.003 | AG24: 0.002666666667 | AH24: 0.002333333333 | AI24: 0.002 | AJ24: 0.001666666667 | AK24: 0.001333333333 | AL24: 0.001 | AM24: 0.0006666666667 | AN24: 0.0003333333333 | AO24: 4.662069342e-18
A25: Total Accrued and Debt2 Balance | L25: =+SUM(L22:L24) -> 0.009666666667 | M25: =+SUM(M22:M24) -> 0.009333333333 | N25: 0.009 | O25: 0.008666666667 | P25: 0.008333333333 | Q25: 0.008 | R25: 0.007666666667 | S25: 0.007333333333 | T25: 0.007 | U25: 0.006666666667 | V25: 0.006333333333 | W25: 0.006 | X25: 0.005666666667 | Y25: 0.005333333333 | Z25: 0.005 | AA25: 0.004666666667 | AB25: 0.004333333333 | AC25: 0.004 | AD25: 0.003666666667 | AE25: 0.003333333333 | AF25: 0.003 | AG25: 0.002666666667 | AH25: 0.002333333333 | AI25: 0.002 | AJ25: 0.001666666667 | AK25: 0.001333333333 | AL25: 0.001 | AM25: 0.0006666666667 | AN25: 0.0003333333333 | AO25: 4.662069342e-18
A27: Weighted Average Cost of Financing (WACF) | L27: =($F$22*(L22/L25))+($F$23*(L23/L25))+($F$24*(L24/L25)) -> 0 | M27: =($F$22*(M22/M25))+($F$23*(M23/M25))+($F$24*(M24/M25)) -> 0 | N27: 0 | O27: 0 | P27: 0 | Q27: 0 | R27: 0 | S27: 0 | T27: 0 | U27: 0 | V27: 0 | W27: 0 | X27: 0 | Y27: 0 | Z27: 0 | AA27: 0 | AB27: 0 | AC27: 0 | AD27: 0 | AE27: 0 | AF27: 0 | AG27: 0 | AH27: 0 | AI27: 0 | AJ27: 0 | AK27: 0 | AL27: 0 | AM27: 0 | AN27: 0 | AO27: 0
A30: Base Debt2 Amortization | L30: =$G$43 -> 0.0003333333333 | M30: =$G$43 -> 0.0003333333333 | N30: 0.0003333333333 | O30: 0.0003333333333 | P30: 0.0003333333333 | Q30: 0.0003333333333 | R30: 0.0003333333333 | S30: 0.0003333333333 | T30: 0.0003333333333 | U30: 0.0003333333333 | V30: 0.0003333333333 | W30: 0.0003333333333 | X30: 0.0003333333333 | Y30: 0.0003333333333 | Z30: 0.0003333333333 | AA30: 0.0003333333333 | AB30: 0.0003333333333 | AC30: 0.0003333333333 | AD30: 0.0003333333333 | AE30: 0.0003333333333 | AF30: 0.0003333333333 | AG30: 0.0003333333333 | AH30: 0.0003333333333 | AI30: 0.0003333333333 | AJ30: 0.0003333333333 | AK30: 0.0003333333333 | AL30: 0.0003333333333 | AM30: 0.0003333333333 | AN30: 0.0003333333333 | AO30: 0.0003333333333
A31: Operations | L31: =Tech2!$D$13 -> 0 | M31: =Tech2!$D$13 -> 0 | N31: =Tech2!$D$13 -> 0 | O31: =Tech2!$D$13 -> 0 | P31: =Tech2!$D$13 -> 0 | Q31: =Tech2!$D$13 -> 0 | R31: =Tech2!$D$13 -> 0 | S31: =Tech2!$D$13 -> 0 | T31: =Tech2!$D$13 -> 0 | U31: =Tech2!$D$13 -> 0 | V31: =Tech2!$D$13 -> 0 | W31: =Tech2!$D$13 -> 0 | X31: =Tech2!$D$13 -> 0 | Y31: =Tech2!$D$13 -> 0 | Z31: =Tech2!$D$13 -> 0 | AA31: =Tech2!$D$13 -> 0 | AB31: =Tech2!$D$13 -> 0 | AC31: =Tech2!$D$13 -> 0 | AD31: =Tech2!$D$13 -> 0 | AE31: =Tech2!$D$13 -> 0 | AF31: =Tech2!$D$13 -> 0 | AG31: =Tech2!$D$13 -> 0 | AH31: =Tech2!$D$13 -> 0 | AI31: =Tech2!$D$13 -> 0 | AJ31: =Tech2!$D$13 -> 0 | AK31: =Tech2!$D$13 -> 0 | AL31: =Tech2!$D$13 -> 0 | AM31: =Tech2!$D$13 -> 0 | AN31: =Tech2!$D$13 -> 0 | AO31: =Tech2!$D$13 -> 0
A32: Maintenance | L32: =Tech2!$D$12 -> 0 | M32: =Tech2!$D$12 -> 0 | N32: =Tech2!$D$12 -> 0 | O32: =Tech2!$D$12 -> 0 | P32: =Tech2!$D$12 -> 0 | Q32: =Tech2!$D$12 -> 0 | R32: =Tech2!$D$12 -> 0 | S32: =Tech2!$D$12 -> 0 | T32: =Tech2!$D$12 -> 0 | U32: =Tech2!$D$12 -> 0 | V32: =Tech2!$D$12 -> 0 | W32: =Tech2!$D$12 -> 0 | X32: =Tech2!$D$12 -> 0 | Y32: =Tech2!$D$12 -> 0 | Z32: =Tech2!$D$12 -> 0 | AA32: =Tech2!$D$12 -> 0 | AB32: =Tech2!$D$12 -> 0 | AC32: =Tech2!$D$12 -> 0 | AD32: =Tech2!$D$12 -> 0 | AE32: =Tech2!$D$12 -> 0 | AF32: =Tech2!$D$12 -> 0 | AG32: =Tech2!$D$12 -> 0 | AH32: =Tech2!$D$12 -> 0 | AI32: =Tech2!$D$12 -> 0 | AJ32: =Tech2!$D$12 -> 0 | AK32: =Tech2!$D$12 -> 0 | AL32: =Tech2!$D$12 -> 0 | AM32: =Tech2!$D$12 -> 0 | AN32: =Tech2!$D$12 -> 0 | AO32: =Tech2!$D$12 -> 0
A33: Displaced Spending | K33: =SUM(L33:AO33) -> 0 | L33: =(L58+L83)-(L55+L80) -> 0 | M33: =(M58+M83)-(M55+M80) -> 0 | N33: 0 | O33: 0 | P33: 0 | Q33: 0 | R33: 0 | S33: 0 | T33: 0 | U33: 0 | V33: 0 | W33: 0 | X33: 0 | Y33: 0 | Z33: 0 | AA33: 0 | AB33: 0 | AC33: 0 | AD33: 0 | AE33: 0 | AF33: 0 | AG33: 0 | AH33: 0 | AI33: 0 | AJ33: 0 | AK33: 0 | AL33: 0 | AM33: 0 | AN33: 0 | AO33: 0
A34: Total Net Cash Flow in Fiscal Context | L34: =SUM(L30:L33) -> 0.0003333333333 | M34: =SUM(M30:M33) -> 0.0003333333333 | N34: 0.0003333333333 | O34: 0.0003333333333 | P34: 0.0003333333333 | Q34: 0.0003333333333 | R34: 0.0003333333333 | S34: 0.0003333333333 | T34: 0.0003333333333 | U34: 0.0003333333333 | V34: 0.0003333333333 | W34: 0.0003333333333 | X34: 0.0003333333333 | Y34: 0.0003333333333 | Z34: 0.0003333333333 | AA34: 0.0003333333333 | AB34: 0.0003333333333 | AC34: 0.0003333333333 | AD34: 0.0003333333333 | AE34: 0.0003333333333 | AF34: 0.0003333333333 | AG34: 0.0003333333333 | AH34: 0.0003333333333 | AI34: 0.0003333333333 | AJ34: 0.0003333333333 | AK34: 0.0003333333333 | AL34: 0.0003333333333 | AM34: 0.0003333333333 | AN34: 0.0003333333333 | AO34: 0.0003333333333
A39: Base Debt
F40: Tech2 Input | G40: Calcs
A41: Balance (Begin) | F41: =Tech2!D7 -> 0.01 | L41: =F41 -> 0.01 | M41: =L44 -> 0.009666666667 | N41: =M44 -> 0.009333333333 | O41: 0.009 | P41: 0.008666666667 | Q41: 0.008333333333 | R41: 0.008 | S41: 0.007666666667 | T41: 0.007333333333 | U41: 0.007 | V41: 0.006666666667 | W41: 0.006333333333 | X41: 0.006 | Y41: 0.005666666667 | Z41: 0.005333333333 | AA41: 0.005 | AB41: 0.004666666667 | AC41: 0.004333333333 | AD41: 0.004 | AE41: 0.003666666667 | AF41: 0.003333333333 | AG41: 0.003 | AH41: 0.002666666667 | AI41: 0.002333333333 | AJ41: 0.002 | AK41: 0.001666666667 | AL41: 0.001333333333 | AM41: 0.001 | AN41: 0.0006666666667 | AO41: 0.0003333333333
A42: Interest | F42: =Tech2!D10 -> 0 | L42: =L41*$F$42 -> 0 | M42: 0 | N42: 0 | O42: 0 | P42: 0 | Q42: 0 | R42: 0 | S42: 0 | T42: 0 | U42: 0 | V42: 0 | W42: 0 | X42: 0 | Y42: 0 | Z42: 0 | AA42: 0 | AB42: 0 | AC42: 0 | AD42: 0 | AE42: 0 | AF42: 0 | AG42: 0 | AH42: 0 | AI42: 0 | AJ42: 0 | AK42: 0 | AL42: 0 | AM42: 0 | AN42: 0 | AO42: 0
A43: Payment | G43: =-PMT(F42,F45,F41,F43) -> 0.0003333333333 | L43: =$G$43 -> 0.0003333333333 | M43: 0.0003333333333 | N43: 0.0003333333333 | O43: 0.0003333333333 | P43: 0.0003333333333 | Q43: 0.0003333333333 | R43: 0.0003333333333 | S43: 0.0003333333333 | T43: 0.0003333333333 | U43: 0.0003333333333 | V43: 0.0003333333333 | W43: 0.0003333333333 | X43: 0.0003333333333 | Y43: 0.0003333333333 | Z43: 0.0003333333333 | AA43: 0.0003333333333 | AB43: 0.0003333333333 | AC43: 0.0003333333333 | AD43: 0.0003333333333 | AE43: 0.0003333333333 | AF43: 0.0003333333333 | AG43: 0.0003333333333 | AH43: 0.0003333333333 | AI43: 0.0003333333333 | AJ43: 0.0003333333333 | AK43: 0.0003333333333 | AL43: 0.0003333333333 | AM43: 0.0003333333333 | AN43: 0.0003333333333 | AO43: 0.0003333333333
A44: Balance (End) | F44: =Tech2!D8 -> 0 | L44: =L41+L42-L43 -> 0.009666666667 | M44: =M41+M42-M43 -> 0.009333333333 | N44: =N41+N42-N43 -> 0.009 | O44: 0.008666666667 | P44: 0.008333333333 | Q44: 0.008 | R44: 0.007666666667 | S44: 0.007333333333 | T44: 0.007 | U44: 0.006666666667 | V44: 0.006333333333 | W44: 0.006 | X44: 0.005666666667 | Y44: 0.005333333333 | Z44: 0.005 | AA44: 0.004666666667 | AB44: 0.004333333333 | AC44: 0.004 | AD44: 0.003666666667 | AE44: 0.003333333333 | AF44: 0.003 | AG44: 0.002666666667 | AH44: 0.002333333333 | AI44: 0.002 | AJ44: 0.001666666667 | AK44: 0.001333333333 | AL44: 0.001 | AM44: 0.0006666666667 | AN44: 0.0003333333333 | AO44: 4.662069342e-18
A45: Term | F45: =Tech2!D9 -> 30
A48: CCBF
F49: Tech2 Input
A50: Potential Deferred or Displacing Annual Project Costs | L50: =DebtAccr!L51+DebtAccr!L76 -> 0 | M50: =DebtAccr!M51+DebtAccr!M76 -> 0 | N50: =DebtAccr!N51+DebtAccr!N76 -> 0 | O50: =DebtAccr!O51+DebtAccr!O76 -> 0 | P50: =DebtAccr!P51+DebtAccr!P76 -> 0 | Q50: =DebtAccr!Q51+DebtAccr!Q76 -> 0 | R50: =DebtAccr!R51+DebtAccr!R76 -> 0 | S50: =DebtAccr!S51+DebtAccr!S76 -> 0 | T50: =DebtAccr!T51+DebtAccr!T76 -> 0 | U50: =DebtAccr!U51+DebtAccr!U76 -> 0 | V50: =DebtAccr!V51+DebtAccr!V76 -> 0 | W50: =DebtAccr!W51+DebtAccr!W76 -> 0 | X50: =DebtAccr!X51+DebtAccr!X76 -> 0 | Y50: =DebtAccr!Y51+DebtAccr!Y76 -> 0 | Z50: =DebtAccr!Z51+DebtAccr!Z76 -> 0 | AA50: =DebtAccr!AA51+DebtAccr!AA76 -> 0 | AB50: =DebtAccr!AB51+DebtAccr!AB76 -> 0 | AC50: =DebtAccr!AC51+DebtAccr!AC76 -> 0 | AD50: =DebtAccr!AD51+DebtAccr!AD76 -> 0 | AE50: =DebtAccr!AE51+DebtAccr!AE76 -> 0 | AF50: =DebtAccr!AF51+DebtAccr!AF76 -> 0 | AG50: =DebtAccr!AG51+DebtAccr!AG76 -> 0 | AH50: =DebtAccr!AH51+DebtAccr!AH76 -> 0 | AI50: =DebtAccr!AI51+DebtAccr!AI76 -> 0 | AJ50: =DebtAccr!AJ51+DebtAccr!AJ76 -> 0 | AK50: =DebtAccr!AK51+DebtAccr!AK76 -> 0 | AL50: =DebtAccr!AL51+DebtAccr!AL76 -> 0 | AM50: =DebtAccr!AM51+DebtAccr!AM76 -> 0 | AN50: =DebtAccr!AN51+DebtAccr!AN76 -> 0 | AO50: =DebtAccr!AO51+DebtAccr!AO76 -> 0
A51: Project Costs Financed by CCBF (up to limit) | E51: Limit: | F51: =Tech2!D24 -> 0 | L51: =IF(L$7=-1,MAX(MIN((DebtAccr!L51+DebtAccr!L76),($F$51-(L53+L54))),0),0) -> 0 | M51: =IF(M$7=-1,MAX(MIN((DebtAccr!M51+DebtAccr!M76),($F$51-(M53+M54))),0),0) -> 0 | N51: =IF(N$7=-1,MAX(MIN((DebtAccr!N51+DebtAccr!N76),($F$51-(N53+N54))),0),0) -> 0 | O51: =IF(O$7=-1,MAX(MIN((DebtAccr!O51+DebtAccr!O76),($F$51-(O53+O54))),0),0) -> 0 | P51: =IF(P$7=-1,MAX(MIN((DebtAccr!P51+DebtAccr!P76),($F$51-(P53+P54))),0),0) -> 0 | Q51: =IF(Q$7=-1,MAX(MIN((DebtAccr!Q51+DebtAccr!Q76),($F$51-(Q53+Q54))),0),0) -> 0 | R51: =IF(R$7=-1,MAX(MIN((DebtAccr!R51+DebtAccr!R76),($F$51-(R53+R54))),0),0) -> 0 | S51: =IF(S$7=-1,MAX(MIN((DebtAccr!S51+DebtAccr!S76),($F$51-(S53+S54))),0),0) -> 0 | T51: =IF(T$7=-1,MAX(MIN((DebtAccr!T51+DebtAccr!T76),($F$51-(T53+T54))),0),0) -> 0 | U51: =IF(U$7=-1,MAX(MIN((DebtAccr!U51+DebtAccr!U76),($F$51-(U53+U54))),0),0) -> 0 | V51: =IF(V$7=-1,MAX(MIN((DebtAccr!V51+DebtAccr!V76),($F$51-(V53+V54))),0),0) -> 0 | W51: =IF(W$7=-1,MAX(MIN((DebtAccr!W51+DebtAccr!W76),($F$51-(W53+W54))),0),0) -> 0 | X51: =IF(X$7=-1,MAX(MIN((DebtAccr!X51+DebtAccr!X76),($F$51-(X53+X54))),0),0) -> 0 | Y51: =IF(Y$7=-1,MAX(MIN((DebtAccr!Y51+DebtAccr!Y76),($F$51-(Y53+Y54))),0),0) -> 0 | Z51: =IF(Z$7=-1,MAX(MIN((DebtAccr!Z51+DebtAccr!Z76),($F$51-(Z53+Z54))),0),0) -> 0 | AA51: =IF(AA$7=-1,MAX(MIN((DebtAccr!AA51+DebtAccr!AA76),($F$51-(AA53+AA54))),0),0) -> 0 | AB51: =IF(AB$7=-1,MAX(MIN((DebtAccr!AB51+DebtAccr!AB76),($F$51-(AB53+AB54))),0),0) -> 0 | AC51: =IF(AC$7=-1,MAX(MIN((DebtAccr!AC51+DebtAccr!AC76),($F$51-(AC53+AC54))),0),0) -> 0 | AD51: =IF(AD$7=-1,MAX(MIN((DebtAccr!AD51+DebtAccr!AD76),($F$51-(AD53+AD54))),0),0) -> 0 | AE51: =IF(AE$7=-1,MAX(MIN((DebtAccr!AE51+DebtAccr!AE76),($F$51-(AE53+AE54))),0),0) -> 0 | AF51: =IF(AF$7=-1,MAX(MIN((DebtAccr!AF51+DebtAccr!AF76),($F$51-(AF53+AF54))),0),0) -> 0 | AG51: =IF(AG$7=-1,MAX(MIN((DebtAccr!AG51+DebtAccr!AG76),($F$51-(AG53+AG54))),0),0) -> 0 | AH51: =IF(AH$7=-1,MAX(MIN((DebtAccr!AH51+DebtAccr!AH76),($F$51-(AH53+AH54))),0),0) -> 0 | AI51: =IF(AI$7=-1,MAX(MIN((DebtAccr!AI51+DebtAccr!AI76),($F$51-(AI53+AI54))),0),0) -> 0 | AJ51: =IF(AJ$7=-1,MAX(MIN((DebtAccr!AJ51+DebtAccr!AJ76),($F$51-(AJ53+AJ54))),0),0) -> 0 | AK51: =IF(AK$7=-1,MAX(MIN((DebtAccr!AK51+DebtAccr!AK76),($F$51-(AK53+AK54))),0),0) -> 0 | AL51: =IF(AL$7=-1,MAX(MIN((DebtAccr!AL51+DebtAccr!AL76),($F$51-(AL53+AL54))),0),0) -> 0 | AM51: =IF(AM$7=-1,MAX(MIN((DebtAccr!AM51+DebtAccr!AM76),($F$51-(AM53+AM54))),0),0) -> 0 | AN51: =IF(AN$7=-1,MAX(MIN((DebtAccr!AN51+DebtAccr!AN76),($F$51-(AN53+AN54))),0),0) -> 0 | AO51: =IF(AO$7=-1,MAX(MIN((DebtAccr!AO51+DebtAccr!AO76),($F$51-(AO53+AO54))),0),0) -> 0
A53: CCBF Balance (Begin) | L53: 0 | M53: =L59 -> 0 | N53: =M59 -> 0 | O53: 0 | P53: 0 | Q53: 0 | R53: 0 | S53: 0 | T53: 0 | U53: 0 | V53: 0 | W53: 0 | X53: 0 | Y53: 0 | Z53: 0 | AA53: 0 | AB53: 0 | AC53: 0 | AD53: 0 | AE53: 0 | AF53: 0 | AG53: 0 | AH53: 0 | AI53: 0 | AJ53: 0 | AK53: 0 | AL53: 0 | AM53: 0 | AN53: 0 | AO53: 0
A54: CCBF Interest Cost | F54: =Tech2!D23 -> 0.0375 | L54: =L53*$F54 -> 0 | M54: =M53*$F54 -> 0 | N54: 0 | O54: 0 | P54: 0 | Q54: 0 | R54: 0 | S54: 0 | T54: 0 | U54: 0 | V54: 0 | W54: 0 | X54: 0 | Y54: 0 | Z54: 0 | AA54: 0 | AB54: 0 | AC54: 0 | AD54: 0 | AE54: 0 | AF54: 0 | AG54: 0 | AH54: 0 | AI54: 0 | AJ54: 0 | AK54: 0 | AL54: 0 | AM54: 0 | AN54: 0 | AO54: 0
A55: Annual Draw | L55: =L51 -> 0 | M55: =M51 -> 0 | N55: 0 | O55: 0 | P55: 0 | Q55: 0 | R55: 0 | S55: 0 | T55: 0 | U55: 0 | V55: 0 | W55: 0 | X55: 0 | Y55: 0 | Z55: 0 | AA55: 0 | AB55: 0 | AC55: 0 | AD55: 0 | AE55: 0 | AF55: 0 | AG55: 0 | AH55: 0 | AI55: 0 | AJ55: 0 | AK55: 0 | AL55: 0 | AM55: 0 | AN55: 0 | AO55: 0
A57: Amortization Period | F57: =Tech2!$D$25 -> 3
A58: Amortization Payments | L58: =ROUND(IF(L$7=1,MAX(-PMT($F54,$F57,L53),K58),0),1) -> 0 | M58: =IF(M$7=1,MAX(-PMT($F54,$F57,M53),L58),0)*IF(ABS(L59)<0.0001,0,1) -> 0 | N58: =IF(N$7=1,MAX(-PMT($F54,$F57,N53),M58),0)*IF(ABS(M59)<0.0001,0,1) -> 0 | O58: 0 | P58: 0 | Q58: 0 | R58: 0 | S58: 0 | T58: 0 | U58: 0 | V58: 0 | W58: 0 | X58: 0 | Y58: 0 | Z58: 0 | AA58: 0 | AB58: 0 | AC58: 0 | AD58: 0 | AE58: 0 | AF58: 0 | AG58: 0 | AH58: 0 | AI58: 0 | AJ58: 0 | AK58: 0 | AL58: 0 | AM58: 0 | AN58: 0 | AO58: =AO53+AO54+AO55 -> 0
A59: CCBF Balance (End) | L59: =((L53+L54+L55-L58)) -> 0 | M59: =((M53+M54+M55-M58)) -> 0 | N59: 0 | O59: 0 | P59: 0 | Q59: 0 | R59: 0 | S59: 0 | T59: 0 | U59: 0 | V59: 0 | W59: 0 | X59: 0 | Y59: 0 | Z59: 0 | AA59: 0 | AB59: 0 | AC59: 0 | AD59: 0 | AE59: 0 | AF59: 0 | AG59: 0 | AH59: 0 | AI59: 0 | AJ59: 0 | AK59: 0 | AL59: 0 | AM59: 0 | AN59: 0 | AO59: 0
A61: CCBF Principal Balance (Begin) | L61: =L53 -> 0 | M61: =L64 -> 0 | N61: =M64 -> 0 | O61: 0 | P61: 0 | Q61: 0 | R61: 0 | S61: 0 | T61: 0 | U61: 0 | V61: 0 | W61: 0 | X61: 0 | Y61: 0 | Z61: 0 | AA61: 0 | AB61: 0 | AC61: 0 | AD61: 0 | AE61: 0 | AF61: 0 | AG61: 0 | AH61: 0 | AI61: 0 | AJ61: 0 | AK61: 0 | AL61: 0 | AM61: 0 | AN61: 0 | AO61: 0
A62: Annual Draw | L62: =L55 -> 0 | M62: =M55 -> 0 | N62: 0 | O62: 0 | P62: 0 | Q62: 0 | R62: 0 | S62: 0 | T62: 0 | U62: 0 | V62: 0 | W62: 0 | X62: 0 | Y62: 0 | Z62: 0 | AA62: 0 | AB62: 0 | AC62: 0 | AD62: 0 | AE62: 0 | AF62: 0 | AG62: 0 | AH62: 0 | AI62: 0 | AJ62: 0 | AK62: 0 | AL62: 0 | AM62: 0 | AN62: 0 | AO62: 0
A63: Amortization Payment Allocation (Principal First) | L63: =MIN(L61+L62,L58) -> 0 | M63: 0 | N63: 0 | O63: 0 | P63: 0 | Q63: 0 | R63: =MIN(R61+R62,R58) -> 0 | S63: =MIN(S61+S62,S58) -> 0 | T63: 0 | U63: 0 | V63: 0 | W63: 0 | X63: 0 | Y63: 0 | Z63: 0 | AA63: 0 | AB63: 0 | AC63: 0 | AD63: 0 | AE63: 0 | AF63: 0 | AG63: 0 | AH63: 0 | AI63: 0 | AJ63: 0 | AK63: 0 | AL63: 0 | AM63: 0 | AN63: 0 | AO63: 0
A64: CCBF Principal Balance (End) | L64: =L61+L62-L63 -> 0 | M64: =M61+M62-M63 -> 0 | N64: 0 | O64: 0 | P64: 0 | Q64: 0 | R64: 0 | S64: 0 | T64: 0 | U64: 0 | V64: 0 | W64: 0 | X64: 0 | Y64: 0 | Z64: 0 | AA64: 0 | AB64: 0 | AC64: 0 | AD64: 0 | AE64: 0 | AF64: 0 | AG64: 0 | AH64: 0 | AI64: 0 | AJ64: 0 | AK64: 0 | AL64: 0 | AM64: 0 | AN64: 0 | AO64: 0
A66: CCBF Interest Cost Balance (Begin) | L66: 0 | M66: =L69 -> 0 | N66: =M69 -> 0 | O66: 0 | P66: 0 | Q66: 0 | R66: 0 | S66: 0 | T66: 0 | U66: 0 | V66: 0 | W66: 0 | X66: 0 | Y66: 0 | Z66: 0 | AA66: 0 | AB66: 0 | AC66: 0 | AD66: 0 | AE66: 0 | AF66: 0 | AG66: 0 | AH66: 0 | AI66: 0 | AJ66: 0 | AK66: 0 | AL66: 0 | AM66: 0 | AN66: 0 | AO66: 0
A67: CCBF Interest Cost | L67: =L54 -> 0 | M67: =M54 -> 0 | N67: =N54 -> 0 | O67: 0 | P67: 0 | Q67: 0 | R67: 0 | S67: 0 | T67: 0 | U67: 0 | V67: 0 | W67: 0 | X67: 0 | Y67: 0 | Z67: 0 | AA67: 0 | AB67: 0 | AC67: 0 | AD67: 0 | AE67: 0 | AF67: 0 | AG67: 0 | AH67: 0 | AI67: 0 | AJ67: 0 | AK67: 0 | AL67: 0 | AM67: 0 | AN67: 0 | AO67: 0
A68: Amortization Payment Allocation (Cost Last) | L68: =L58-L63 -> 0 | M68: =M58-M63 -> 0 | N68: =N58-N63 -> 0 | O68: 0 | P68: 0 | Q68: 0 | R68: 0 | S68: 0 | T68: 0 | U68: 0 | V68: 0 | W68: 0 | X68: 0 | Y68: 0 | Z68: 0 | AA68: 0 | AB68: 0 | AC68: 0 | AD68: 0 | AE68: 0 | AF68: 0 | AG68: 0 | AH68: 0 | AI68: 0 | AJ68: 0 | AK68: 0 | AL68: 0 | AM68: 0 | AN68: 0 | AO68: 0
A69: CCBF Interest Cost Balance (End) | L69: =L66+L67-L68 -> 0 | M69: =M66+M67-M68 -> 0 | N69: 0 | O69: 0 | P69: 0 | Q69: 0 | R69: 0 | S69: 0 | T69: 0 | U69: 0 | V69: 0 | W69: 0 | X69: 0 | Y69: 0 | Z69: 0 | AA69: 0 | AB69: 0 | AC69: 0 | AD69: 0 | AE69: 0 | AF69: 0 | AG69: 0 | AH69: 0 | AI69: 0 | AJ69: 0 | AK69: 0 | AL69: 0 | AM69: 0 | AN69: 0 | AO69: 0
A72: Displaced Spending Accrual (with limited CCBF)
F73: Tech1 Input
A74: Potential Deferred or Displacing Annual Project Costs | L74: =DebtAccr!L51+DebtAccr!L76 -> 0 | M74: =DebtAccr!M51+DebtAccr!M76 -> 0 | N74: =DebtAccr!N51+DebtAccr!N76 -> 0 | O74: =DebtAccr!O51+DebtAccr!O76 -> 0 | P74: =DebtAccr!P51+DebtAccr!P76 -> 0 | Q74: =DebtAccr!Q51+DebtAccr!Q76 -> 0 | R74: =DebtAccr!R51+DebtAccr!R76 -> 0 | S74: =DebtAccr!S51+DebtAccr!S76 -> 0 | T74: =DebtAccr!T51+DebtAccr!T76 -> 0 | U74: =DebtAccr!U51+DebtAccr!U76 -> 0 | V74: =DebtAccr!V51+DebtAccr!V76 -> 0 | W74: =DebtAccr!W51+DebtAccr!W76 -> 0 | X74: =DebtAccr!X51+DebtAccr!X76 -> 0 | Y74: =DebtAccr!Y51+DebtAccr!Y76 -> 0 | Z74: =DebtAccr!Z51+DebtAccr!Z76 -> 0 | AA74: =DebtAccr!AA51+DebtAccr!AA76 -> 0 | AB74: =DebtAccr!AB51+DebtAccr!AB76 -> 0 | AC74: =DebtAccr!AC51+DebtAccr!AC76 -> 0 | AD74: =DebtAccr!AD51+DebtAccr!AD76 -> 0 | AE74: =DebtAccr!AE51+DebtAccr!AE76 -> 0 | AF74: =DebtAccr!AF51+DebtAccr!AF76 -> 0 | AG74: =DebtAccr!AG51+DebtAccr!AG76 -> 0 | AH74: =DebtAccr!AH51+DebtAccr!AH76 -> 0 | AI74: =DebtAccr!AI51+DebtAccr!AI76 -> 0 | AJ74: =DebtAccr!AJ51+DebtAccr!AJ76 -> 0 | AK74: =DebtAccr!AK51+DebtAccr!AK76 -> 0 | AL74: =DebtAccr!AL51+DebtAccr!AL76 -> 0 | AM74: =DebtAccr!AM51+DebtAccr!AM76 -> 0 | AN74: =DebtAccr!AN51+DebtAccr!AN76 -> 0 | AO74: =DebtAccr!AO51+DebtAccr!AO76 -> 0
A75: Project Costs Financed by CCBF During Constrained Budgets | L75: =L51 -> 0 | M75: =M51 -> 0 | N75: 0 | O75: 0 | P75: 0 | Q75: 0 | R75: 0 | S75: 0 | T75: 0 | U75: 0 | V75: 0 | W75: 0 | X75: 0 | Y75: 0 | Z75: 0 | AA75: 0 | AB75: 0 | AC75: 0 | AD75: 0 | AE75: 0 | AF75: 0 | AG75: 0 | AH75: 0 | AI75: 0 | AJ75: 0 | AK75: 0 | AL75: 0 | AM75: 0 | AN75: 0 | AO75: 0
A76: Net Spending Displaced Constrained Cycle | L76: =IF(L$7=-1,(L74-L75),0) -> 0 | M76: =IF(M$7=-1,(M74-M75),0) -> 0 | N76: 0 | O76: 0 | P76: 0 | Q76: 0 | R76: 0 | S76: 0 | T76: 0 | U76: 0 | V76: 0 | W76: 0 | X76: 0 | Y76: 0 | Z76: 0 | AA76: 0 | AB76: 0 | AC76: 0 | AD76: 0 | AE76: 0 | AF76: 0 | AG76: 0 | AH76: 0 | AI76: 0 | AJ76: 0 | AK76: 0 | AL76: 0 | AM76: 0 | AN76: 0 | AO76: 0
A78: Displaced Spending Balance (Begin) | L78: 0 | M78: =L84 -> 0 | N78: =M84 -> 0 | O78: 0 | P78: 0 | Q78: 0 | R78: 0 | S78: 0 | T78: 0 | U78: 0 | V78: 0 | W78: 0 | X78: 0 | Y78: 0 | Z78: 0 | AA78: 0 | AB78: 0 | AC78: 0 | AD78: 0 | AE78: 0 | AF78: 0 | AG78: 0 | AH78: 0 | AI78: 0 | AJ78: 0 | AK78: 0 | AL78: 0 | AM78: 0 | AN78: 0 | AO78: 0
A79: Displaced Spending Accrual Cost | F79: =Tech1!D35 -> 0 | L79: =L78*$F79 -> 0 | M79: =M78*$F79 -> 0 | N79: 0 | O79: 0 | P79: 0 | Q79: 0 | R79: 0 | S79: 0 | T79: 0 | U79: 0 | V79: 0 | W79: 0 | X79: 0 | Y79: 0 | Z79: 0 | AA79: 0 | AB79: 0 | AC79: 0 | AD79: 0 | AE79: 0 | AF79: 0 | AG79: 0 | AH79: 0 | AI79: 0 | AJ79: 0 | AK79: 0 | AL79: 0 | AM79: 0 | AN79: 0 | AO79: 0
A80: Annual Displaced Spending | L80: =L76 -> 0 | M80: =M76 -> 0 | N80: 0 | O80: 0 | P80: 0 | Q80: 0 | R80: 0 | S80: 0 | T80: 0 | U80: 0 | V80: 0 | W80: 0 | X80: 0 | Y80: 0 | Z80: 0 | AA80: 0 | AB80: 0 | AC80: 0 | AD80: 0 | AE80: 0 | AF80: 0 | AG80: 0 | AH80: 0 | AI80: 0 | AJ80: 0 | AK80: 0 | AL80: 0 | AM80: 0 | AN80: 0 | AO80: 0
A81: Remediation During Unconstrained Cycle | F81: =Tech1!D28 -> 1
A82: Remediation Amortization Period | F82: =Tech1!D20 -> 5
A83: Remediation Payments | L83: =IF(L$7=1,MAX(-PMT($F79,$F82,L78)*$F81,K83),0) -> 0 | M83: 0 | N83: 0 | O83: 0 | P83: 0 | Q83: 0 | R83: 0 | S83: 0 | T83: 0 | U83: 0 | V83: 0 | W83: 0 | X83: 0 | Y83: 0 | Z83: 0 | AA83: 0 | AB83: 0 | AC83: 0 | AD83: 0 | AE83: 0 | AF83: 0 | AG83: 0 | AH83: 0 | AI83: 0 | AJ83: 0 | AK83: 0 | AL83: 0 | AM83: 0 | AN83: 0 | AO83: =AO78+AO79+AO80 -> 0
A84: Displaced Spending Balance (End) | L84: =L78+L79+L80-L83 -> 0 | M84: 0 | N84: 0 | O84: 0 | P84: 0 | Q84: 0 | R84: 0 | S84: 0 | T84: 0 | U84: 0 | V84: 0 | W84: 0 | X84: 0 | Y84: 0 | Z84: 0 | AA84: 0 | AB84: 0 | AC84: 0 | AD84: 0 | AE84: 0 | AF84: 0 | AG84: 0 | AH84: 0 | AI84: 0 | AJ84: 0 | AK84: 0 | AL84: 0 | AM84: 0 | AN84: 0 | AO84: 0
A86: Accrual Principal Balance (Begin) | L86: =L78 -> 0 | M86: =L89 -> 0 | N86: =M89 -> 0 | O86: 0 | P86: 0 | Q86: 0 | R86: 0 | S86: 0 | T86: 0 | U86: 0 | V86: 0 | W86: 0 | X86: 0 | Y86: 0 | Z86: 0 | AA86: 0 | AB86: 0 | AC86: 0 | AD86: 0 | AE86: 0 | AF86: 0 | AG86: 0 | AH86: 0 | AI86: 0 | AJ86: 0 | AK86: 0 | AL86: 0 | AM86: 0 | AN86: 0 | AO86: 0
A87: Annual Displaced Spending | L87: =L80 -> 0 | M87: =M80 -> 0 | N87: 0 | O87: 0 | P87: 0 | Q87: 0 | R87: 0 | S87: 0 | T87: 0 | U87: 0 | V87: 0 | W87: 0 | X87: 0 | Y87: 0 | Z87: 0 | AA87: 0 | AB87: 0 | AC87: 0 | AD87: 0 | AE87: 0 | AF87: 0 | AG87: 0 | AH87: 0 | AI87: 0 | AJ87: 0 | AK87: 0 | AL87: 0 | AM87: 0 | AN87: 0 | AO87: 0
A88: Remediation Payment Allocation (Principal First) | L88: =MIN(L86+L87,L83) -> 0 | M88: 0 | N88: 0 | O88: 0 | P88: 0 | Q88: 0 | R88: =MIN(R86+R87,R83) -> 0 | S88: =MIN(S86+S87,S83) -> 0 | T88: 0 | U88: 0 | V88: 0 | W88: 0 | X88: 0 | Y88: 0 | Z88: 0 | AA88: 0 | AB88: 0 | AC88: 0 | AD88: 0 | AE88: 0 | AF88: 0 | AG88: 0 | AH88: 0 | AI88: 0 | AJ88: 0 | AK88: 0 | AL88: 0 | AM88: 0 | AN88: 0 | AO88: 0
A89: Accrual Principal Balance (End) | L89: =L86+L87-L88 -> 0 | M89: =M86+M87-M88 -> 0 | N89: 0 | O89: 0 | P89: 0 | Q89: 0 | R89: 0 | S89: 0 | T89: 0 | U89: 0 | V89: 0 | W89: 0 | X89: 0 | Y89: 0 | Z89: 0 | AA89: 0 | AB89: 0 | AC89: 0 | AD89: 0 | AE89: 0 | AF89: 0 | AG89: 0 | AH89: 0 | AI89: 0 | AJ89: 0 | AK89: 0 | AL89: 0 | AM89: 0 | AN89: 0 | AO89: 0
A91: Accrual Cost Balance (Begin) | L91: 0 | M91: =L94 -> 0 | N91: =M94 -> 0 | O91: 0 | P91: 0 | Q91: 0 | R91: 0 | S91: 0 | T91: 0 | U91: 0 | V91: 0 | W91: 0 | X91: 0 | Y91: 0 | Z91: 0 | AA91: 0 | AB91: 0 | AC91: 0 | AD91: 0 | AE91: 0 | AF91: 0 | AG91: 0 | AH91: 0 | AI91: 0 | AJ91: 0 | AK91: 0 | AL91: 0 | AM91: 0 | AN91: 0 | AO91: 0
A92: Annual Displaced Spending Cost | L92: =L79 -> 0 | M92: =M79 -> 0 | N92: =N79 -> 0 | O92: 0 | P92: 0 | Q92: 0 | R92: 0 | S92: 0 | T92: 0 | U92: 0 | V92: 0 | W92: 0 | X92: 0 | Y92: 0 | Z92: 0 | AA92: 0 | AB92: 0 | AC92: 0 | AD92: 0 | AE92: 0 | AF92: 0 | AG92: 0 | AH92: 0 | AI92: 0 | AJ92: 0 | AK92: 0 | AL92: 0 | AM92: 0 | AN92: 0 | AO92: 0
A93: Remediation Payment Allocation (Cost Last) | L93: =L83-L88 -> 0 | M93: =M83-M88 -> 0 | N93: =N83-N88 -> 0 | O93: 0 | P93: 0 | Q93: 0 | R93: 0 | S93: 0 | T93: 0 | U93: 0 | V93: 0 | W93: 0 | X93: 0 | Y93: 0 | Z93: 0 | AA93: 0 | AB93: 0 | AC93: 0 | AD93: 0 | AE93: 0 | AF93: 0 | AG93: 0 | AH93: 0 | AI93: 0 | AJ93: 0 | AK93: 0 | AL93: 0 | AM93: 0 | AN93: 0 | AO93: 0
A94: Accrual Cost Balance (End) | L94: =L91+L92-L93 -> 0 | M94: =M91+M92-M93 -> 0 | N94: 0 | O94: 0 | P94: 0 | Q94: 0 | R94: 0 | S94: 0 | T94: 0 | U94: 0 | V94: 0 | W94: 0 | X94: 0 | Y94: 0 | Z94: 0 | AA94: 0 | AB94: 0 | AC94: 0 | AD94: 0 | AE94: 0 | AF94: 0 | AG94: 0 | AH94: 0 | AI94: 0 | AJ94: 0 | AK94: 0 | AL94: 0 | AM94: 0 | AN94: 0 | AO94: 0

Sheet DSS
B2: Displaced Spending Scenarios [Demonstration Output Interface]
C4: Input Summary | I4: DSS Output Summary | N4: Results Tables
D6: Tables | E6: Live Dash
C7: Budget Constrained | D7: 0 | E7: =Tech4!C6 -> 0 | J7: Standard | K7: Alternative | L7: Delta | N7: Minimum PV Results of Both Cases
C8: Budget Unconstrained | D8: 5 | E8: =Tech4!C7 -> 5
C9: Cycle Start | D9: 1 | E9: =Tech4!C8 -> 1 | I9: Best Case (Lowest PV Cost) | J9: =Tech4!T8 -> 1e-07 | K9: =Tech4!U8 -> 0.01 | L9: =J9-K9 -> -0.0099999 | P9: Displaced Spending %
I10: Worst Case (Highest PV Cost) | J10: =Tech4!T9 -> 1e-07 | K10: =Tech4!U9 -> 0.01 | L10: =J10-K10 -> -0.0099999 | O10: Remediation% | P10: 0 | Q10: =P10+0.1 -> 0.1 | R10: =Q10+0.1 -> 0.2 | S10: 0.3 | T10: 0.4 | U10: 0.5 | V10: 0.6 | W10: 0.7 | X10: 0.8 | Y10: 0.9 | Z10: 1
C11: Standard Operations | D11: 0 | E11: =Tech4!C10 -> 0 | I11: Delta | J11: =Tech4!T10 -> 0 | K11: =Tech4!U10 -> 0 | O11: 0 | P11: =Tech4!F8 -> 1e-07 | Q11: =Tech4!G8 -> 1e-07 | R11: =Tech4!H8 -> 1e-07 | S11: =Tech4!I8 -> 1e-07 | T11: =Tech4!J8 -> 1e-07 | U11: =Tech4!K8 -> 1e-07 | V11: =Tech4!L8 -> 1e-07 | W11: =Tech4!M8 -> 1e-07 | X11: =Tech4!N8 -> 1e-07 | Y11: =Tech4!O8 -> 1e-07 | Z11: =Tech4!P8 -> 1e-07
C12: Standard Maintenance | D12: 0 | E12: =Tech4!C11 -> 0 | O12: =O11+0.1 -> 0.1 | P12: =Tech4!F9 -> 1e-07 | Q12: =Tech4!G9 -> 1e-07 | R12: =Tech4!H9 -> 1e-07 | S12: =Tech4!I9 -> 1e-07 | T12: =Tech4!J9 -> 1e-07 | U12: =Tech4!K9 -> 1e-07 | V12: =Tech4!L9 -> 1e-07 | W12: =Tech4!M9 -> 1e-07 | X12: =Tech4!N9 -> 1e-07 | Y12: =Tech4!O9 -> 1e-07 | Z12: =Tech4!P9 -> 1e-07
C13: Standard Debt Rate | D13: 0 | E13: =Tech4!C12 -> 0 | I13: % Share of Lower PV Cost Results | J13: =Tech4!T12 -> 1 | K13: =Tech4!U12 -> 0 | O13: =O12+0.1 -> 0.2 | P13: =Tech4!F10 -> 1e-07 | Q13: =Tech4!G10 -> 1e-07 | R13: =Tech4!H10 -> 1e-07 | S13: =Tech4!I10 -> 1e-07 | T13: =Tech4!J10 -> 1e-07 | U13: =Tech4!K10 -> 1e-07 | V13: =Tech4!L10 -> 1e-07 | W13: =Tech4!M10 -> 1e-07 | X13: =Tech4!N10 -> 1e-07 | Y13: =Tech4!O10 -> 1e-07 | Z13: =Tech4!P10 -> 1e-07
O14: 0.3 | P14: =Tech4!F11 -> 1e-07 | Q14: =Tech4!G11 -> 1e-07 | R14: =Tech4!H11 -> 1e-07 | S14: =Tech4!I11 -> 1e-07 | T14: =Tech4!J11 -> 1e-07 | U14: =Tech4!K11 -> 1e-07 | V14: =Tech4!L11 -> 1e-07 | W14: =Tech4!M11 -> 1e-07 | X14: =Tech4!N11 -> 1e-07 | Y14: =Tech4!O11 -> 1e-07 | Z14: =Tech4!P11 -> 1e-07
C15: Alternative Operations | D15: 0 | E15: =Tech4!C20 -> 0 | I15: Average | J15: =Tech4!T13 -> 1e-07 | K15: =Tech4!U13 -> 0.01 | L15: =J15-K15 -> -0.0099999 | O15: 0.4 | P15: =Tech4!F12 -> 1e-07 | Q15: =Tech4!G12 -> 1e-07 | R15: =Tech4!H12 -> 1e-07 | S15: =Tech4!I12 -> 1e-07 | T15: =Tech4!J12 -> 1e-07 | U15: =Tech4!K12 -> 1e-07 | V15: =Tech4!L12 -> 1e-07 | W15: =Tech4!M12 -> 1e-07 | X15: =Tech4!N12 -> 1e-07 | Y15: =Tech4!O12 -> 1e-07 | Z15: =Tech4!P12 -> 1e-07
C16: Alternative Maintenance | D16: 0 | E16: =Tech4!C21 -> 0 | I16: Median | J16: =Tech4!T14 -> 1e-07 | K16: =Tech4!U14 -> 0.01 | L16: =J16-K16 -> -0.0099999 | O16: 0.5 | P16: =Tech4!F13 -> 1e-07 | Q16: =Tech4!G13 -> 1e-07 | R16: =Tech4!H13 -> 1e-07 | S16: =Tech4!I13 -> 1e-07 | T16: =Tech4!J13 -> 1e-07 | U16: =Tech4!K13 -> 1e-07 | V16: =Tech4!L13 -> 1e-07 | W16: =Tech4!M13 -> 1e-07 | X16: =Tech4!N13 -> 1e-07 | Y16: =Tech4!O13 -> 1e-07 | Z16: =Tech4!P13 -> 1e-07
C17: Alternative Debt Rate | D17: 0 | E17: =Tech4!C22 -> 0 | I17: Stan Dev | J17: =Tech4!T15 -> 2.249931266e-22 | K17: =Tech4!U15 -> 5.204170428e-18 | L17: -5.203945435e-18 | O17: 0.6 | P17: =Tech4!F14 -> 1e-07 | Q17: =Tech4!G14 -> 1e-07 | R17: =Tech4!H14 -> 1e-07 | S17: =Tech4!I14 -> 1e-07 | T17: =Tech4!J14 -> 1e-07 | U17: =Tech4!K14 -> 1e-07 | V17: =Tech4!L14 -> 1e-07 | W17: =Tech4!M14 -> 1e-07 | X17: =Tech4!N14 -> 1e-07 | Y17: =Tech4!O14 -> 1e-07 | Z17: =Tech4!P14 -> 1e-07
O18: 0.7 | P18: =Tech4!F15 -> 1e-07 | Q18: =Tech4!G15 -> 1e-07 | R18: =Tech4!H15 -> 1e-07 | S18: =Tech4!I15 -> 1e-07 | T18: =Tech4!J15 -> 1e-07 | U18: =Tech4!K15 -> 1e-07 | V18: =Tech4!L15 -> 1e-07 | W18: =Tech4!M15 -> 1e-07 | X18: =Tech4!N15 -> 1e-07 | Y18: =Tech4!O15 -> 1e-07 | Z18: =Tech4!P15 -> 1e-07
C19: Deferred Main. Accrual | D19: 0 | E19: =Tech4!C14 -> 0 | I19: DS% User Spec Option Check | J19: 0 | O19: 0.8 | P19: =Tech4!F16 -> 1e-07 | Q19: =Tech4!G16 -> 1e-07 | R19: =Tech4!H16 -> 1e-07 | S19: =Tech4!I16 -> 1e-07 | T19: =Tech4!J16 -> 1e-07 | U19: =Tech4!K16 -> 1e-07 | V19: =Tech4!L16 -> 1e-07 | W19: =Tech4!M16 -> 1e-07 | X19: =Tech4!N16 -> 1e-07 | Y19: =Tech4!O16 -> 1e-07 | Z19: =Tech4!P16 -> 1e-07
C20: Deferred Main. Remediation | D20: 1 | E20: =Tech4!C15 -> 1 | I20: DSRem% User Spec Option Check | J20: 0 | O20: 0.9 | P20: =Tech4!F17 -> 1e-07 | Q20: =Tech4!G17 -> 1e-07 | R20: =Tech4!H17 -> 1e-07 | S20: =Tech4!I17 -> 1e-07 | T20: =Tech4!J17 -> 1e-07 | U20: =Tech4!K17 -> 1e-07 | V20: =Tech4!L17 -> 1e-07 | W20: =Tech4!M17 -> 1e-07 | X20: =Tech4!N17 -> 1e-07 | Y20: =Tech4!O17 -> 1e-07 | Z20: =Tech4!P17 -> 1e-07
C21: Deferred Main. Accrual Rate | D21: 0 | E21: =Tech4!C16 -> 0 | G21: =IF(SUM(D7:D28)=SUM(E7:E28),1,0) -> 1 | I21: Same as Live Dash Input? | J21: =IF(SUM(D7:D28)=SUM(E7:E28),"Yes","No") -> Yes | O21: 1 | P21: =Tech4!F18 -> 1e-07 | Q21: =Tech4!G18 -> 1e-07 | R21: =Tech4!H18 -> 1e-07 | S21: =Tech4!I18 -> 1e-07 | T21: =Tech4!J18 -> 1e-07 | U21: =Tech4!K18 -> 1e-07 | V21: =Tech4!L18 -> 1e-07 | W21: =Tech4!M18 -> 1e-07 | X21: =Tech4!N18 -> 1e-07 | Y21: =Tech4!O18 -> 1e-07 | Z21: =Tech4!P18 -> 1e-07
C23: CCBF Amount | D23: 0 | E23: =Tech4!C24 -> 0 | N23: Standard Case PV Results
C24: CCBF Repayment | D24: 3 | E24: =Tech4!C25 -> 3
C25: CCBF Rate | D25: 0.0375 | E25: =Tech4!C26 -> 0.0375 | P25: Displaced Spending %
O26: Remediation% | P26: 0 | Q26: =P26+0.1 -> 0.1 | R26: =Q26+0.1 -> 0.2 | S26: 0.3 | T26: 0.4 | U26: 0.5 | V26: 0.6 | W26: 0.7 | X26: 0.8 | Y26: 0.9 | Z26: 1
C27: VfM Term | D27: 30 | E27: =Tech4!C28 -> 30 | O27: 0 | P27: =Tech4!F22 -> 1e-07 | Q27: =Tech4!G22 -> 1e-07 | R27: =Tech4!H22 -> 1e-07 | S27: =Tech4!I22 -> 1e-07 | T27: =Tech4!J22 -> 1e-07 | U27: =Tech4!K22 -> 1e-07 | V27: =Tech4!L22 -> 1e-07 | W27: =Tech4!M22 -> 1e-07 | X27: =Tech4!N22 -> 1e-07 | Y27: =Tech4!O22 -> 1e-07 | Z27: =Tech4!P22 -> 1e-07
C28: VfM Discount Rate | D28: 0 | E28: =Tech4!C29 -> 0 | O28: =O27+0.1 -> 0.1 | P28: =Tech4!F23 -> 1e-07 | Q28: =Tech4!G23 -> 1e-07 | R28: =Tech4!H23 -> 1e-07 | S28: =Tech4!I23 -> 1e-07 | T28: =Tech4!J23 -> 1e-07 | U28: =Tech4!K23 -> 1e-07 | V28: =Tech4!L23 -> 1e-07 | W28: =Tech4!M23 -> 1e-07 | X28: =Tech4!N23 -> 1e-07 | Y28: =Tech4!O23 -> 1e-07 | Z28: =Tech4!P23 -> 1e-07
O29: 0.2 | P29: =Tech4!F24 -> 1e-07 | Q29: =Tech4!G24 -> 1e-07 | R29: =Tech4!H24 -> 1e-07 | S29: =Tech4!I24 -> 1e-07 | T29: =Tech4!J24 -> 1e-07 | U29: =Tech4!K24 -> 1e-07 | V29: =Tech4!L24 -> 1e-07 | W29: =Tech4!M24 -> 1e-07 | X29: =Tech4!N24 -> 1e-07 | Y29: =Tech4!O24 -> 1e-07 | Z29: =Tech4!P24 -> 1e-07
O30: 0.3 | P30: =Tech4!F25 -> 1e-07 | Q30: =Tech4!G25 -> 1e-07 | R30: =Tech4!H25 -> 1e-07 | S30: =Tech4!I25 -> 1e-07 | T30: =Tech4!J25 -> 1e-07 | U30: =Tech4!K25 -> 1e-07 | V30: =Tech4!L25 -> 1e-07 | W30: =Tech4!M25 -> 1e-07 | X30: =Tech4!N25 -> 1e-07 | Y30: =Tech4!O25 -> 1e-07 | Z30: =Tech4!P25 -> 1e-07
O31: 0.4 | P31: =Tech4!F26 -> 1e-07 | Q31: =Tech4!G26 -> 1e-07 | R31: =Tech4!H26 -> 1e-07 | S31: =Tech4!I26 -> 1e-07 | T31: =Tech4!J26 -> 1e-07 | U31: =Tech4!K26 -> 1e-07 | V31: =Tech4!L26 -> 1e-07 | W31: =Tech4!M26 -> 1e-07 | X31: =Tech4!N26 -> 1e-07 | Y31: =Tech4!O26 -> 1e-07 | Z31: =Tech4!P26 -> 1e-07
O32: 0.5 | P32: =Tech4!F27 -> 1e-07 | Q32: =Tech4!G27 -> 1e-07 | R32: =Tech4!H27 -> 1e-07 | S32: =Tech4!I27 -> 1e-07 | T32: =Tech4!J27 -> 1e-07 | U32: =Tech4!K27 -> 1e-07 | V32: =Tech4!L27 -> 1e-07 | W32: =Tech4!M27 -> 1e-07 | X32: =Tech4!N27 -> 1e-07 | Y32: =Tech4!O27 -> 1e-07 | Z32: =Tech4!P27 -> 1e-07
O33: 0.6 | P33: =Tech4!F28 -> 1e-07 | Q33: =Tech4!G28 -> 1e-07 | R33: =Tech4!H28 -> 1e-07 | S33: =Tech4!I28 -> 1e-07 | T33: =Tech4!J28 -> 1e-07 | U33: =Tech4!K28 -> 1e-07 | V33: =Tech4!L28 -> 1e-07 | W33: =Tech4!M28 -> 1e-07 | X33: =Tech4!N28 -> 1e-07 | Y33: =Tech4!O28 -> 1e-07 | Z33: =Tech4!P28 -> 1e-07
O34: 0.7 | P34: =Tech4!F29 -> 1e-07 | Q34: =Tech4!G29 -> 1e-07 | R34: =Tech4!H29 -> 1e-07 | S34: =Tech4!I29 -> 1e-07 | T34: =Tech4!J29 -> 1e-07 | U34: =Tech4!K29 -> 1e-07 | V34: =Tech4!L29 -> 1e-07 | W34: =Tech4!M29 -> 1e-07 | X34: =Tech4!N29 -> 1e-07 | Y34: =Tech4!O29 -> 1e-07 | Z34: =Tech4!P29 -> 1e-07
O35: 0.8 | P35: =Tech4!F30 -> 1e-07 | Q35: =Tech4!G30 -> 1e-07 | R35: =Tech4!H30 -> 1e-07 | S35: =Tech4!I30 -> 1e-07 | T35: =Tech4!J30 -> 1e-07 | U35: =Tech4!K30 -> 1e-07 | V35: =Tech4!L30 -> 1e-07 | W35: =Tech4!M30 -> 1e-07 | X35: =Tech4!N30 -> 1e-07 | Y35: =Tech4!O30 -> 1e-07 | Z35: =Tech4!P30 -> 1e-07
O36: 0.9 | P36: =Tech4!F31 -> 1e-07 | Q36: =Tech4!G31 -> 1e-07 | R36: =Tech4!H31 -> 1e-07 | S36: =Tech4!I31 -> 1e-07 | T36: =Tech4!J31 -> 1e-07 | U36: =Tech4!K31 -> 1e-07 | V36: =Tech4!L31 -> 1e-07 | W36: =Tech4!M31 -> 1e-07 | X36: =Tech4!N31 -> 1e-07 | Y36: =Tech4!O31 -> 1e-07 | Z36: =Tech4!P31 -> 1e-07
O37: 1 | P37: =Tech4!F32 -> 1e-07 | Q37: =Tech4!G32 -> 1e-07 | R37: =Tech4!H32 -> 1e-07 | S37: =Tech4!I32 -> 1e-07 | T37: =Tech4!J32 -> 1e-07 | U37: =Tech4!K32 -> 1e-07 | V37: =Tech4!L32 -> 1e-07 | W37: =Tech4!M32 -> 1e-07 | X37: =Tech4!N32 -> 1e-07 | Y37: =Tech4!O32 -> 1e-07 | Z37: =Tech4!P32 -> 1e-07
N39: Alternative Case PV Results
P41: Displaced Spending %
O42: Remediation% | P42: 0 | Q42: =P42+0.1 -> 0.1 | R42: =Q42+0.1 -> 0.2 | S42: 0.3 | T42: 0.4 | U42: 0.5 | V42: 0.6 | W42: 0.7 | X42: 0.8 | Y42: 0.9 | Z42: 1
O43: 0 | P43: =Tech4!F36 -> 0.01 | Q43: =Tech4!G36 -> 0.01 | R43: =Tech4!H36 -> 0.01 | S43: =Tech4!I36 -> 0.01 | T43: =Tech4!J36 -> 0.01 | U43: =Tech4!K36 -> 0.01 | V43: =Tech4!L36 -> 0.01 | W43: =Tech4!M36 -> 0.01 | X43: =Tech4!N36 -> 0.01 | Y43: =Tech4!O36 -> 0.01 | Z43: =Tech4!P36 -> 0.01
O44: =O43+0.1 -> 0.1 | P44: =Tech4!F37 -> 0.01 | Q44: =Tech4!G37 -> 0.01 | R44: =Tech4!H37 -> 0.01 | S44: =Tech4!I37 -> 0.01 | T44: =Tech4!J37 -> 0.01 | U44: =Tech4!K37 -> 0.01 | V44: =Tech4!L37 -> 0.01 | W44: =Tech4!M37 -> 0.01 | X44: =Tech4!N37 -> 0.01 | Y44: =Tech4!O37 -> 0.01 | Z44: =Tech4!P37 -> 0.01
O45: =O44+0.1 -> 0.2 | P45: =Tech4!F38 -> 0.01 | Q45: =Tech4!G38 -> 0.01 | R45: =Tech4!H38 -> 0.01 | S45: =Tech4!I38 -> 0.01 | T45: =Tech4!J38 -> 0.01 | U45: =Tech4!K38 -> 0.01 | V45: =Tech4!L38 -> 0.01 | W45: =Tech4!M38 -> 0.01 | X45: =Tech4!N38 -> 0.01 | Y45: =Tech4!O38 -> 0.01 | Z45: =Tech4!P38 -> 0.01
O46: 0.3 | P46: =Tech4!F39 -> 0.01 | Q46: =Tech4!G39 -> 0.01 | R46: =Tech4!H39 -> 0.01 | S46: =Tech4!I39 -> 0.01 | T46: =Tech4!J39 -> 0.01 | U46: =Tech4!K39 -> 0.01 | V46: =Tech4!L39 -> 0.01 | W46: =Tech4!M39 -> 0.01 | X46: =Tech4!N39 -> 0.01 | Y46: =Tech4!O39 -> 0.01 | Z46: =Tech4!P39 -> 0.01
O47: 0.4 | P47: =Tech4!F40 -> 0.01 | Q47: =Tech4!G40 -> 0.01 | R47: =Tech4!H40 -> 0.01 | S47: =Tech4!I40 -> 0.01 | T47: =Tech4!J40 -> 0.01 | U47: =Tech4!K40 -> 0.01 | V47: =Tech4!L40 -> 0.01 | W47: =Tech4!M40 -> 0.01 | X47: =Tech4!N40 -> 0.01 | Y47: =Tech4!O40 -> 0.01 | Z47: =Tech4!P40 -> 0.01
O48: 0.5 | P48: =Tech4!F41 -> 0.01 | Q48: =Tech4!G41 -> 0.01 | R48: =Tech4!H41 -> 0.01 | S48: =Tech4!I41 -> 0.01 | T48: =Tech4!J41 -> 0.01 | U48: =Tech4!K41 -> 0.01 | V48: =Tech4!L41 -> 0.01 | W48: =Tech4!M41 -> 0.01 | X48: =Tech4!N41 -> 0.01 | Y48: =Tech4!O41 -> 0.01 | Z48: =Tech4!P41 -> 0.01
O49: 0.6 | P49: =Tech4!F42 -> 0.01 | Q49: =Tech4!G42 -> 0.01 | R49: =Tech4!H42 -> 0.01 | S49: =Tech4!I42 -> 0.01 | T49: =Tech4!J42 -> 0.01 | U49: =Tech4!K42 -> 0.01 | V49: =Tech4!L42 -> 0.01 | W49: =Tech4!M42 -> 0.01 | X49: =Tech4!N42 -> 0.01 | Y49: =Tech4!O42 -> 0.01 | Z49: =Tech4!P42 -> 0.01
O50: 0.7 | P50: =Tech4!F43 -> 0.01 | Q50: =Tech4!G43 -> 0.01 | R50: =Tech4!H43 -> 0.01 | S50: =Tech4!I43 -> 0.01 | T50: =Tech4!J43 -> 0.01 | U50: =Tech4!K43 -> 0.01 | V50: =Tech4!L43 -> 0.01 | W50: =Tech4!M43 -> 0.01 | X50: =Tech4!N43 -> 0.01 | Y50: =Tech4!O43 -> 0.01 | Z50: =Tech4!P43 -> 0.01
O51: 0.8 | P51: =Tech4!F44 -> 0.01 | Q51: =Tech4!G44 -> 0.01 | R51: =Tech4!H44 -> 0.01 | S51: =Tech4!I44 -> 0.01 | T51: =Tech4!J44 -> 0.01 | U51: =Tech4!K44 -> 0.01 | V51: =Tech4!L44 -> 0.01 | W51: =Tech4!M44 -> 0.01 | X51: =Tech4!N44 -> 0.01 | Y51: =Tech4!O44 -> 0.01 | Z51: =Tech4!P44 -> 0.01
O52: 0.9 | P52: =Tech4!F45 -> 0.01 | Q52: =Tech4!G45 -> 0.01 | R52: =Tech4!H45 -> 0.01 | S52: =Tech4!I45 -> 0.01 | T52: =Tech4!J45 -> 0.01 | U52: =Tech4!K45 -> 0.01 | V52: =Tech4!L45 -> 0.01 | W52: =Tech4!M45 -> 0.01 | X52: =Tech4!N45 -> 0.01 | Y52: =Tech4!O45 -> 0.01 | Z52: =Tech4!P45 -> 0.01
O53: 1 | P53: =Tech4!F46 -> 0.01 | Q53: =Tech4!G46 -> 0.01 | R53: =Tech4!H46 -> 0.01 | S53: =Tech4!I46 -> 0.01 | T53: =Tech4!J46 -> 0.01 | U53: =Tech4!K46 -> 0.01 | V53: =Tech4!L46 -> 0.01 | W53: =Tech4!M46 -> 0.01 | X53: =Tech4!N46 -> 0.01 | Y53: =Tech4!O46 -> 0.01 | Z53: =Tech4!P46 -> 0.01

Sheet Tech1 (hidden)
A1: Technical 1: Standard Baseline and Accruals
A3: Inputs | J3: Timelines and Graphic Sum
D5: Value | K5: 0 | L5: =K5+1 -> 1 | M5: =L5+1 -> 2 | N5: 3 | O5: 4 | P5: 5 | Q5: 6 | R5: 7 | S5: 8 | T5: 9 | U5: 10 | V5: 11 | W5: 12 | X5: 13 | Y5: 14 | Z5: 15 | AA5: 16 | AB5: 17 | AC5: 18 | AD5: 19 | AE5: 20 | AF5: 21 | AG5: 22 | AH5: 23 | AI5: 24 | AJ5: 25 | AK5: 26 | AL5: 27 | AM5: 28 | AN5: 29 | AO5: 30
D7: =IF(Std!G35=TRUE,0.0000001,100) -> 1e-07 | E7: Std Debt Initial Amount | K7: =BC!H38 -> 1 | L7: =IF(K7=1,IF(K8=-1,$H$20,$H$19),K7-1) -> 0 | M7: -1 | N7: -2 | O7: -3 | P7: -4 | Q7: -5 | R7: -6 | S7: -7 | T7: -8 | U7: -9 | V7: -10 | W7: -11 | X7: -12 | Y7: -13 | Z7: -14 | AA7: -15 | AB7: -16 | AC7: -17 | AD7: -18 | AE7: -19 | AF7: -20 | AG7: -21 | AH7: -22 | AI7: -23 | AJ7: -24 | AK7: -25 | AL7: -26 | AM7: -27 | AN7: -28 | AO7: -29
K8: =IF(H20+H19=0,0,1) -> 0 | L8: =IF(K7=1,K8*-1,K8) -> 0 | M8: =IF(L7=1,L8*-1,L8) -> 0 | N8: 0 | O8: 0 | P8: 0 | Q8: 0 | R8: 0 | S8: 0 | T8: 0 | U8: 0 | V8: 0 | W8: 0 | X8: 0 | Y8: 0 | Z8: 0 | AA8: 0 | AB8: 0 | AC8: 0 | AD8: 0 | AE8: 0 | AF8: 0 | AG8: 0 | AH8: 0 | AI8: 0 | AJ8: 0 | AK8: 0 | AL8: 0 | AM8: 0 | AN8: 0 | AO8: 0
D9: 30 | E9: Std Debt Term and Project Life
D10: =Std!H41 -> 0 | E10: Std Debt Interest Rate | J10: Green Bar | K10: 200 | L10: =IF(L8=1,$K$10,0) -> 0 | M10: =IF(M8=1,$K$10,0) -> 0 | N10: 0 | O10: 0 | P10: 0 | Q10: 0 | R10: 0 | S10: 0 | T10: 0 | U10: 0 | V10: 0 | W10: 0 | X10: 0 | Y10: 0 | Z10: 0 | AA10: 0 | AB10: 0 | AC10: 0 | AD10: 0 | AE10: 0 | AF10: 0 | AG10: 0 | AH10: 0 | AI10: 0 | AJ10: 0 | AK10: 0 | AL10: 0 | AM10: 0 | AN10: 0 | AO10: 0
J11: Red Bar | K11: 200 | L11: =IF(L8=-1,$K$11,0) -> 0 | M11: =IF(M8=-1,$K$11,0) -> 0 | N11: 0 | O11: 0 | P11: 0 | Q11: 0 | R11: 0 | S11: 0 | T11: 0 | U11: 0 | V11: 0 | W11: 0 | X11: 0 | Y11: 0 | Z11: 0 | AA11: 0 | AB11: 0 | AC11: 0 | AD11: 0 | AE11: 0 | AF11: 0 | AG11: 0 | AH11: 0 | AI11: 0 | AJ11: 0 | AK11: 0 | AL11: 0 | AM11: 0 | AN11: 0 | AO11: 0
D12: =Std!H28 -> 0 | E12: Initial Annual Maintenance
D13: =Std!H14 -> 0 | E13: Initial Annual Operations | J13: Accrual Series
J14: Real Fin Cost | K14: =IF($D$7<1,FALSE,TRUE) -> FALSE | L14: =IF($K$14=TRUE,L29,0) -> 0 | M14: =IF($K$14=TRUE,M29,0) -> 0 | N14: 0 | O14: 0 | P14: 0 | Q14: 0 | R14: 0 | S14: 0 | T14: 0 | U14: 0 | V14: 0 | W14: 0 | X14: 0 | Y14: 0 | Z14: 0 | AA14: 0 | AB14: 0 | AC14: 0 | AD14: 0 | AE14: 0 | AF14: 0 | AG14: 0 | AH14: 0 | AI14: 0 | AJ14: 0 | AK14: 0 | AL14: 0 | AM14: 0 | AN14: 0 | AO14: 0
J15: WACF | K15: =IF($D$7<1,FALSE,TRUE) -> FALSE | L15: =IF($K$15=TRUE,L30,0) -> 0 | M15: =IF($K$15=TRUE,M30,0) -> 0 | N15: 0 | O15: 0 | P15: 0 | Q15: 0 | R15: 0 | S15: 0 | T15: 0 | U15: 0 | V15: 0 | W15: 0 | X15: 0 | Y15: 0 | Z15: 0 | AA15: 0 | AB15: 0 | AC15: 0 | AD15: 0 | AE15: 0 | AF15: 0 | AG15: 0 | AH15: 0 | AI15: 0 | AJ15: 0 | AK15: 0 | AL15: 0 | AM15: 0 | AN15: 0 | AO15: 0
J16: Unconstrained | L16: =IF(L10=0,0,L10-SUM(L18:L25)) -> 0 | M16: =IF(M10=0,0,M10-SUM(M18:M25)) -> 0 | N16: 0 | O16: 0 | P16: 0 | Q16: 0 | R16: 0 | S16: 0 | T16: 0 | U16: 0 | V16: 0 | W16: 0 | X16: 0 | Y16: 0 | Z16: 0 | AA16: 0 | AB16: 0 | AC16: 0 | AD16: 0 | AE16: 0 | AF16: 0 | AG16: 0 | AH16: 0 | AI16: 0 | AJ16: 0 | AK16: 0 | AL16: 0 | AM16: 0 | AN16: 0 | AO16: 0
J17: Constrained | L17: =IF(L11=0,0,L11-SUM(L18:L25)) -> 0 | M17: =IF(M11=0,0,M11-SUM(M18:M25)) -> 0 | N17: 0 | O17: 0 | P17: 0 | Q17: 0 | R17: 0 | S17: 0 | T17: 0 | U17: 0 | V17: 0 | W17: 0 | X17: 0 | Y17: 0 | Z17: 0 | AA17: 0 | AB17: 0 | AC17: 0 | AD17: 0 | AE17: 0 | AF17: 0 | AG17: 0 | AH17: 0 | AI17: 0 | AJ17: 0 | AK17: 0 | AL17: 0 | AM17: 0 | AN17: 0 | AO17: 0
H18: BC Calc | J18: Acrrued CyCost | K18: TRUE | L18: =IF($K18=TRUE,L31,0) -> 0 | M18: =IF($K18=TRUE,M31,0) -> 0 | N18: 0 | O18: 0 | P18: 0 | Q18: 0 | R18: 0 | S18: 0 | T18: 0 | U18: 0 | V18: 0 | W18: 0 | X18: 0 | Y18: 0 | Z18: 0 | AA18: 0 | AB18: 0 | AC18: 0 | AD18: 0 | AE18: 0 | AF18: 0 | AG18: 0 | AH18: 0 | AI18: 0 | AJ18: 0 | AK18: 0 | AL18: 0 | AM18: 0 | AN18: 0 | AO18: 0
D19: =BC!H14 -> 0 | E19: Budget Cycle: Constrained | H19: =IF(D20=0,0,D19) -> 0
D20: =BC!H28 -> 5 | E20: Budget Cycle: Unconstrained | H20: =IF(D19=0,0,D20) -> 0
E21: Budget Cycle Start? | H21: =BC!H38 -> 1
J22: Disp Spend | K22: TRUE | L22: =L35 -> 0 | M22: =M35 -> 0 | N22: 0 | O22: 0 | P22: 0 | Q22: 0 | R22: 0 | S22: 0 | T22: 0 | U22: 0 | V22: 0 | W22: 0 | X22: 0 | Y22: 0 | Z22: 0 | AA22: 0 | AB22: 0 | AC22: 0 | AD22: 0 | AE22: 0 | AF22: 0 | AG22: 0 | AH22: 0 | AI22: 0 | AJ22: 0 | AK22: 0 | AL22: 0 | AM22: 0 | AN22: 0 | AO22: 0
D23: =DefM!H14 -> 0 | E23: Deferred Maintenance: Deferral Ratio
D24: =DefM!H42 -> 0 | E24: Deferred Maintenance: Accrual Rate | J24: Def Main | K24: TRUE | L24: =IF($K24=TRUE,L37,0) -> 0 | M24: 0 | N24: 0 | O24: 0 | P24: 0 | Q24: 0 | R24: 0 | S24: 0 | T24: 0 | U24: 0 | V24: 0 | W24: 0 | X24: 0 | Y24: 0 | Z24: 0 | AA24: 0 | AB24: 0 | AC24: 0 | AD24: 0 | AE24: 0 | AF24: 0 | AG24: 0 | AH24: 0 | AI24: 0 | AJ24: 0 | AK24: 0 | AL24: 0 | AM24: 0 | AN24: 0 | AO24: 0
D25: =DefM!H28 -> 1 | E25: Deferred Maintenance: Remediation Rate | J25: Std Debt | K25: TRUE | L25: 9.666666667e-08 | M25: 9.333333333e-08 | N25: 9e-08 | O25: 8.666666667e-08 | P25: 8.333333333e-08 | Q25: 8e-08 | R25: 7.666666667e-08 | S25: 7.333333333e-08 | T25: 7e-08 | U25: 6.666666667e-08 | V25: 6.333333333e-08 | W25: 6e-08 | X25: 5.666666667e-08 | Y25: 5.333333333e-08 | Z25: 5e-08 | AA25: 4.666666667e-08 | AB25: 4.333333333e-08 | AC25: 4e-08 | AD25: 3.666666667e-08 | AE25: 3.333333333e-08 | AF25: 3e-08 | AG25: 2.666666667e-08 | AH25: 2.333333333e-08 | AI25: 2e-08 | AJ25: 1.666666667e-08 | AK25: 1.333333333e-08 | AL25: 1e-08 | AM25: 6.666666667e-09 | AN25: 3.333333333e-09 | AO25: -1.571643164e-23
D27: =DisS!H14 -> 0 | E27: Non-Project Spending: Displacement Ratio
D28: =DisS!H28 -> 1 | E28: Non-Project Spending: Remediation Rate | J28: Active Debt Accrual Inputs
J29: Realized Financial Cost | L29: =DebtAccr!J20 -> 0 | M29: =L29 -> 0 | N29: =M29 -> 0 | O29: 0 | P29: 0 | Q29: 0 | R29: 0 | S29: 0 | T29: 0 | U29: 0 | V29: 0 | W29: 0 | X29: 0 | Y29: 0 | Z29: 0 | AA29: 0 | AB29: 0 | AC29: 0 | AD29: 0 | AE29: 0 | AF29: 0 | AG29: 0 | AH29: 0 | AI29: 0 | AJ29: 0 | AK29: 0 | AL29: 0 | AM29: 0 | AN29: 0 | AO29: 0
J30: Weighted Average Cost Fin | L30: =DebtAccr!L27 -> 0 | M30: =DebtAccr!M27 -> 0 | N30: =DebtAccr!N27 -> 0 | O30: =DebtAccr!O27 -> 0 | P30: =DebtAccr!P27 -> 0 | Q30: =DebtAccr!Q27 -> 0 | R30: =DebtAccr!R27 -> 0 | S30: =DebtAccr!S27 -> 0 | T30: =DebtAccr!T27 -> 0 | U30: =DebtAccr!U27 -> 0 | V30: =DebtAccr!V27 -> 0 | W30: =DebtAccr!W27 -> 0 | X30: =DebtAccr!X27 -> 0 | Y30: =DebtAccr!Y27 -> 0 | Z30: =DebtAccr!Z27 -> 0 | AA30: =DebtAccr!AA27 -> 0 | AB30: =DebtAccr!AB27 -> 0 | AC30: =DebtAccr!AC27 -> 0 | AD30: =DebtAccr!AD27 -> 0 | AE30: =DebtAccr!AE27 -> 0 | AF30: =DebtAccr!AF27 -> 0 | AG30: =DebtAccr!AG27 -> 0 | AH30: =DebtAccr!AH27 -> 0 | AI30: =DebtAccr!AI27 -> 0 | AJ30: =DebtAccr!AJ27 -> 0 | AK30: =DebtAccr!AK27 -> 0 | AL30: =DebtAccr!AL27 -> 0 | AM30: =DebtAccr!AM27 -> 0 | AN30: =DebtAccr!AN27 -> 0 | AO30: =DebtAccr!AO27 -> 0
J31: Accrual Cost | L31: =DebtAccr!L17 -> 0 | M31: =DebtAccr!M17 -> 0 | N31: =DebtAccr!N17 -> 0 | O31: =DebtAccr!O17 -> 0 | P31: =DebtAccr!P17 -> 0 | Q31: =DebtAccr!Q17 -> 0 | R31: =DebtAccr!R17 -> 0 | S31: =DebtAccr!S17 -> 0 | T31: =DebtAccr!T17 -> 0 | U31: =DebtAccr!U17 -> 0 | V31: =DebtAccr!V17 -> 0 | W31: =DebtAccr!W17 -> 0 | X31: =DebtAccr!X17 -> 0 | Y31: =DebtAccr!Y17 -> 0 | Z31: =DebtAccr!Z17 -> 0 | AA31: =DebtAccr!AA17 -> 0 | AB31: =DebtAccr!AB17 -> 0 | AC31: =DebtAccr!AC17 -> 0 | AD31: =DebtAccr!AD17 -> 0 | AE31: =DebtAccr!AE17 -> 0 | AF31: =DebtAccr!AF17 -> 0 | AG31: =DebtAccr!AG17 -> 0 | AH31: =DebtAccr!AH17 -> 0 | AI31: =DebtAccr!AI17 -> 0 | AJ31: =DebtAccr!AJ17 -> 0 | AK31: =DebtAccr!AK17 -> 0 | AL31: =DebtAccr!AL17 -> 0 | AM31: =DebtAccr!AM17 -> 0 | AN31: =DebtAccr!AN17 -> 0 | AO31: =DebtAccr!AO17 -> 0
K32: =IF(K19=TRUE,D34,"") -> 
K33: =IF(K20=TRUE,D33,"") -> 
K34: =IF(K21=TRUE,D32,"") -> 
D35: =DisS!H42 -> 0 | E35: Displaced Spending Accretion Rate | J35: Pension Displaced Funding | L35: =DebtAccr!L$13 -> 0 | M35: =DebtAccr!M$13 -> 0 | N35: =DebtAccr!N$13 -> 0 | O35: =DebtAccr!O$13 -> 0 | P35: =DebtAccr!P$13 -> 0 | Q35: =DebtAccr!Q$13 -> 0 | R35: =DebtAccr!R$13 -> 0 | S35: =DebtAccr!S$13 -> 0 | T35: =DebtAccr!T$13 -> 0 | U35: =DebtAccr!U$13 -> 0 | V35: =DebtAccr!V$13 -> 0 | W35: =DebtAccr!W$13 -> 0 | X35: =DebtAccr!X$13 -> 0 | Y35: =DebtAccr!Y$13 -> 0 | Z35: =DebtAccr!Z$13 -> 0 | AA35: =DebtAccr!AA$13 -> 0 | AB35: =DebtAccr!AB$13 -> 0 | AC35: =DebtAccr!AC$13 -> 0 | AD35: =DebtAccr!AD$13 -> 0 | AE35: =DebtAccr!AE$13 -> 0 | AF35: =DebtAccr!AF$13 -> 0 | AG35: =DebtAccr!AG$13 -> 0 | AH35: =DebtAccr!AH$13 -> 0 | AI35: =DebtAccr!AI$13 -> 0 | AJ35: =DebtAccr!AJ$13 -> 0 | AK35: =DebtAccr!AK$13 -> 0 | AL35: =DebtAccr!AL$13 -> 0 | AM35: =DebtAccr!AM$13 -> 0 | AN35: =DebtAccr!AN$13 -> 0 | AO35: =DebtAccr!AO$13 -> 0
K36: =IF(K23=TRUE,D30,"") -> 
J37: Deferred Maintenance Principal | L37: =DebtAccr!L12 -> 0 | M37: =DebtAccr!M12 -> 0 | N37: =DebtAccr!N12 -> 0 | O37: =DebtAccr!O12 -> 0 | P37: =DebtAccr!P12 -> 0 | Q37: =DebtAccr!Q12 -> 0 | R37: =DebtAccr!R12 -> 0 | S37: =DebtAccr!S12 -> 0 | T37: =DebtAccr!T12 -> 0 | U37: =DebtAccr!U12 -> 0 | V37: =DebtAccr!V12 -> 0 | W37: =DebtAccr!W12 -> 0 | X37: =DebtAccr!X12 -> 0 | Y37: =DebtAccr!Y12 -> 0 | Z37: =DebtAccr!Z12 -> 0 | AA37: =DebtAccr!AA12 -> 0 | AB37: =DebtAccr!AB12 -> 0 | AC37: =DebtAccr!AC12 -> 0 | AD37: =DebtAccr!AD12 -> 0 | AE37: =DebtAccr!AE12 -> 0 | AF37: =DebtAccr!AF12 -> 0 | AG37: =DebtAccr!AG12 -> 0 | AH37: =DebtAccr!AH12 -> 0 | AI37: =DebtAccr!AI12 -> 0 | AJ37: =DebtAccr!AJ12 -> 0 | AK37: =DebtAccr!AK12 -> 0 | AL37: =DebtAccr!AL12 -> 0 | AM37: =DebtAccr!AM12 -> 0 | AN37: =DebtAccr!AN12 -> 0 | AO37: =DebtAccr!AO12 -> 0
J38: Base Debt Balance | L38: =DebtAccr!L11 -> 9.666666667e-08 | M38: =DebtAccr!M11 -> 9.333333333e-08 | N38: =DebtAccr!N11 -> 9e-08 | O38: =DebtAccr!O11 -> 8.666666667e-08 | P38: =DebtAccr!P11 -> 8.333333333e-08 | Q38: =DebtAccr!Q11 -> 8e-08 | R38: =DebtAccr!R11 -> 7.666666667e-08 | S38: =DebtAccr!S11 -> 7.333333333e-08 | T38: =DebtAccr!T11 -> 7e-08 | U38: =DebtAccr!U11 -> 6.666666667e-08 | V38: =DebtAccr!V11 -> 6.333333333e-08 | W38: =DebtAccr!W11 -> 6e-08 | X38: =DebtAccr!X11 -> 5.666666667e-08 | Y38: =DebtAccr!Y11 -> 5.333333333e-08 | Z38: =DebtAccr!Z11 -> 5e-08 | AA38: =DebtAccr!AA11 -> 4.666666667e-08 | AB38: =DebtAccr!AB11 -> 4.333333333e-08 | AC38: =DebtAccr!AC11 -> 4e-08 | AD38: =DebtAccr!AD11 -> 3.666666667e-08 | AE38: =DebtAccr!AE11 -> 3.333333333e-08 | AF38: =DebtAccr!AF11 -> 3e-08 | AG38: =DebtAccr!AG11 -> 2.666666667e-08 | AH38: =DebtAccr!AH11 -> 2.333333333e-08 | AI38: =DebtAccr!AI11 -> 2e-08 | AJ38: =DebtAccr!AJ11 -> 1.666666667e-08 | AK38: =DebtAccr!AK11 -> 1.333333333e-08 | AL38: =DebtAccr!AL11 -> 1e-08 | AM38: =DebtAccr!AM11 -> 6.666666667e-09 | AN38: =DebtAccr!AN11 -> 3.333333333e-09 | AO38: =DebtAccr!AO11 -> -1.571643164e-23

Sheet Tech2 (hidden)
A1: Technical 2: Alternative Debt and CCBF
A2: Inputs
J3: Timelines and Graphic Sum
D4: Value
K5: 0 | L5: =K5+1 -> 1 | M5: =L5+1 -> 2 | N5: 3 | O5: 4 | P5: 5 | Q5: 6 | R5: 7 | S5: 8 | T5: 9 | U5: 10 | V5: 11 | W5: 12 | X5: 13 | Y5: 14 | Z5: 15 | AA5: 16 | AB5: 17 | AC5: 18 | AD5: 19 | AE5: 20 | AF5: 21 | AG5: 22 | AH5: 23 | AI5: 24 | AJ5: 25 | AK5: 26 | AL5: 27 | AM5: 28 | AN5: 29 | AO5: 30
D7: =IF(Alt!G35=TRUE,0.01,100) -> 0.01 | E7: Initial Alt Debt Capitalization
K8: =Tech1!K8 -> 0 | L8: =Tech1!L8 -> 0 | M8: =Tech1!M8 -> 0 | N8: =Tech1!N8 -> 0 | O8: =Tech1!O8 -> 0 | P8: =Tech1!P8 -> 0 | Q8: =Tech1!Q8 -> 0 | R8: =Tech1!R8 -> 0 | S8: =Tech1!S8 -> 0 | T8: =Tech1!T8 -> 0 | U8: =Tech1!U8 -> 0 | V8: =Tech1!V8 -> 0 | W8: =Tech1!W8 -> 0 | X8: =Tech1!X8 -> 0 | Y8: =Tech1!Y8 -> 0 | Z8: =Tech1!Z8 -> 0 | AA8: =Tech1!AA8 -> 0 | AB8: =Tech1!AB8 -> 0 | AC8: =Tech1!AC8 -> 0 | AD8: =Tech1!AD8 -> 0 | AE8: =Tech1!AE8 -> 0 | AF8: =Tech1!AF8 -> 0 | AG8: =Tech1!AG8 -> 0 | AH8: =Tech1!AH8 -> 0 | AI8: =Tech1!AI8 -> 0 | AJ8: =Tech1!AJ8 -> 0 | AK8: =Tech1!AK8 -> 0 | AL8: =Tech1!AL8 -> 0 | AM8: =Tech1!AM8 -> 0 | AN8: =Tech1!AN8 -> 0 | AO8: =Tech1!AO8 -> 0
D9: =Tech1!D9 -> 30 | E9: Alt Debt Term and Project Life
D10: =Alt!H41 -> 0 | E10: Alt Debt2 Interest Rate | J10: Green Bar | K10: 200 | L10: =IF(L8=1,$K$10,0) -> 0 | M10: =IF(M8=1,$K$10,0) -> 0 | N10: 0 | O10: 0 | P10: 0 | Q10: 0 | R10: 0 | S10: 0 | T10: 0 | U10: 0 | V10: 0 | W10: 0 | X10: 0 | Y10: 0 | Z10: 0 | AA10: 0 | AB10: 0 | AC10: 0 | AD10: 0 | AE10: 0 | AF10: 0 | AG10: 0 | AH10: 0 | AI10: 0 | AJ10: 0 | AK10: 0 | AL10: 0 | AM10: 0 | AN10: 0 | AO10: 0
J11: Red Bar | K11: 200 | L11: =IF(L8=-1,$K$11,0) -> 0 | M11: =IF(M8=-1,$K$11,0) -> 0 | N11: 0 | O11: 0 | P11: 0 | Q11: 0 | R11: 0 | S11: 0 | T11: 0 | U11: 0 | V11: 0 | W11: 0 | X11: 0 | Y11: 0 | Z11: 0 | AA11: 0 | AB11: 0 | AC11: 0 | AD11: 0 | AE11: 0 | AF11: 0 | AG11: 0 | AH11: 0 | AI11: 0 | AJ11: 0 | AK11: 0 | AL11: 0 | AM11: 0 | AN11: 0 | AO11: 0
D12: =Alt!H28 -> 0 | E12: Alt Annual Maintenance
D13: =Alt!H14 -> 0 | E13: Alt Annual Operations | J13: CCBF Series
J14: Real Fin Cost | K14: =IF($D$7<1,FALSE,TRUE) -> FALSE | L14: =IF($K$14=TRUE,L29,0) -> 0 | M14: =IF($K$14=TRUE,M29,0) -> 0 | N14: =IF($K$14=TRUE,N29,0) -> 0 | O14: 0 | P14: 0 | Q14: 0 | R14: 0 | S14: 0 | T14: 0 | U14: 0 | V14: 0 | W14: 0 | X14: 0 | Y14: 0 | Z14: 0 | AA14: 0 | AB14: 0 | AC14: 0 | AD14: 0 | AE14: 0 | AF14: 0 | AG14: 0 | AH14: 0 | AI14: 0 | AJ14: 0 | AK14: 0 | AL14: 0 | AM14: 0 | AN14: 0 | AO14: 0
J15: WACF | K15: =IF($D$7<1,FALSE,TRUE) -> FALSE | L15: =IF($K$14=TRUE,L30,0) -> 0 | M15: =IF($K$14=TRUE,M30,0) -> 0 | N15: =IF($K$14=TRUE,N30,0) -> 0 | O15: 0 | P15: 0 | Q15: 0 | R15: 0 | S15: 0 | T15: 0 | U15: 0 | V15: 0 | W15: 0 | X15: 0 | Y15: 0 | Z15: 0 | AA15: 0 | AB15: 0 | AC15: 0 | AD15: 0 | AE15: 0 | AF15: 0 | AG15: 0 | AH15: 0 | AI15: 0 | AJ15: 0 | AK15: 0 | AL15: 0 | AM15: 0 | AN15: 0 | AO15: 0
J16: Unconstrained | L16: =IF(L10=0,0,L10-SUM(L18:L25)) -> 0 | M16: =IF(M10=0,0,M10-SUM(M18:M25)) -> 0 | N16: 0 | O16: 0 | P16: 0 | Q16: 0 | R16: 0 | S16: 0 | T16: 0 | U16: 0 | V16: 0 | W16: 0 | X16: 0 | Y16: 0 | Z16: 0 | AA16: 0 | AB16: 0 | AC16: 0 | AD16: 0 | AE16: 0 | AF16: 0 | AG16: 0 | AH16: 0 | AI16: 0 | AJ16: 0 | AK16: 0 | AL16: 0 | AM16: 0 | AN16: 0 | AO16: 0
J17: Constrained | L17: =IF(L11=0,0,L11-SUM(L18:L25)) -> 0 | M17: =IF(M11=0,0,M11-SUM(M18:M25)) -> 0 | N17: 0 | O17: 0 | P17: 0 | Q17: 0 | R17: 0 | S17: 0 | T17: 0 | U17: 0 | V17: 0 | W17: 0 | X17: 0 | Y17: 0 | Z17: 0 | AA17: 0 | AB17: 0 | AC17: 0 | AD17: 0 | AE17: 0 | AF17: 0 | AG17: 0 | AH17: 0 | AI17: 0 | AJ17: 0 | AK17: 0 | AL17: 0 | AM17: 0 | AN17: 0 | AO17: 0
J18: Acrrued CyCost | K18: =Tech1!K18 -> TRUE | L18: =L31 -> 0 | M18: =M31 -> 0 | N18: 0 | O18: 0 | P18: 0 | Q18: 0 | R18: 0 | S18: 0 | T18: 0 | U18: 0 | V18: 0 | W18: 0 | X18: 0 | Y18: 0 | Z18: 0 | AA18: 0 | AB18: 0 | AC18: 0 | AD18: 0 | AE18: 0 | AF18: 0 | AG18: 0 | AH18: 0 | AI18: 0 | AJ18: 0 | AK18: 0 | AL18: 0 | AM18: 0 | AN18: 0 | AO18: 0
J19: [spare]
J20: [spare]
J21: [spare]
J22: Disp Spend | K22: =Tech1!K22 -> TRUE | L22: =L35 -> 0 | M22: =M35 -> 0 | N22: 0 | O22: 0 | P22: 0 | Q22: 0 | R22: 0 | S22: 0 | T22: 0 | U22: 0 | V22: 0 | W22: 0 | X22: 0 | Y22: 0 | Z22: 0 | AA22: 0 | AB22: 0 | AC22: 0 | AD22: 0 | AE22: 0 | AF22: 0 | AG22: 0 | AH22: 0 | AI22: 0 | AJ22: 0 | AK22: 0 | AL22: 0 | AM22: 0 | AN22: 0 | AO22: 0
D23: =CCBF!H41 -> 0.0375 | E23: CCBF Interest Rate | J23: [spare]
D24: =CCBF!H14 -> 0 | E24: CCBF Upper Limit | J24: CCBF | K24: =Tech1!K24 -> TRUE | L24: =IF($K24=TRUE,L37,0) -> 0 | M24: =IF($K24=TRUE,M37,0) -> 0 | N24: 0 | O24: 0 | P24: 0 | Q24: 0 | R24: 0 | S24: 0 | T24: 0 | U24: 0 | V24: 0 | W24: 0 | X24: 0 | Y24: 0 | Z24: 0 | AA24: 0 | AB24: 0 | AC24: 0 | AD24: 0 | AE24: 0 | AF24: 0 | AG24: 0 | AH24: 0 | AI24: 0 | AJ24: 0 | AK24: 0 | AL24: 0 | AM24: 0 | AN24: 0 | AO24: 0
D25: =CCBF!H28 -> 3 | E25: CCBF Max Amortization Period (UpLimit Uncon) | J25: Alt Debt | K25: =Tech1!K25 -> TRUE | L25: =IF($K25=TRUE,L38,0) -> 0.009666666667 | M25: =IF($K25=TRUE,M38,0) -> 0.009333333333 | N25: 0.009 | O25: 0.008666666667 | P25: 0.008333333333 | Q25: 0.008 | R25: 0.007666666667 | S25: 0.007333333333 | T25: 0.007 | U25: 0.006666666667 | V25: 0.006333333333 | W25: 0.006 | X25: 0.005666666667 | Y25: 0.005333333333 | Z25: 0.005 | AA25: 0.004666666667 | AB25: 0.004333333333 | AC25: 0.004 | AD25: 0.003666666667 | AE25: 0.003333333333 | AF25: 0.003 | AG25: 0.002666666667 | AH25: 0.002333333333 | AI25: 0.002 | AJ25: 0.001666666667 | AK25: 0.001333333333 | AL25: 0.001 | AM25: 0.0006666666667 | AN25: 0.0003333333333 | AO25: 4.662069342e-18
J28: Active Debt CCBF Inputs
J29: Realized Financial Cost | L29: =DebtCCBF!J20 -> 0 | M29: =$L$29 -> 0 | N29: =$L$29 -> 0 | O29: 0 | P29: 0 | Q29: 0 | R29: 0 | S29: 0 | T29: 0 | U29: 0 | V29: 0 | W29: 0 | X29: 0 | Y29: 0 | Z29: 0 | AA29: 0 | AB29: 0 | AC29: 0 | AD29: 0 | AE29: 0 | AF29: 0 | AG29: 0 | AH29: 0 | AI29: 0 | AJ29: 0 | AK29: 0 | AL29: 0 | AM29: 0 | AN29: 0 | AO29: 0
J30: Weighted Average Cost Fin | L30: =DebtCCBF!L27 -> 0 | M30: =DebtCCBF!M27 -> 0 | N30: =DebtCCBF!N27 -> 0 | O30: =DebtCCBF!O27 -> 0 | P30: =DebtCCBF!P27 -> 0 | Q30: =DebtCCBF!Q27 -> 0 | R30: =DebtCCBF!R27 -> 0 | S30: =DebtCCBF!S27 -> 0 | T30: =DebtCCBF!T27 -> 0 | U30: =DebtCCBF!U27 -> 0 | V30: =DebtCCBF!V27 -> 0 | W30: =DebtCCBF!W27 -> 0 | X30: =DebtCCBF!X27 -> 0 | Y30: =DebtCCBF!Y27 -> 0 | Z30: =DebtCCBF!Z27 -> 0 | AA30: =DebtCCBF!AA27 -> 0 | AB30: =DebtCCBF!AB27 -> 0 | AC30: =DebtCCBF!AC27 -> 0 | AD30: =DebtCCBF!AD27 -> 0 | AE30: =DebtCCBF!AE27 -> 0 | AF30: =DebtCCBF!AF27 -> 0 | AG30: =DebtCCBF!AG27 -> 0 | AH30: =DebtCCBF!AH27 -> 0 | AI30: =DebtCCBF!AI27 -> 0 | AJ30: =DebtCCBF!AJ27 -> 0 | AK30: =DebtCCBF!AK27 -> 0 | AL30: =DebtCCBF!AL27 -> 0 | AM30: =DebtCCBF!AM27 -> 0 | AN30: =DebtCCBF!AN27 -> 0 | AO30: =DebtCCBF!AO27 -> 0
J31: Accrual Cost | L31: =DebtCCBF!L17 -> 0 | M31: =DebtCCBF!M17 -> 0 | N31: =DebtCCBF!N17 -> 0 | O31: =DebtCCBF!O17 -> 0 | P31: =DebtCCBF!P17 -> 0 | Q31: =DebtCCBF!Q17 -> 0 | R31: =DebtCCBF!R17 -> 0 | S31: =DebtCCBF!S17 -> 0 | T31: =DebtCCBF!T17 -> 0 | U31: =DebtCCBF!U17 -> 0 | V31: =DebtCCBF!V17 -> 0 | W31: =DebtCCBF!W17 -> 0 | X31: =DebtCCBF!X17 -> 0 | Y31: =DebtCCBF!Y17 -> 0 | Z31: =DebtCCBF!Z17 -> 0 | AA31: =DebtCCBF!AA17 -> 0 | AB31: =DebtCCBF!AB17 -> 0 | AC31: =DebtCCBF!AC17 -> 0 | AD31: =DebtCCBF!AD17 -> 0 | AE31: =DebtCCBF!AE17 -> 0 | AF31: =DebtCCBF!AF17 -> 0 | AG31: =DebtCCBF!AG17 -> 0 | AH31: =DebtCCBF!AH17 -> 0 | AI31: =DebtCCBF!AI17 -> 0 | AJ31: =DebtCCBF!AJ17 -> 0 | AK31: =DebtCCBF!AK17 -> 0 | AL31: =DebtCCBF!AL17 -> 0 | AM31: =DebtCCBF!AM17 -> 0 | AN31: =DebtCCBF!AN17 -> 0 | AO31: =DebtCCBF!AO17 -> 0
J32: [spare]
J33: [spare]
J34: [spare]
J35: Disp Spend | L35: =DebtCCBF!L$13 -> 0 | M35: =DebtCCBF!M$13 -> 0 | N35: =DebtCCBF!N$13 -> 0 | O35: =DebtCCBF!O$13 -> 0 | P35: =DebtCCBF!P$13 -> 0 | Q35: =DebtCCBF!Q$13 -> 0 | R35: =DebtCCBF!R$13 -> 0 | S35: =DebtCCBF!S$13 -> 0 | T35: =DebtCCBF!T$13 -> 0 | U35: =DebtCCBF!U$13 -> 0 | V35: =DebtCCBF!V$13 -> 0 | W35: =DebtCCBF!W$13 -> 0 | X35: =DebtCCBF!X$13 -> 0 | Y35: =DebtCCBF!Y$13 -> 0 | Z35: =DebtCCBF!Z$13 -> 0 | AA35: =DebtCCBF!AA$13 -> 0 | AB35: =DebtCCBF!AB$13 -> 0 | AC35: =DebtCCBF!AC$13 -> 0 | AD35: =DebtCCBF!AD$13 -> 0 | AE35: =DebtCCBF!AE$13 -> 0 | AF35: =DebtCCBF!AF$13 -> 0 | AG35: =DebtCCBF!AG$13 -> 0 | AH35: =DebtCCBF!AH$13 -> 0 | AI35: =DebtCCBF!AI$13 -> 0 | AJ35: =DebtCCBF!AJ$13 -> 0 | AK35: =DebtCCBF!AK$13 -> 0 | AL35: =DebtCCBF!AL$13 -> 0 | AM35: =DebtCCBF!AM$13 -> 0 | AN35: =DebtCCBF!AN$13 -> 0 | AO35: =DebtCCBF!AO$13 -> 0
D36: =VfM!H42 -> 0 | E36: Discount Rate: VfM Chart | J36: [spare]
D37: 1 | E37: VfM Start | J37: CCBF Principal | L37: =DebtCCBF!L12 -> 0 | M37: =DebtCCBF!M12 -> 0 | N37: =DebtCCBF!N12 -> 0 | O37: =DebtCCBF!O12 -> 0 | P37: =DebtCCBF!P12 -> 0 | Q37: =DebtCCBF!Q12 -> 0 | R37: =DebtCCBF!R12 -> 0 | S37: =DebtCCBF!S12 -> 0 | T37: =DebtCCBF!T12 -> 0 | U37: =DebtCCBF!U12 -> 0 | V37: =DebtCCBF!V12 -> 0 | W37: =DebtCCBF!W12 -> 0 | X37: =DebtCCBF!X12 -> 0 | Y37: =DebtCCBF!Y12 -> 0 | Z37: =DebtCCBF!Z12 -> 0 | AA37: =DebtCCBF!AA12 -> 0 | AB37: =DebtCCBF!AB12 -> 0 | AC37: =DebtCCBF!AC12 -> 0 | AD37: =DebtCCBF!AD12 -> 0 | AE37: =DebtCCBF!AE12 -> 0 | AF37: =DebtCCBF!AF12 -> 0 | AG37: =DebtCCBF!AG12 -> 0 | AH37: =DebtCCBF!AH12 -> 0 | AI37: =DebtCCBF!AI12 -> 0 | AJ37: =DebtCCBF!AJ12 -> 0 | AK37: =DebtCCBF!AK12 -> 0 | AL37: =DebtCCBF!AL12 -> 0 | AM37: =DebtCCBF!AM12 -> 0 | AN37: =DebtCCBF!AN12 -> 0 | AO37: =DebtCCBF!AO12 -> 0
D38: =VfM!H28 -> 30 | E38: VfM End | J38: Base Debt Balance | L38: =DebtCCBF!L11 -> 0.009666666667 | M38: =DebtCCBF!M11 -> 0.009333333333 | N38: =DebtCCBF!N11 -> 0.009 | O38: =DebtCCBF!O11 -> 0.008666666667 | P38: =DebtCCBF!P11 -> 0.008333333333 | Q38: =DebtCCBF!Q11 -> 0.008 | R38: =DebtCCBF!R11 -> 0.007666666667 | S38: =DebtCCBF!S11 -> 0.007333333333 | T38: =DebtCCBF!T11 -> 0.007 | U38: =DebtCCBF!U11 -> 0.006666666667 | V38: =DebtCCBF!V11 -> 0.006333333333 | W38: =DebtCCBF!W11 -> 0.006 | X38: =DebtCCBF!X11 -> 0.005666666667 | Y38: =DebtCCBF!Y11 -> 0.005333333333 | Z38: =DebtCCBF!Z11 -> 0.005 | AA38: =DebtCCBF!AA11 -> 0.004666666667 | AB38: =DebtCCBF!AB11 -> 0.004333333333 | AC38: =DebtCCBF!AC11 -> 0.004 | AD38: =DebtCCBF!AD11 -> 0.003666666667 | AE38: =DebtCCBF!AE11 -> 0.003333333333 | AF38: =DebtCCBF!AF11 -> 0.003 | AG38: =DebtCCBF!AG11 -> 0.002666666667 | AH38: =DebtCCBF!AH11 -> 0.002333333333 | AI38: =DebtCCBF!AI11 -> 0.002 | AJ38: =DebtCCBF!AJ11 -> 0.001666666667 | AK38: =DebtCCBF!AK11 -> 0.001333333333 | AL38: =DebtCCBF!AL11 -> 0.001 | AM38: =DebtCCBF!AM11 -> 0.0006666666667 | AN38: =DebtCCBF!AN11 -> 0.0003333333333 | AO38: =DebtCCBF!AO11 -> 4.662069342e-18
J40: VfM Payoff Year | L40: =IF($D$38=L5,1,0) -> 0 | M40: =IF($D$38=M5,1,0) -> 0 | N40: 0 | O40: 0 | P40: 0 | Q40: 0 | R40: 0 | S40: 0 | T40: 0 | U40: 0 | V40: 0 | W40: 0 | X40: 0 | Y40: 0 | Z40: 0 | AA40: 0 | AB40: 0 | AC40: 0 | AD40: 0 | AE40: 0 | AF40: 0 | AG40: 0 | AH40: 0 | AI40: 0 | AJ40: 0 | AK40: 0 | AL40: 0 | AM40: 0 | AN40: 0 | AO40: 1
J41: VfM EndYears | L41: =IF(L5<=$D$38,1,0) -> 1 | M41: =IF(M5<=$D$38,1,0) -> 1 | N41: 1 | O41: 1 | P41: 1 | Q41: 1 | R41: 1 | S41: 1 | T41: 1 | U41: 1 | V41: 1 | W41: 1 | X41: 1 | Y41: 1 | Z41: 1 | AA41: 1 | AB41: 1 | AC41: 1 | AD41: 1 | AE41: 1 | AF41: 1 | AG41: 1 | AH41: 1 | AI41: 1 | AJ41: 1 | AK41: 1 | AL41: 1 | AM41: 1 | AN41: 1 | AO41: 1
F42: VfM Chart Input
C43: VfM Chart Series CCBF | F43: Standard | G43: CCBF | J43: Standard | K43: Alternative
C44: Base Debt2 Amortization | E44: Debt Service | F44: =IF(J44>1,J44," ") ->  | I44: Debt Service | J44: =K51 -> 1e-07 | K44: =NPV($D$36,L44:AO44) -> 0.01 | L44: =(DebtCCBF!L30*L$41)+(L$38*L40) -> 0.0003333333333 | M44: =(DebtCCBF!M30*M$41)+(M$38*M40) -> 0.0003333333333 | N44: =(DebtCCBF!N30*N$41)+(N$38*N40) -> 0.0003333333333 | O44: =(DebtCCBF!O30*O$41)+(O$38*O40) -> 0.0003333333333 | P44: =(DebtCCBF!P30*P$41)+(P$38*P40) -> 0.0003333333333 | Q44: =(DebtCCBF!Q30*Q$41)+(Q$38*Q40) -> 0.0003333333333 | R44: =(DebtCCBF!R30*R$41)+(R$38*R40) -> 0.0003333333333 | S44: =(DebtCCBF!S30*S$41)+(S$38*S40) -> 0.0003333333333 | T44: =(DebtCCBF!T30*T$41)+(T$38*T40) -> 0.0003333333333 | U44: =(DebtCCBF!U30*U$41)+(U$38*U40) -> 0.0003333333333 | V44: =(DebtCCBF!V30*V$41)+(V$38*V40) -> 0.0003333333333 | W44: =(DebtCCBF!W30*W$41)+(W$38*W40) -> 0.0003333333333 | X44: =(DebtCCBF!X30*X$41)+(X$38*X40) -> 0.0003333333333 | Y44: =(DebtCCBF!Y30*Y$41)+(Y$38*Y40) -> 0.0003333333333 | Z44: =(DebtCCBF!Z30*Z$41)+(Z$38*Z40) -> 0.0003333333333 | AA44: =(DebtCCBF!AA30*AA$41)+(AA$38*AA40) -> 0.0003333333333 | AB44: =(DebtCCBF!AB30*AB$41)+(AB$38*AB40) -> 0.0003333333333 | AC44: =(DebtCCBF!AC30*AC$41)+(AC$38*AC40) -> 0.0003333333333 | AD44: =(DebtCCBF!AD30*AD$41)+(AD$38*AD40) -> 0.0003333333333 | AE44: =(DebtCCBF!AE30*AE$41)+(AE$38*AE40) -> 0.0003333333333 | AF44: =(DebtCCBF!AF30*AF$41)+(AF$38*AF40) -> 0.0003333333333 | AG44: =(DebtCCBF!AG30*AG$41)+(AG$38*AG40) -> 0.0003333333333 | AH44: =(DebtCCBF!AH30*AH$41)+(AH$38*AH40) -> 0.0003333333333 | AI44: =(DebtCCBF!AI30*AI$41)+(AI$38*AI40) -> 0.0003333333333 | AJ44: =(DebtCCBF!AJ30*AJ$41)+(AJ$38*AJ40) -> 0.0003333333333 | AK44: =(DebtCCBF!AK30*AK$41)+(AK$38*AK40) -> 0.0003333333333 | AL44: =(DebtCCBF!AL30*AL$41)+(AL$38*AL40) -> 0.0003333333333 | AM44: =(DebtCCBF!AM30*AM$41)+(AM$38*AM40) -> 0.0003333333333 | AN44: =(DebtCCBF!AN30*AN$41)+(AN$38*AN40) -> 0.0003333333333 | AO44: =(DebtCCBF!AO30*AO$41)+(AO$38*AO40) -> 0.0003333333333
C45: Operations | E45: Operations | I45: Operations | J45: =K52 -> 0 | K45: =NPV($D$36,L45:AO45) -> 0 | L45: =DebtCCBF!L31*L$41 -> 0 | M45: =DebtCCBF!M31*M$41 -> 0 | N45: =DebtCCBF!N31*N$41 -> 0 | O45: =DebtCCBF!O31*O$41 -> 0 | P45: =DebtCCBF!P31*P$41 -> 0 | Q45: =DebtCCBF!Q31*Q$41 -> 0 | R45: =DebtCCBF!R31*R$41 -> 0 | S45: =DebtCCBF!S31*S$41 -> 0 | T45: =DebtCCBF!T31*T$41 -> 0 | U45: =DebtCCBF!U31*U$41 -> 0 | V45: =DebtCCBF!V31*V$41 -> 0 | W45: =DebtCCBF!W31*W$41 -> 0 | X45: =DebtCCBF!X31*X$41 -> 0 | Y45: =DebtCCBF!Y31*Y$41 -> 0 | Z45: =DebtCCBF!Z31*Z$41 -> 0 | AA45: =DebtCCBF!AA31*AA$41 -> 0 | AB45: =DebtCCBF!AB31*AB$41 -> 0 | AC45: =DebtCCBF!AC31*AC$41 -> 0 | AD45: =DebtCCBF!AD31*AD$41 -> 0 | AE45: =DebtCCBF!AE31*AE$41 -> 0 | AF45: =DebtCCBF!AF31*AF$41 -> 0 | AG45: =DebtCCBF!AG31*AG$41 -> 0 | AH45: =DebtCCBF!AH31*AH$41 -> 0 | AI45: =DebtCCBF!AI31*AI$41 -> 0 | AJ45: =DebtCCBF!AJ31*AJ$41 -> 0 | AK45: =DebtCCBF!AK31*AK$41 -> 0 | AL45: =DebtCCBF!AL31*AL$41 -> 0 | AM45: =DebtCCBF!AM31*AM$41 -> 0 | AN45: =DebtCCBF!AN31*AN$41 -> 0 | AO45: =DebtCCBF!AO31*AO$41 -> 0
C46: Maintenance | E46: Maintenance | I46: Maintenance | J46: 0 | K46: 0 | L46: =DebtCCBF!L32*L$41 -> 0 | M46: =DebtCCBF!M32*M$41 -> 0 | N46: =DebtCCBF!N32*N$41 -> 0 | O46: =DebtCCBF!O32*O$41 -> 0 | P46: =DebtCCBF!P32*P$41 -> 0 | Q46: =DebtCCBF!Q32*Q$41 -> 0 | R46: =DebtCCBF!R32*R$41 -> 0 | S46: =DebtCCBF!S32*S$41 -> 0 | T46: =DebtCCBF!T32*T$41 -> 0 | U46: =DebtCCBF!U32*U$41 -> 0 | V46: =DebtCCBF!V32*V$41 -> 0 | W46: =DebtCCBF!W32*W$41 -> 0 | X46: =DebtCCBF!X32*X$41 -> 0 | Y46: =DebtCCBF!Y32*Y$41 -> 0 | Z46: =DebtCCBF!Z32*Z$41 -> 0 | AA46: =DebtCCBF!AA32*AA$41 -> 0 | AB46: =DebtCCBF!AB32*AB$41 -> 0 | AC46: =DebtCCBF!AC32*AC$41 -> 0 | AD46: =DebtCCBF!AD32*AD$41 -> 0 | AE46: =DebtCCBF!AE32*AE$41 -> 0 | AF46: =DebtCCBF!AF32*AF$41 -> 0 | AG46: =DebtCCBF!AG32*AG$41 -> 0 | AH46: =DebtCCBF!AH32*AH$41 -> 0 | AI46: =DebtCCBF!AI32*AI$41 -> 0 | AJ46: =DebtCCBF!AJ32*AJ$41 -> 0 | AK46: =DebtCCBF!AK32*AK$41 -> 0 | AL46: =DebtCCBF!AL32*AL$41 -> 0 | AM46: =DebtCCBF!AM32*AM$41 -> 0 | AN46: =DebtCCBF!AN32*AN$41 -> 0 | AO46: =DebtCCBF!AO32*AO$41 -> 0
C47: Displaced Spending | E47: Cyclical Cost | F47: =IF(ABS(J47)>1,J47," ") ->  | G47: =IF(ABS(K47)>1,K47," ") ->  | I47: Cyclical Cost | J47: =K54 -> 0 | K47: 0 | L47: =DebtCCBF!L33*L$41+((L$37+L$35+L$31)*L$40) -> 0 | M47: =DebtCCBF!M33*M$41+((M$37+M$35+M$31)*M$40) -> 0 | N47: =DebtCCBF!N33*N$41+((N$37+N$35+N$31)*N$40) -> 0 | O47: =DebtCCBF!O33*O$41+((O$37+O$35+O$31)*O$40) -> 0 | P47: =DebtCCBF!P33*P$41+((P$37+P$35+P$31)*P$40) -> 0 | Q47: =DebtCCBF!Q33*Q$41+((Q$37+Q$35+Q$31)*Q$40) -> 0 | R47: =DebtCCBF!R33*R$41+((R$37+R$35+R$31)*R$40) -> 0 | S47: =DebtCCBF!S33*S$41+((S$37+S$35+S$31)*S$40) -> 0 | T47: =DebtCCBF!T33*T$41+((T$37+T$35+T$31)*T$40) -> 0 | U47: =DebtCCBF!U33*U$41+((U$37+U$35+U$31)*U$40) -> 0 | V47: =DebtCCBF!V33*V$41+((V$37+V$35+V$31)*V$40) -> 0 | W47: =DebtCCBF!W33*W$41+((W$37+W$35+W$31)*W$40) -> 0 | X47: =DebtCCBF!X33*X$41+((X$37+X$35+X$31)*X$40) -> 0 | Y47: =DebtCCBF!Y33*Y$41+((Y$37+Y$35+Y$31)*Y$40) -> 0 | Z47: =DebtCCBF!Z33*Z$41+((Z$37+Z$35+Z$31)*Z$40) -> 0 | AA47: =DebtCCBF!AA33*AA$41+((AA$37+AA$35+AA$31)*AA$40) -> 0 | AB47: =DebtCCBF!AB33*AB$41+((AB$37+AB$35+AB$31)*AB$40) -> 0 | AC47: =DebtCCBF!AC33*AC$41+((AC$37+AC$35+AC$31)*AC$40) -> 0 | AD47: =DebtCCBF!AD33*AD$41+((AD$37+AD$35+AD$31)*AD$40) -> 0 | AE47: =DebtCCBF!AE33*AE$41+((AE$37+AE$35+AE$31)*AE$40) -> 0 | AF47: =DebtCCBF!AF33*AF$41+((AF$37+AF$35+AF$31)*AF$40) -> 0 | AG47: =DebtCCBF!AG33*AG$41+((AG$37+AG$35+AG$31)*AG$40) -> 0 | AH47: =DebtCCBF!AH33*AH$41+((AH$37+AH$35+AH$31)*AH$40) -> 0 | AI47: =DebtCCBF!AI33*AI$41+((AI$37+AI$35+AI$31)*AI$40) -> 0 | AJ47: =DebtCCBF!AJ33*AJ$41+((AJ$37+AJ$35+AJ$31)*AJ$40) -> 0 | AK47: =DebtCCBF!AK33*AK$41+((AK$37+AK$35+AK$31)*AK$40) -> 0 | AL47: =DebtCCBF!AL33*AL$41+((AL$37+AL$35+AL$31)*AL$40) -> 0 | AM47: =DebtCCBF!AM33*AM$41+((AM$37+AM$35+AM$31)*AM$40) -> 0 | AN47: =DebtCCBF!AN33*AN$41+((AN$37+AN$35+AN$31)*AN$40) -> 0 | AO47: =DebtCCBF!AO33*AO$41+((AO$37+AO$35+AO$31)*AO$40) -> 0
C48: Total Net Cash Flow in Fiscal Context | E48: =IF(J48>1,J48," ") ->  | K48: 0 | L48: =SUM(L44:L47) -> 0.0003333333333 | M48: =SUM(M44:M47) -> 0.0003333333333 | N48: 0.0003333333333 | O48: 0.0003333333333 | P48: 0.0003333333333 | Q48: 0.0003333333333 | R48: 0.0003333333333 | S48: 0.0003333333333 | T48: 0.0003333333333 | U48: 0.0003333333333 | V48: 0.0003333333333 | W48: 0.0003333333333 | X48: 0.0003333333333 | Y48: 0.0003333333333 | Z48: 0.0003333333333 | AA48: 0.0003333333333 | AB48: 0.0003333333333 | AC48: 0.0003333333333 | AD48: 0.0003333333333 | AE48: 0.0003333333333 | AF48: 0.0003333333333 | AG48: 0.0003333333333 | AH48: 0.0003333333333 | AI48: 0.0003333333333 | AJ48: 0.0003333333333 | AK48: 0.0003333333333 | AL48: 0.0003333333333 | AM48: 0.0003333333333 | AN48: 0.0003333333333 | AO48: 0.0003333333333
I49: Total | J49: =K55 -> 1e-07 | K49: =NPV($D$36,L48:AO48) -> 0.01
C50: VfM Chart Series Accr
C51: Base Debt2 Amortization | K51: =NPV($D$36,L51:AO51) -> 1e-07 | L51: =(DebtAccr!L30*L$41)+(L38*L40) -> 3.333333333e-09 | M51: =(DebtAccr!M30*M$41)+(M38*M40) -> 3.333333333e-09 | N51: =(DebtAccr!N30*N$41)+(N38*N40) -> 3.333333333e-09 | O51: =(DebtAccr!O30*O$41)+(O38*O40) -> 3.333333333e-09 | P51: =(DebtAccr!P30*P$41)+(P38*P40) -> 3.333333333e-09 | Q51: =(DebtAccr!Q30*Q$41)+(Q38*Q40) -> 3.333333333e-09 | R51: =(DebtAccr!R30*R$41)+(R38*R40) -> 3.333333333e-09 | S51: =(DebtAccr!S30*S$41)+(S38*S40) -> 3.333333333e-09 | T51: =(DebtAccr!T30*T$41)+(T38*T40) -> 3.333333333e-09 | U51: =(DebtAccr!U30*U$41)+(U38*U40) -> 3.333333333e-09 | V51: =(DebtAccr!V30*V$41)+(V38*V40) -> 3.333333333e-09 | W51: =(DebtAccr!W30*W$41)+(W38*W40) -> 3.333333333e-09 | X51: =(DebtAccr!X30*X$41)+(X38*X40) -> 3.333333333e-09 | Y51: =(DebtAccr!Y30*Y$41)+(Y38*Y40) -> 3.333333333e-09 | Z51: =(DebtAccr!Z30*Z$41)+(Z38*Z40) -> 3.333333333e-09 | AA51: =(DebtAccr!AA30*AA$41)+(AA38*AA40) -> 3.333333333e-09 | AB51: =(DebtAccr!AB30*AB$41)+(AB38*AB40) -> 3.333333333e-09 | AC51: =(DebtAccr!AC30*AC$41)+(AC38*AC40) -> 3.333333333e-09 | AD51: =(DebtAccr!AD30*AD$41)+(AD38*AD40) -> 3.333333333e-09 | AE51: =(DebtAccr!AE30*AE$41)+(AE38*AE40) -> 3.333333333e-09 | AF51: =(DebtAccr!AF30*AF$41)+(AF38*AF40) -> 3.333333333e-09 | AG51: =(DebtAccr!AG30*AG$41)+(AG38*AG40) -> 3.333333333e-09 | AH51: =(DebtAccr!AH30*AH$41)+(AH38*AH40) -> 3.333333333e-09 | AI51: =(DebtAccr!AI30*AI$41)+(AI38*AI40) -> 3.333333333e-09 | AJ51: =(DebtAccr!AJ30*AJ$41)+(AJ38*AJ40) -> 3.333333333e-09 | AK51: =(DebtAccr!AK30*AK$41)+(AK38*AK40) -> 3.333333333e-09 | AL51: =(DebtAccr!AL30*AL$41)+(AL38*AL40) -> 3.333333333e-09 | AM51: =(DebtAccr!AM30*AM$41)+(AM38*AM40) -> 3.333333333e-09 | AN51: =(DebtAccr!AN30*AN$41)+(AN38*AN40) -> 3.333333333e-09 | AO51: =(DebtAccr!AO30*AO$41)+(AO38*AO40) -> 3.333333338e-09
C52: Operations | K52: =NPV($D$36,L52:AO52) -> 0 | L52: =DebtAccr!L31*L$41 -> 0 | M52: =DebtAccr!M31*M$41 -> 0 | N52: =DebtAccr!N31*N$41 -> 0 | O52: =DebtAccr!O31*O$41 -> 0 | P52: =DebtAccr!P31*P$41 -> 0 | Q52: =DebtAccr!Q31*Q$41 -> 0 | R52: =DebtAccr!R31*R$41 -> 0 | S52: =DebtAccr!S31*S$41 -> 0 | T52: =DebtAccr!T31*T$41 -> 0 | U52: =DebtAccr!U31*U$41 -> 0 | V52: =DebtAccr!V31*V$41 -> 0 | W52: =DebtAccr!W31*W$41 -> 0 | X52: =DebtAccr!X31*X$41 -> 0 | Y52: =DebtAccr!Y31*Y$41 -> 0 | Z52: =DebtAccr!Z31*Z$41 -> 0 | AA52: =DebtAccr!AA31*AA$41 -> 0 | AB52: =DebtAccr!AB31*AB$41 -> 0 | AC52: =DebtAccr!AC31*AC$41 -> 0 | AD52: =DebtAccr!AD31*AD$41 -> 0 | AE52: =DebtAccr!AE31*AE$41 -> 0 | AF52: =DebtAccr!AF31*AF$41 -> 0 | AG52: =DebtAccr!AG31*AG$41 -> 0 | AH52: =DebtAccr!AH31*AH$41 -> 0 | AI52: =DebtAccr!AI31*AI$41 -> 0 | AJ52: =DebtAccr!AJ31*AJ$41 -> 0 | AK52: =DebtAccr!AK31*AK$41 -> 0 | AL52: =DebtAccr!AL31*AL$41 -> 0 | AM52: =DebtAccr!AM31*AM$41 -> 0 | AN52: =DebtAccr!AN31*AN$41 -> 0 | AO52: =DebtAccr!AO31*AO$41 -> 0
C53: Maintenance | K53: 0 | L53: =DebtAccr!L32*L$41+(Tech1!L24*Tech2!L40) -> 0 | M53: =DebtAccr!M32*M$41+(Tech1!M24*Tech2!M40) -> 0 | N53: =DebtAccr!N32*N$41+(Tech1!N24*Tech2!N40) -> 0 | O53: =DebtAccr!O32*O$41+(Tech1!O24*Tech2!O40) -> 0 | P53: =DebtAccr!P32*P$41+(Tech1!P24*Tech2!P40) -> 0 | Q53: =DebtAccr!Q32*Q$41+(Tech1!Q24*Tech2!Q40) -> 0 | R53: =DebtAccr!R32*R$41+(Tech1!R24*Tech2!R40) -> 0 | S53: =DebtAccr!S32*S$41+(Tech1!S24*Tech2!S40) -> 0 | T53: =DebtAccr!T32*T$41+(Tech1!T24*Tech2!T40) -> 0 | U53: =DebtAccr!U32*U$41+(Tech1!U24*Tech2!U40) -> 0 | V53: =DebtAccr!V32*V$41+(Tech1!V24*Tech2!V40) -> 0 | W53: =DebtAccr!W32*W$41+(Tech1!W24*Tech2!W40) -> 0 | X53: =DebtAccr!X32*X$41+(Tech1!X24*Tech2!X40) -> 0 | Y53: =DebtAccr!Y32*Y$41+(Tech1!Y24*Tech2!Y40) -> 0 | Z53: =DebtAccr!Z32*Z$41+(Tech1!Z24*Tech2!Z40) -> 0 | AA53: =DebtAccr!AA32*AA$41+(Tech1!AA24*Tech2!AA40) -> 0 | AB53: =DebtAccr!AB32*AB$41+(Tech1!AB24*Tech2!AB40) -> 0 | AC53: =DebtAccr!AC32*AC$41+(Tech1!AC24*Tech2!AC40) -> 0 | AD53: =DebtAccr!AD32*AD$41+(Tech1!AD24*Tech2!AD40) -> 0 | AE53: =DebtAccr!AE32*AE$41+(Tech1!AE24*Tech2!AE40) -> 0 | AF53: =DebtAccr!AF32*AF$41+(Tech1!AF24*Tech2!AF40) -> 0 | AG53: =DebtAccr!AG32*AG$41+(Tech1!AG24*Tech2!AG40) -> 0 | AH53: =DebtAccr!AH32*AH$41+(Tech1!AH24*Tech2!AH40) -> 0 | AI53: =DebtAccr!AI32*AI$41+(Tech1!AI24*Tech2!AI40) -> 0 | AJ53: =DebtAccr!AJ32*AJ$41+(Tech1!AJ24*Tech2!AJ40) -> 0 | AK53: =DebtAccr!AK32*AK$41+(Tech1!AK24*Tech2!AK40) -> 0 | AL53: =DebtAccr!AL32*AL$41+(Tech1!AL24*Tech2!AL40) -> 0 | AM53: =DebtAccr!AM32*AM$41+(Tech1!AM24*Tech2!AM40) -> 0 | AN53: =DebtAccr!AN32*AN$41+(Tech1!AN24*Tech2!AN40) -> 0 | AO53: =DebtAccr!AO32*AO$41+(Tech1!AO24*Tech2!AO40) -> 0
C54: Displaced Spending | K54: 0 | L54: =DebtAccr!L33*L$41+((Tech1!L22+Tech1!L18)*Tech2!L40) -> 0 | M54: =DebtAccr!M33*M$41+((Tech1!M22+Tech1!M18)*Tech2!M40) -> 0 | N54: =DebtAccr!N33*N$41+((Tech1!N22+Tech1!N18)*Tech2!N40) -> 0 | O54: =DebtAccr!O33*O$41+((Tech1!O22+Tech1!O18)*Tech2!O40) -> 0 | P54: =DebtAccr!P33*P$41+((Tech1!P22+Tech1!P18)*Tech2!P40) -> 0 | Q54: =DebtAccr!Q33*Q$41+((Tech1!Q22+Tech1!Q18)*Tech2!Q40) -> 0 | R54: =DebtAccr!R33*R$41+((Tech1!R22+Tech1!R18)*Tech2!R40) -> 0 | S54: =DebtAccr!S33*S$41+((Tech1!S22+Tech1!S18)*Tech2!S40) -> 0 | T54: =DebtAccr!T33*T$41+((Tech1!T22+Tech1!T18)*Tech2!T40) -> 0 | U54: =DebtAccr!U33*U$41+((Tech1!U22+Tech1!U18)*Tech2!U40) -> 0 | V54: =DebtAccr!V33*V$41+((Tech1!V22+Tech1!V18)*Tech2!V40) -> 0 | W54: =DebtAccr!W33*W$41+((Tech1!W22+Tech1!W18)*Tech2!W40) -> 0 | X54: =DebtAccr!X33*X$41+((Tech1!X22+Tech1!X18)*Tech2!X40) -> 0 | Y54: =DebtAccr!Y33*Y$41+((Tech1!Y22+Tech1!Y18)*Tech2!Y40) -> 0 | Z54: =DebtAccr!Z33*Z$41+((Tech1!Z22+Tech1!Z18)*Tech2!Z40) -> 0 | AA54: =DebtAccr!AA33*AA$41+((Tech1!AA22+Tech1!AA18)*Tech2!AA40) -> 0 | AB54: =DebtAccr!AB33*AB$41+((Tech1!AB22+Tech1!AB18)*Tech2!AB40) -> 0 | AC54: =DebtAccr!AC33*AC$41+((Tech1!AC22+Tech1!AC18)*Tech2!AC40) -> 0 | AD54: =DebtAccr!AD33*AD$41+((Tech1!AD22+Tech1!AD18)*Tech2!AD40) -> 0 | AE54: =DebtAccr!AE33*AE$41+((Tech1!AE22+Tech1!AE18)*Tech2!AE40) -> 0 | AF54: =DebtAccr!AF33*AF$41+((Tech1!AF22+Tech1!AF18)*Tech2!AF40) -> 0 | AG54: =DebtAccr!AG33*AG$41+((Tech1!AG22+Tech1!AG18)*Tech2!AG40) -> 0 | AH54: =DebtAccr!AH33*AH$41+((Tech1!AH22+Tech1!AH18)*Tech2!AH40) -> 0 | AI54: =DebtAccr!AI33*AI$41+((Tech1!AI22+Tech1!AI18)*Tech2!AI40) -> 0 | AJ54: =DebtAccr!AJ33*AJ$41+((Tech1!AJ22+Tech1!AJ18)*Tech2!AJ40) -> 0 | AK54: =DebtAccr!AK33*AK$41+((Tech1!AK22+Tech1!AK18)*Tech2!AK40) -> 0 | AL54: =DebtAccr!AL33*AL$41+((Tech1!AL22+Tech1!AL18)*Tech2!AL40) -> 0 | AM54: =DebtAccr!AM33*AM$41+((Tech1!AM22+Tech1!AM18)*Tech2!AM40) -> 0 | AN54: =DebtAccr!AN33*AN$41+((Tech1!AN22+Tech1!AN18)*Tech2!AN40) -> 0 | AO54: =DebtAccr!AO33*AO$41+((Tech1!AO22+Tech1!AO18)*Tech2!AO40) -> 0
C55: Total Net Cash Flow in Fiscal Context | K55: 1e-07 | L55: =SUM(L51:L54) -> 3.333333333e-09 | M55: =SUM(M51:M54) -> 3.333333333e-09 | N55: 3.333333333e-09 | O55: 3.333333333e-09 | P55: 3.333333333e-09 | Q55: 3.333333333e-09 | R55: 3.333333333e-09 | S55: 3.333333333e-09 | T55: 3.333333333e-09 | U55: 3.333333333e-09 | V55: 3.333333333e-09 | W55: 3.333333333e-09 | X55: 3.333333333e-09 | Y55: 3.333333333e-09 | Z55: 3.333333333e-09 | AA55: 3.333333333e-09 | AB55: 3.333333333e-09 | AC55: 3.333333333e-09 | AD55: 3.333333333e-09 | AE55: 3.333333333e-09 | AF55: 3.333333333e-09 | AG55: 3.333333333e-09 | AH55: 3.333333333e-09 | AI55: 3.333333333e-09 | AJ55: 3.333333333e-09 | AK55: 3.333333333e-09 | AL55: 3.333333333e-09 | AM55: 3.333333333e-09 | AN55: 3.333333333e-09 | AO55: 3.333333338e-09
J57: Standard Balance | L57: =Tech1!L25+Tech1!L24+Tech1!L18 -> 9.666666667e-08 | M57: =Tech1!M25+Tech1!M24+Tech1!M18 -> 9.333333333e-08 | N57: =Tech1!N25+Tech1!N24+Tech1!N18 -> 9e-08 | O57: =Tech1!O25+Tech1!O24+Tech1!O18 -> 8.666666667e-08 | P57: =Tech1!P25+Tech1!P24+Tech1!P18 -> 8.333333333e-08 | Q57: =Tech1!Q25+Tech1!Q24+Tech1!Q18 -> 8e-08 | R57: =Tech1!R25+Tech1!R24+Tech1!R18 -> 7.666666667e-08 | S57: =Tech1!S25+Tech1!S24+Tech1!S18 -> 7.333333333e-08 | T57: =Tech1!T25+Tech1!T24+Tech1!T18 -> 7e-08 | U57: =Tech1!U25+Tech1!U24+Tech1!U18 -> 6.666666667e-08 | V57: =Tech1!V25+Tech1!V24+Tech1!V18 -> 6.333333333e-08 | W57: =Tech1!W25+Tech1!W24+Tech1!W18 -> 6e-08 | X57: =Tech1!X25+Tech1!X24+Tech1!X18 -> 5.666666667e-08 | Y57: =Tech1!Y25+Tech1!Y24+Tech1!Y18 -> 5.333333333e-08 | Z57: =Tech1!Z25+Tech1!Z24+Tech1!Z18 -> 5e-08 | AA57: =Tech1!AA25+Tech1!AA24+Tech1!AA18 -> 4.666666667e-08 | AB57: =Tech1!AB25+Tech1!AB24+Tech1!AB18 -> 4.333333333e-08 | AC57: =Tech1!AC25+Tech1!AC24+Tech1!AC18 -> 4e-08 | AD57: =Tech1!AD25+Tech1!AD24+Tech1!AD18 -> 3.666666667e-08 | AE57: =Tech1!AE25+Tech1!AE24+Tech1!AE18 -> 3.333333333e-08 | AF57: =Tech1!AF25+Tech1!AF24+Tech1!AF18 -> 3e-08 | AG57: =Tech1!AG25+Tech1!AG24+Tech1!AG18 -> 2.666666667e-08 | AH57: =Tech1!AH25+Tech1!AH24+Tech1!AH18 -> 2.333333333e-08 | AI57: =Tech1!AI25+Tech1!AI24+Tech1!AI18 -> 2e-08 | AJ57: =Tech1!AJ25+Tech1!AJ24+Tech1!AJ18 -> 1.666666667e-08 | AK57: =Tech1!AK25+Tech1!AK24+Tech1!AK18 -> 1.333333333e-08 | AL57: =Tech1!AL25+Tech1!AL24+Tech1!AL18 -> 1e-08 | AM57: =Tech1!AM25+Tech1!AM24+Tech1!AM18 -> 6.666666667e-09 | AN57: =Tech1!AN25+Tech1!AN24+Tech1!AN18 -> 3.333333333e-09 | AO57: =Tech1!AO25+Tech1!AO24+Tech1!AO18 -> -1.571643164e-23
J58: Alternative Balance | L58: =L38+L37+L31 -> 0.009666666667 | M58: =M38+M37+M31 -> 0.009333333333 | N58: 0.009 | O58: 0.008666666667 | P58: 0.008333333333 | Q58: 0.008 | R58: 0.007666666667 | S58: 0.007333333333 | T58: 0.007 | U58: 0.006666666667 | V58: 0.006333333333 | W58: 0.006 | X58: 0.005666666667 | Y58: 0.005333333333 | Z58: 0.005 | AA58: 0.004666666667 | AB58: 0.004333333333 | AC58: 0.004 | AD58: 0.003666666667 | AE58: 0.003333333333 | AF58: 0.003 | AG58: 0.002666666667 | AH58: 0.002333333333 | AI58: 0.002 | AJ58: 0.001666666667 | AK58: 0.001333333333 | AL58: 0.001 | AM58: 0.0006666666667 | AN58: 0.0003333333333 | AO58: 4.662069342e-18

Sheet Tech3 (hidden)
A1: Tech 3 Heuristic/Stochastic Interface
A3: Historical Example Data [CAFRS Revenue YoY Change Annual]
C5: Mean | D5: Stdev | E5: Max | F5: Min | G5: 1965 | H5: =G5+1 -> 1966 | I5: =H5+1 -> 1967 | J5: 1968 | K5: 1969 | L5: 1970 | M5: 1971 | N5: 1972 | O5: 1973 | P5: 1974 | Q5: 1975 | R5: 1976 | S5: 1977 | T5: 1978 | U5: 1979 | V5: 1980 | W5: 1981 | X5: 1982 | Y5: 1983 | Z5: 1984 | AA5: 1985 | AB5: 1986 | AC5: 1987 | AD5: 1988 | AE5: 1989 | AF5: 1990 | AG5: 1991 | AH5: 1992 | AI5: 1993 | AJ5: 1994 | AK5: 1995 | AL5: 1996 | AM5: 1997 | AN5: 1998 | AO5: 1999 | AP5: 2000 | AQ5: 2001 | AR5: 2002 | AS5: 2003 | AT5: 2004 | AU5: 2005 | AV5: 2006 | AW5: 2007 | AX5: 2008 | AY5: 2009 | AZ5: 2010 | BA5: 2011 | BB5: 2012 | BC5: 2013 | BD5: 2014 | BE5: 2015
C6: =AVERAGE(G6:BE6) -> 1.031568627 | D6: =_xlfn.STDEV.P(G6:BE6) -> 0.03354087638 | E6: =MAX(G6:BE6) -> 1.095 | F6: =MIN(G6:BE6) -> 0.92 | G6: 1.04 | H6: 1.045 | I6: 1.065 | J6: 1.085 | K6: 1.095 | L6: 1.075 | M6: 1.045 | N6: 0.98 | O6: 0.975 | P6: 1.015 | Q6: 1.04 | R6: 1.065 | S6: 1.09 | T6: 1.03 | U6: 1.01 | V6: 1 | W6: 0.99 | X6: 0.995 | Y6: 1 | Z6: 1.01 | AA6: 1.02 | AB6: 1.025 | AC6: 1.03 | AD6: 1.05 | AE6: 1.03 | AF6: 1.065 | AG6: 1.08 | AH6: 1.07 | AI6: 1.035 | AJ6: 1.015 | AK6: 1.03 | AL6: 1.04 | AM6: 1.05 | AN6: 1.06 | AO6: 1.065 | AP6: 1.07 | AQ6: 1.04 | AR6: 0.99 | AS6: 1 | AT6: 1.005 | AU6: 1.02 | AV6: 1.045 | AW6: 1.04 | AX6: 0.975 | AY6: 0.92 | AZ6: 1.01 | BA6: 1.02 | BB6: 1.025 | BC6: 1.04 | BD6: 1.045 | BE6: 1.05
C8: Phase | G8: 1 | H8: 1 | I8: 1 | J8: 1 | K8: 1 | L8: -1 | M8: -1 | N8: -1 | O8: -1 | P8: 1 | Q8: 1 | R8: 1 | S8: 1 | T8: -1 | U8: -1 | V8: -1 | W8: -1 | X8: 1 | Y8: 1 | Z8: 1 | AA8: 1 | AB8: 1 | AC8: 1 | AD8: 1 | AE8: -1 | AF8: 1 | AG8: 1 | AH8: -1 | AI8: -1 | AJ8: -1 | AK8: 1 | AL8: 1 | AM8: 1 | AN8: 1 | AO8: 1 | AP8: 1 | AQ8: -1 | AR8: -1 | AS8: 1 | AT8: 1 | AU8: 1 | AV8: 1 | AW8: -1 | AX8: -1 | AY8: -1 | AZ8: 1 | BA8: 1 | BB8: 1 | BC8: 1 | BD8: 1 | BE8: 1
A10: Unconstrain | C10: Mean | D10: Stdev | E10: Max | F10: Min | G10: =MAX(G8,0) -> 1 | H10: =MAX(H8,0) -> 1 | I10: 1 | J10: 1 | K10: 1 | L10: 0 | M10: 0 | N10: 0 | O10: 0 | P10: 1 | Q10: 1 | R10: 1 | S10: 1 | T10: 0 | U10: 0 | V10: 0 | W10: 0 | X10: 1 | Y10: 1 | Z10: 1 | AA10: 1 | AB10: 1 | AC10: 1 | AD10: 1 | AE10: 0 | AF10: 1 | AG10: 1 | AH10: 0 | AI10: 0 | AJ10: 0 | AK10: 1 | AL10: 1 | AM10: 1 | AN10: 1 | AO10: 1 | AP10: 1 | AQ10: 0 | AR10: 0 | AS10: 1 | AT10: 1 | AU10: 1 | AV10: 1 | AW10: 0 | AX10: 0 | AY10: 0 | AZ10: 1 | BA10: 1 | BB10: 1 | BC10: 1 | BD10: 1 | BE10: 1
C11: =AVERAGE(G11:BE11) -> 4.857142857 | D11: =_xlfn.STDEV.P(G11:BE11) -> 1.551825784 | E11: =MAX(G11:BE11) -> 7 | F11: =MIN(G11:BE11) -> 2 | K11: 5 | S11: 4 | AD11: 7 | AG11: 2 | AP11: 6 | AV11: 4 | BE11: 6
A13: Constrain | C13: Mean | D13: Stdev | E13: Max | F13: Min | G13: =1-G10 -> 0 | H13: =1-H10 -> 0 | I13: 0 | J13: 0 | K13: 0 | L13: 1 | M13: 1 | N13: 1 | O13: 1 | P13: 0 | Q13: 0 | R13: 0 | S13: 0 | T13: 1 | U13: 1 | V13: 1 | W13: 1 | X13: 0 | Y13: 0 | Z13: 0 | AA13: 0 | AB13: 0 | AC13: 0 | AD13: 0 | AE13: 1 | AF13: 0 | AG13: 0 | AH13: 1 | AI13: 1 | AJ13: 1 | AK13: 0 | AL13: 0 | AM13: 0 | AN13: 0 | AO13: 0 | AP13: 0 | AQ13: 1 | AR13: 1 | AS13: 0 | AT13: 0 | AU13: 0 | AV13: 0 | AW13: 1 | AX13: 1 | AY13: 1 | AZ13: 0 | BA13: 0 | BB13: 0 | BC13: 0 | BD13: 0 | BE13: 0
C14: =AVERAGE(G14:BE14) -> 2.833333333 | D14: =_xlfn.STDEV.P(G14:BE14) -> 1.067187373 | E14: =MAX(G14:BE14) -> 4 | F14: =MIN(G14:BE14) -> 1 | O14: 4 | W14: 4 | AE14: 1 | AJ14: 3 | AR14: 2 | AY14: 3
A16: Graphic Green | E16: 3 | G16: =$E$16*G10 -> 3 | H16: =$E$16*H10 -> 3 | I16: 3 | J16: 3 | K16: 3 | L16: 0 | M16: 0 | N16: 0 | O16: 0 | P16: 3 | Q16: 3 | R16: 3 | S16: 3 | T16: 0 | U16: 0 | V16: 0 | W16: 0 | X16: 3 | Y16: 3 | Z16: 3 | AA16: 3 | AB16: 3 | AC16: 3 | AD16: 3 | AE16: 0 | AF16: 3 | AG16: 3 | AH16: 0 | AI16: 0 | AJ16: 0 | AK16: 3 | AL16: 3 | AM16: 3 | AN16: 3 | AO16: 3 | AP16: 3 | AQ16: 0 | AR16: 0 | AS16: 3 | AT16: 3 | AU16: 3 | AV16: 3 | AW16: 0 | AX16: 0 | AY16: 0 | AZ16: 3 | BA16: 3 | BB16: 3 | BC16: 3 | BD16: 3 | BE16: 3
A17: Graphic Red | E17: 3 | G17: =$E$16*G13 -> 0 | H17: =$E$16*H13 -> 0 | I17: 0 | J17: 0 | K17: 0 | L17: 3 | M17: 3 | N17: 3 | O17: 3 | P17: 0 | Q17: 0 | R17: 0 | S17: 0 | T17: 3 | U17: 3 | V17: 3 | W17: 3 | X17: 0 | Y17: 0 | Z17: 0 | AA17: 0 | AB17: 0 | AC17: 0 | AD17: 0 | AE17: 3 | AF17: 0 | AG17: 0 | AH17: 3 | AI17: 3 | AJ17: 3 | AK17: 0 | AL17: 0 | AM17: 0 | AN17: 0 | AO17: 0 | AP17: 0 | AQ17: 3 | AR17: 3 | AS17: 0 | AT17: 0 | AU17: 0 | AV17: 0 | AW17: 3 | AX17: 3 | AY17: 3 | AZ17: 0 | BA17: 0 | BB17: 0 | BC17: 0 | BD17: 0 | BE17: 0
A18: One Line | G18: 1 | H18: 1 | I18: 1 | J18: 1 | K18: 1 | L18: 1 | M18: 1 | N18: 1 | O18: 1 | P18: 1 | Q18: 1 | R18: 1 | S18: 1 | T18: 1 | U18: 1 | V18: 1 | W18: 1 | X18: 1 | Y18: 1 | Z18: 1 | AA18: 1 | AB18: 1 | AC18: 1 | AD18: 1 | AE18: 1 | AF18: 1 | AG18: 1 | AH18: 1 | AI18: 1 | AJ18: 1 | AK18: 1 | AL18: 1 | AM18: 1 | AN18: 1 | AO18: 1 | AP18: 1 | AQ18: 1 | AR18: 1 | AS18: 1 | AT18: 1 | AU18: 1 | AV18: 1 | AW18: 1 | AX18: 1 | AY18: 1 | AZ18: 1 | BA18: 1 | BB18: 1 | BC18: 1 | BD18: 1 | BE18: 1
A21: Normal Distributions
A23: Years | D23: 0.25 | F23: 0 | G23: =$D$23+F23 -> 0.25 | H23: 0.5 | I23: 0.75 | J23: 1 | K23: 1.25 | L23: 1.5 | M23: 1.75 | N23: 2 | O23: 2.25 | P23: 2.5 | Q23: 2.75 | R23: 3 | S23: 3.25 | T23: 3.5 | U23: 3.75 | V23: 4 | W23: 4.25 | X23: 4.5 | Y23: 4.75 | Z23: 5 | AA23: 5.25 | AB23: 5.5 | AC23: 5.75 | AD23: 6 | AE23: 6.25 | AF23: 6.5 | AG23: 6.75 | AH23: 7 | AI23: 7.25 | AJ23: 7.5 | AK23: 7.75 | AL23: 8 | AM23: 8.25 | AN23: 8.5 | AO23: 8.75 | AP23: 9 | AQ23: 9.25 | AR23: 9.5 | AS23: 9.75 | AT23: 10
A24: Counter | F24: 0 | G24: =F24+1 -> 1 | H24: 2 | I24: 3 | J24: 4 | K24: 5 | L24: 6 | M24: 7 | N24: 8 | O24: 9 | P24: 10 | Q24: 11 | R24: 12 | S24: 13 | T24: 14 | U24: 15 | V24: 16 | W24: 17 | X24: 18 | Y24: 19 | Z24: 20 | AA24: 21 | AB24: 22 | AC24: 23 | AD24: 24 | AE24: 25 | AF24: 26 | AG24: 27 | AH24: 28 | AI24: 29 | AJ24: 30 | AK24: 31 | AL24: 32 | AM24: 33 | AN24: 34 | AO24: 35 | AP24: 36 | AQ24: 37 | AR24: 38 | AS24: 39 | AT24: 40
A26: Unconstrain | F26: =_xlfn.NORM.DIST(F23,$C$11,$D$11,FALSE) -> 0.001917609768 | G26: =_xlfn.NORM.DIST(G23,$C$11,$D$11,FALSE) -> 0.003134093856 | H26: =_xlfn.NORM.DIST(H23,$C$11,$D$11,FALSE) -> 0.004991054921 | I26: 0.007744640905 | J26: 0.01170951234 | K26: 0.01725062829 | L26: 0.02476279214 | M26: 0.03463561417 | N26: 0.0472035607 | O26: 0.06268378507 | P26: 0.08110810445 | Q26: 0.1022590789 | R26: 0.1256226896 | S26: 0.1503705833 | T26: 0.1753825044 | U26: 0.199314198 | V26: 0.2207083639 | W26: 0.238137578 | X26: 0.250360413 | Y26: 0.2564672838 | Z26: 0.2559922817 | AA26: 0.248971913 | AB26: 0.235940463 | AC26: 0.2178628017 | AD26: 0.1960163633 | AE26: 0.1718423315 | AF26: 0.1467900342 | AG26: 0.1221775952 | AH26: 0.09908665319 | AI26: 0.07830100437 | AJ26: 0.06029038982 | AK26: 0.04523321294 | AL26: 0.03306704361 | AM26: 0.02355384893 | AN26: 0.01634771239 | AO26: 0.01105555826 | AP26: 0.007285056976 | AQ26: 0.00467750019 | AR26: 0.00292632974 | AS26: 0.001783862164 | AT26: 0.001059565755
A27: Max/Min | F27: 0 | G27: 0 | H27: 0 | I27: 0 | J27: 0 | K27: 0 | L27: 0 | M27: 0 | N27: 1 | O27: 0 | P27: 0 | Q27: 0 | R27: 0 | S27: 0 | T27: 0 | U27: 0 | V27: 0 | W27: 0 | X27: 0 | Y27: 0 | Z27: 0 | AA27: 0 | AB27: 0 | AC27: 0 | AD27: 0 | AE27: 0 | AF27: 0 | AG27: 0 | AH27: 1 | AI27: 0 | AJ27: 0 | AK27: 0 | AL27: 0 | AM27: 0 | AN27: 0 | AO27: 0 | AP27: 0 | AQ27: 0 | AR27: 0 | AS27: 0 | AT27: 0
A28: Select | D28: 19 | F28: =IF($D$28=F24,1,0) -> 0 | G28: =IF($D$28=G24,1,0) -> 0 | H28: 0 | I28: 0 | J28: 0 | K28: 0 | L28: 0 | M28: 0 | N28: 0 | O28: 0 | P28: 0 | Q28: 0 | R28: 0 | S28: 0 | T28: 0 | U28: 0 | V28: 0 | W28: 0 | X28: 0 | Y28: 1 | Z28: 0 | AA28: 0 | AB28: 0 | AC28: 0 | AD28: 0 | AE28: 0 | AF28: 0 | AG28: 0 | AH28: 0 | AI28: 0 | AJ28: 0 | AK28: 0 | AL28: 0 | AM28: 0 | AN28: 0 | AO28: 0 | AP28: 0 | AQ28: 0 | AR28: 0 | AS28: 0 | AT28: 0
A29: Selected Value | D29: =ROUND(SUM(F29:AT29),0) -> 5 | F29: =F28*F23 -> 0 | G29: =G28*G23 -> 0 | H29: 0 | I29: 0 | J29: 0 | K29: 0 | L29: 0 | M29: 0 | N29: 0 | O29: 0 | P29: 0 | Q29: 0 | R29: 0 | S29: 0 | T29: 0 | U29: 0 | V29: 0 | W29: 0 | X29: 0 | Y29: 4.75 | Z29: 0 | AA29: 0 | AB29: 0 | AC29: 0 | AD29: 0 | AE29: 0 | AF29: 0 | AG29: 0 | AH29: 0 | AI29: 0 | AJ29: 0 | AK29: 0 | AL29: 0 | AM29: 0 | AN29: 0 | AO29: 0 | AP29: 0 | AQ29: 0 | AR29: 0 | AS29: 0 | AT29: 0
A31: Constrain | F31: =_xlfn.NORM.DIST(F23,$C$14,$D$14,FALSE) -> 0.01101656377 | G31: 0.0199636303 | H31: 0.03424519556 | I31: 0.05560662655 | J31: 0.08547128107 | K31: 0.1243599801 | L31: 0.171280468 | M31: 0.223306726 | N31: 0.2755894154 | O31: 0.321951186 | P31: 0.3560281119 | Q31: 0.3726879227 | R31: 0.369294733 | S31: 0.3463918572 | T31: 0.3075593973 | U31: 0.2584979446 | V31: 0.2056610049 | W31: 0.1548865047 | X31: 0.1104185325 | Y31: 0.07451387157 | Z31: 0.0475991342 | AA31: 0.02878244899 | AB31: 0.01647491568 | AC31: 0.008926586617 | AD31: 0.004578407166 | AE31: 0.002222850056 | AF31: 0.001021580724 | AG31: 0.0004444285782 | AH31: 0.0001830197812 | AI31: 7.134455809e-05 | AJ31: 2.632633716e-05 | AK31: 9.195742292e-06 | AL31: 3.040534327e-06 | AM31: 9.516555753e-07 | AN31: 2.819528234e-07 | AO31: 7.90751211e-08 | AP31: 2.09927846e-08 | AQ31: 5.275540969e-09 | AR31: 1.254962407e-09 | AS31: 2.825928695e-10 | AT31: 6.02363223e-11
A32: Max/Min | F32: 0 | G32: 0 | H32: 0 | I32: 0 | J32: 1 | K32: 0 | L32: 0 | M32: 0 | N32: 0 | O32: 0 | P32: 0 | Q32: 0 | R32: 0 | S32: 0 | T32: 0 | U32: 0 | V32: 1 | W32: 0 | X32: 0 | Y32: 0 | Z32: 0 | AA32: 0 | AB32: 0 | AC32: 0 | AD32: 0 | AE32: 0 | AF32: 0 | AG32: 0 | AH32: 0 | AI32: 0 | AJ32: 0 | AK32: 0 | AL32: 0 | AM32: 0 | AN32: 0 | AO32: 0 | AP32: 0 | AQ32: 0 | AR32: 0 | AS32: 0 | AT32: 0
A33: Select | D33: 12 | F33: =IF($D$33=F24,1,0) -> 0 | G33: 0 | H33: 0 | I33: 0 | J33: 0 | K33: 0 | L33: 0 | M33: 0 | N33: 0 | O33: 0 | P33: 0 | Q33: 0 | R33: 1 | S33: 0 | T33: 0 | U33: 0 | V33: 0 | W33: 0 | X33: 0 | Y33: 0 | Z33: 0 | AA33: 0 | AB33: 0 | AC33: 0 | AD33: 0 | AE33: 0 | AF33: 0 | AG33: 0 | AH33: 0 | AI33: 0 | AJ33: 0 | AK33: 0 | AL33: 0 | AM33: 0 | AN33: 0 | AO33: 0 | AP33: 0 | AQ33: 0 | AR33: 0 | AS33: 0 | AT33: 0
A34: Selected Value | D34: =ROUND(SUM(F34:AT34),0) -> 3 | F34: =F33*F23 -> 0 | G34: =G33*G23 -> 0 | H34: 0 | I34: 0 | J34: 0 | K34: 0 | L34: 0 | M34: 0 | N34: 0 | O34: 0 | P34: 0 | Q34: 0 | R34: 3 | S34: 0 | T34: 0 | U34: 0 | V34: 0 | W34: 0 | X34: 0 | Y34: 0 | Z34: 0 | AA34: 0 | AB34: 0 | AC34: 0 | AD34: 0 | AE34: 0 | AF34: 0 | AG34: 0 | AH34: 0 | AI34: 0 | AJ34: 0 | AK34: 0 | AL34: 0 | AM34: 0 | AN34: 0 | AO34: 0 | AP34: 0 | AQ34: 0 | AR34: 0 | AS34: 0 | AT34: 0

Sheet BC (hidden)
A1: BC Input 1
H2: Input | I2: Uspec
H3: 0 | I3: 0
I4: 100
B5: Constrained Cycle | J5: Input Text | K5: Data Text | L5: Data Source
B6: =J6 -> Input Options | C6: Assumed length of constrained cycle during term | D6: Data Sources | E6: Input Data | F6: Row | G6: True/False | H6: Active Input | I6: US Range | J6: Input Options | K6: Assumed length of constrained cycle during term | L6: Data Sources
B7: Budget Not Constrained During Term | C7: Case is unprecedented | D7: [Local CAFRS historical results 1975-2015; US GDP data (St Louis Fed)] | E7: 0 | F7: 0 | G7: =IF(H$3=F7,TRUE,FALSE) -> TRUE | H7: =E7*G7 -> 0 | I7: 0 | J7: Budget Not Constrained During Term | K7: Case is unprecedented | L7: [Local CAFRS historical results 1975-2015; US GDP data (St Louis Fed)]
B8: =J8&" "&TEXT(E8,"0") -> Constrained Cycle Length: 1 | C8: =K8 -> Relatively short constrained period | D8: [Local CAFRS historical results 1975-2015; US GDP data (St Louis Fed)] | E8: 1 | F8: =F7+1 -> 1 | G8: =IF(H$3=F8,TRUE,FALSE) -> FALSE | H8: =E8*G8 -> 0 | I8: ="-" -> - | J8: Constrained Cycle Length: | K8: Relatively short constrained period | L8: [Local CAFRS historical results 1975-2015; US GDP data (St Louis Fed)]
B9: Constrained Cycle Length: 2 | C9: Typical constrained period | D9: [Local CAFRS historical results 1975-2015; US GDP data (St Louis Fed)] | E9: 2 | F9: =F8+1 -> 2 | G9: FALSE | H9: 0 | I9: ="-" -> - | J9: Constrained Cycle Length: | K9: Typical constrained period | L9: [Local CAFRS historical results 1975-2015; US GDP data (St Louis Fed)]
B10: Constrained Cycle Length: 3 | C10: Typical constrained period | D10: [Local CAFRS historical results 1975-2015; US GDP data (St Louis Fed)] | E10: 3 | F10: 3 | G10: FALSE | H10: 0 | I10: - | J10: Constrained Cycle Length: | K10: Typical constrained period | L10: [Local CAFRS historical results 1975-2015; US GDP data (St Louis Fed)]
B11: Constrained Cycle Length: 4 | C11: Relatively long constrained period | D11: [Local CAFRS historical results 1975-2015; US GDP data (St Louis Fed)] | E11: 4 | F11: 4 | G11: FALSE | H11: 0 | I11: - | J11: Constrained Cycle Length: | K11: Relatively long constrained period | L11: [Local CAFRS historical results 1975-2015; US GDP data (St Louis Fed)]
B12: H/S Interface Cycle Length: 3 | C12: Heuristic/Stochastic Selection | D12: [Local CAFRS historical results 1975-2015; US GDP data (St Louis Fed)] | E12: =Tech3!D34 -> 3 | F12: 5 | G12: FALSE | H12: 0 | J12: H/S Interface Cycle Length: | K12: Heuristic/Stochastic Selection | L12: [Local CAFRS historical results 1975-2015; US GDP data (St Louis Fed)]
B13: User Specified Cycle Length: 0 | C13: User specified period between 1 and 30 Years | E13: =I14 -> 0 | F13: 6 | G13: FALSE | H13: 0 | I13: 30 | J13: User Specified Cycle Length: | K13: ="User specified period between 1 and "&TEXT(I13,"0")& " Years" -> User specified period between 1 and 30 Years
H14: =SUM(H7:H13) -> 0 | I14: =ROUND((I13-I7)*(I3/I4),0) -> 0
A15: BC Input 2
H16: Input | I16: Uspec
H17: 3 | I17: 1
I18: 100
B19: Unconstrained Cycle | J19: Input Text | K19: Data Text | L19: Data Source
B20: =J20 -> Input Options | C20: =K20 -> Assumed length of constrained cycle during term | D20: =L20 -> Data Sources | E20: Input Data | F20: Row | G20: True/False | H20: Active Input | I20: US Range | J20: Input Options | K20: Assumed length of constrained cycle during term | L20: Data Sources
B21: =IF($G$7=TRUE," ",(J21&" "&TEXT(E21,"0"))) ->  | C21: =IF($G$7=TRUE," ",K21) ->  | D21: =L21 -> [Local CAFRS historical results 1975-2015; US GDP data (St Louis Fed)] | E21: 1 | F21: 0 | G21: =IF(H$17=F21,TRUE,FALSE) -> FALSE | H21: =E21*G21 -> 0 | I21: 0 | J21: Unconstrained Cycle Length: | K21: Case is unprecedented | L21: [Local CAFRS historical results 1975-2015; US GDP data (St Louis Fed)]
C22: =IF($G$7=TRUE," ",K22) ->  | D22: =L22 -> [Local CAFRS historical results 1975-2015; US GDP data (St Louis Fed)] | E22: 2 | F22: =F21+1 -> 1 | G22: =IF(H$17=F22,TRUE,FALSE) -> FALSE | H22: =E22*G22 -> 0 | I22: ="-" -> - | J22: Unconstrained Cycle Length: | K22: Relatively short unconstrained period | L22: [Local CAFRS historical results 1975-2015; US GDP data (St Louis Fed)]
D23: [Local CAFRS historical results 1975-2015; US GDP data (St Louis Fed)] | E23: 4 | F23: =F22+1 -> 2 | G23: FALSE | H23: 0 | I23: ="-" -> - | J23: Unconstrained Cycle Length: | K23: Typical unconstrained period | L23: [Local CAFRS historical results 1975-2015; US GDP data (St Louis Fed)]
D24: [Local CAFRS historical results 1975-2015; US GDP data (St Louis Fed)] | E24: 5 | F24: 3 | G24: TRUE | H24: 5 | I24: - | J24: Unconstrained Cycle Length: | K24: Typical unconstrained period | L24: [Local CAFRS historical results 1975-2015; US GDP data (St Louis Fed)]
D25: [Local CAFRS historical results 1975-2015; US GDP data (St Louis Fed)] | E25: 6 | F25: 4 | G25: FALSE | H25: 0 | I25: - | J25: Unconstrained Cycle Length: | K25: Typical unconstrained period | L25: [Local CAFRS historical results 1975-2015; US GDP data (St Louis Fed)]
D26: [Local CAFRS historical results 1975-2015; US GDP data (St Louis Fed)] | E26: =Tech3!D29 -> 5 | F26: 5 | G26: FALSE | H26: 0 | J26: H/S Interface Cycle Length: | K26: Heuristic/Stochastic Selection | L26: [Local CAFRS historical results 1975-2015; US GDP data (St Louis Fed)]
E27: =I28 -> 0 | F27: 6 | G27: FALSE | H27: 0 | I27: =30-H14 -> 30 | J27: User Specified Cycle Length: | K27: ="User specified period between 1 and "&TEXT(I27,"0")& " Years" -> User specified period between 1 and 30 Years
H28: =SUM(H21:H27) -> 5 | I28: =ROUND((I27-I21)*(I17/I18),0) -> 0
A29: BC Input 3
H30: Input
H31: 0
B33: Cycle Start | J33: Input Text
B34: =J34 -> Input Options | E34: Input Data | F34: Row | G34: True/False | H34: Active Input | J34: Input Options
B35: =J35 -> Cycle Start: Constrained | E35: 1 | F35: 0 | G35: =IF(H$31=F35,TRUE,FALSE) -> TRUE | H35: =E35*G35 -> 1 | J35: Cycle Start: Constrained
B36: =J36 -> Cycle Start: Unconstrained | E36: =H28+1 -> 6 | F36: =F35+1 -> 1 | G36: =IF(H$31=F36,TRUE,FALSE) -> FALSE | H36: =E36*G36 -> 0 | J36: Cycle Start: Unconstrained
B37: Cycle Start: Mid-Point Unconstrained | E37: =ROUNDUP((H28/2),0) -> 3 | F37: =F36+1 -> 2 | G37: FALSE | H37: 0 | J37: Cycle Start: Mid-Point Unconstrained
H38: =SUM(H35:H37) -> 1

Sheet Std (hidden)
A1: Std Input 1
H2: Input | I2: Uspec
H3: 0 | I3: 0
I4: 100
B5: Annual Operations | J5: Input Text | K5: Data Text | L5: Data Source
B6: =J6 -> Input Options | C6: Expected Annual Operations Cost: Standard Case | D6: Data Sources | E6: Input Data | F6: Row | G6: True/False | H6: Active Input | I6: US Range | J6: Input Options | K6: Expected Annual Operations Cost: Standard Case | L6: Data Sources
B7: Annual Operations Costs Not Included | C7: Cost of operations excluded if assumed same across alternatives | D7: [Project data and models; engineering data] | E7: 0 | F7: 0 | G7: =IF(H$3=F7,TRUE,FALSE) -> TRUE | H7: =E7*G7 -> 0 | I7: 0.03 | J7: Annual Operations Costs Not Included | K7: Cost of operations excluded if assumed same across alternatives | L7: [Project data and models; engineering data]
B8: =J8&" "&TEXT(E8,"0.0") -> Annual Operations Cost: 1.0 | C8: PV is approximately 20% of initial capital cost of 100 | D8: [Project data and models; engineering data] | E8: 1 | F8: =F7+1 -> 1 | G8: =IF(H$3=F8,TRUE,FALSE) -> FALSE | H8: =E8*G8 -> 0 | I8: ="-" -> - | J8: Annual Operations Cost: | K8: PV is approximately 20% of initial capital cost of 100 | L8: [Project data and models; engineering data]
B9: Annual Operations Cost: 2.0 | C9: PV is approximately 40% of initial capital cost of 100 | D9: [Project data and models; engineering data] | E9: 2 | F9: =F8+1 -> 2 | G9: FALSE | H9: 0 | I9: ="-" -> - | J9: Annual Operations Cost: | K9: PV is approximately 40% of initial capital cost of 100 | L9: [Project data and models; engineering data]
B10: Annual Operations Cost: 3.0 | C10: PV is approximately 60% of initial capital cost of 100 | D10: [Project data and models; engineering data] | E10: 3 | F10: 3 | G10: FALSE | H10: 0 | I10: - | J10: Annual Operations Cost: | K10: PV is approximately 60% of initial capital cost of 100 | L10: [Project data and models; engineering data]
B11: Annual Operations Cost: 4.0 | C11: PV is approximately 80% of initial capital cost of 100 | D11: [Project data and models; engineering data] | E11: 4 | F11: 4 | G11: FALSE | H11: 0 | I11: - | J11: Annual Operations Cost: | K11: PV is approximately 80% of initial capital cost of 100 | L11: [Project data and models; engineering data]
B12: Annual Operations Cost: 5.0 | C12: PV is approximately 100% of initial capital cost of 100 | D12: [Project data and models; engineering data] | E12: 5 | F12: 5 | G12: FALSE | H12: 0 | I12: - | J12: Annual Operations Cost: | K12: PV is approximately 100% of initial capital cost of 100 | L12: [Project data and models; engineering data]
B13: User Specified Operations Cost: 0.0 | C13: User specified amount between 0.3 and 10 | E13: =I14 -> 0 | F13: 6 | G13: FALSE | H13: 0 | I13: 10 | J13: User Specified Operations Cost: | K13: ="User specified amount between 0.3 and "&TEXT(I13,"0") -> User specified amount between 0.3 and 10
H14: =SUM(H7:H13) -> 0 | I14: =ROUND((I13-I7)*(I3/I4),1) -> 0
A15: Std Input 2
H16: Input | I16: Uspec
H17: 0 | I17: 0
I18: 100
B19: Annual Maintenance | J19: Input Text | K19: Data Text | L19: Data Source
B20: =J20 -> Input Options | C20: Expected Annual Maintenance Cost: Standard Case | D20: Data Sources | E20: Input Data | F20: Row | G20: True/False | H20: Active Input | I20: US Range | J20: Input Options | K20: Expected Annual Maintenance Cost: Standard Case | L20: Data Sources
B21: Annual Maintenance Cost Not Included | C21: Excluded only if assumed non-deferrable and same across alternatives | D21: [Project data and models; engineering data] | E21: 0 | F21: 0 | G21: =IF(H$17=F21,TRUE,FALSE) -> TRUE | H21: =E21*G21 -> 0 | I21: 0.03 | J21: Annual Maintenance Cost Not Included | K21: Excluded only if assumed non-deferrable and same across alternatives | L21: [Project data and models; engineering data]
B22: =J22&" "&TEXT(E22,"0.0") -> Annual Maintenance Cost: 1.0 | C22: PV is approximately 20% of initial capital cost of 100 | D22: [Project data and models; engineering data] | E22: 1 | F22: =F21+1 -> 1 | G22: =IF(H$17=F22,TRUE,FALSE) -> FALSE | H22: =E22*G22 -> 0 | I22: ="-" -> - | J22: Annual Maintenance Cost: | K22: PV is approximately 20% of initial capital cost of 100 | L22: [Project data and models; engineering data]
B23: Annual Maintenance Cost: 2.0 | C23: PV is approximately 40% of initial capital cost of 100 | D23: [Project data and models; engineering data] | E23: 2 | F23: =F22+1 -> 2 | G23: FALSE | H23: 0 | I23: ="-" -> - | J23: Annual Maintenance Cost: | K23: PV is approximately 40% of initial capital cost of 100 | L23: [Project data and models; engineering data]
B24: Annual Maintenance Cost: 3.0 | C24: PV is approximately 60% of initial capital cost of 100 | D24: [Project data and models; engineering data] | E24: 3 | F24: 3 | G24: FALSE | H24: 0 | I24: - | J24: Annual Maintenance Cost: | K24: PV is approximately 60% of initial capital cost of 100 | L24: [Project data and models; engineering data]
B25: Annual Maintenance Cost: 4.0 | C25: PV is approximately 80% of initial capital cost of 100 | D25: [Project data and models; engineering data] | E25: 4 | F25: 4 | G25: FALSE | H25: 0 | I25: - | J25: Annual Maintenance Cost: | K25: PV is approximately 80% of initial capital cost of 100 | L25: [Project data and models; engineering data]
B26: Annual Maintenance Cost: 5.0 | C26: PV is approximately 100% of initial capital cost of 100 | D26: [Project data and models; engineering data] | E26: 5 | F26: 5 | G26: FALSE | H26: 0 | I26: - | J26: Annual Maintenance Cost: | K26: PV is approximately 100% of initial capital cost of 100 | L26: [Project data and models; engineering data]
B27: User Specified Main. Cost: 0.0 | C27: User specified amount between 0.3 and 10 | E27: =I28 -> 0 | F27: 6 | G27: FALSE | H27: 0 | I27: 10 | J27: User Specified Main. Cost: | K27: ="User specified amount between 0.3 and "&TEXT(I27,"0") -> User specified amount between 0.3 and 10
H28: =SUM(H21:H27) -> 0 | I28: =ROUND((I27-I21)*(I17/I18),1) -> 0
A29: Std Input 3
H30: Input | I30: Uspec
H31: 0 | I31: 0
I32: 100
B33: Standard Debt | J33: Input Text | K33: Data Text | L33: Data Source
B34: =J34 -> Input Options | C34: $100m Project Term Debt Capitalization | D34: Data Sources | E34: Input Data | F34: Row | G34: True/False | H34: Active Input | I34: US Range | J34: Input Options | K34: ="$100m Project Term Debt Capitalization" -> $100m Project Term Debt Capitalization | L34: Data Sources
B35: No Term Project Debt | C35: Project has no term debt capitalization | D35: [muni market source: Barclays Muni Index 11/01/2016] | E35: 0 | F35: 0 | G35: =IF(H$31=F35,TRUE,FALSE) -> TRUE | H35: =E35*G35 -> 0 | I35: 0 | J35: No Term Project Debt | K35: Project has no term debt capitalization | L35: [muni market source: Barclays Muni Index 11/01/2016]
B36: =J36&" "&TEXT(E36,"0.00%") -> 30 Year AAA-rated GO: 2.50% | C36: General Obligation AAA Bond 30-year term, level pmt series, tax-exempt | D36: [muni market source: Barclays Muni Index 11/01/2016] | E36: 0.025 | F36: =F35+1 -> 1 | G36: =IF(H$31=F36,TRUE,FALSE) -> FALSE | H36: =E36*G36 -> 0 | I36: ="-" -> - | J36: 30 Year AAA-rated GO: | K36: General Obligation AAA Bond 30-year term, level pmt series, tax-exempt | L36: [muni market source: Barclays Muni Index 11/01/2016]
B37: =J37&" "&TEXT(E37,"0.00%") -> 30 Year A-rated GO: 3.00% | C37: General Obligation A Bond 30-year term, level pmt series, tax-exempt | D37: [muni market source: Barclays Muni Index 11/01/2016] | E37: 0.03 | F37: =F36+1 -> 2 | G37: FALSE | H37: 0 | I37: ="-" -> - | J37: 30 Year A-rated GO: | K37: General Obligation A Bond 30-year term, level pmt series, tax-exempt | L37: [muni market source: Barclays Muni Index 11/01/2016]
B38: 30 Year BBB-rated Revenue Bond: 3.50% | C38: Revenue Bond BBB 30 year term, level pmt series, tax-exempt | D38: [muni market source: Barclays Muni Index 11/01/2016] | E38: 0.035 | F38: 3 | G38: FALSE | H38: 0 | I38: - | J38: 30 Year BBB-rated Revenue Bond: | K38: Revenue Bond BBB 30 year term, level pmt series, tax-exempt | L38: [muni market source: Barclays Muni Index 11/01/2016]
B39: 30-Year Unrated Revenue Bond: 4.00% | C39: Revenue Bond Unrated, 30 year term, level pmt series, tax-exempt | D39: [muni market source: Barclays Muni Index 11/01/2016] | E39: 0.04 | F39: 4 | G39: FALSE | H39: 0 | I39: - | J39: 30-Year Unrated Revenue Bond: | K39: Revenue Bond Unrated, 30 year term, level pmt series, tax-exempt | L39: [muni market source: Barclays Muni Index 11/01/2016]
B40: User Specified Interest Rate: 0.00% | C40: =K40 -> User specified amount between 0% and 6.00% | D40: =L40 ->  | E40: =I41 -> 0 | F40: =F39+1 -> 5 | G40: FALSE | H40: 0 | I40: 0.06 | J40: User Specified Interest Rate: | K40: ="User specified amount between 0% and "&TEXT(I40,"0.00%") -> User specified amount between 0% and 6.00% | L40: =" " -> 
H41: =SUM(H35:H40) -> 0 | I41: =ROUND((I40-I35)*(I31/I32),4) -> 0 | J41: User Specified Interest Rate:
F43: Rate for CCBF Case: | H43: =MAX(E36,H41) -> 0.025

Sheet Alt (hidden)
A1: Alt Input 1
B2: Standard: | C2: =Std!H14 -> 0 | H2: Input | I2: Uspec
H3: 0 | I3: 0
I4: 100
B5: Annual Alt Operations | J5: Input Text | K5: Data Text | L5: Data Source
B6: =J6 -> Input Options | C6: =K6 -> Expected Annual Operations Cost: Alternative Case | D6: =L6 -> Data Sources | E6: Input Data | F6: Row | G6: True/False | H6: Active Input | I6: US Range | J6: Input Options | K6: Expected Annual Operations Cost: Alternative Case | L6: Data Sources
B7: =IF($C$2=0," ",J7&" "&TEXT(E7*$C$2,"0.0")&" ("&TEXT(E7,"0%")&")") ->  | C7: =K7 -> Same as Standard Case | D7: =L7 -> [Project data and models; engineering data] | E7: 1 | F7: 0 | G7: =IF(H$3=F7,TRUE,FALSE) -> TRUE | H7: =E7*G7*$C$2 -> 0 | I7: 0.03 | J7: Alternative Operations Cost: | K7: Same as Standard Case | L7: [Project data and models; engineering data]
B8: =IF($C$2=0," ",J8&" "&TEXT(E8*$C$2,"0.0")&" ("&TEXT(E8,"0%")&")") ->  | C8: =K8 -> 90% of Standard Case Operations Cost | D8: [Project data and models; engineering data] | E8: 0.9 | F8: =F7+1 -> 1 | G8: =IF(H$3=F8,TRUE,FALSE) -> FALSE | H8: =E8*G8*$C$2 -> 0 | I8: ="-" -> - | J8: Alternative Operations Cost: | K8: 90% of Standard Case Operations Cost | L8: [Project data and models; engineering data]
C9: 80% of Standard Case Operations Cost | D9: [Project data and models; engineering data] | E9: 0.8 | F9: =F8+1 -> 2 | G9: FALSE | H9: 0 | I9: ="-" -> - | J9: Alternative Operations Cost: | K9: 80% of Standard Case Operations Cost | L9: [Project data and models; engineering data]
C10: 70% of Standard Case Operations Cost | D10: [Project data and models; engineering data] | E10: 0.7 | F10: 3 | G10: FALSE | H10: 0 | I10: - | J10: Alternative Operations Cost: | K10: 70% of Standard Case Operations Cost | L10: [Project data and models; engineering data]
C11: 60% of Standard Case Operations Cost | D11: [Project data and models; engineering data] | E11: 0.6 | F11: 4 | G11: FALSE | H11: 0 | I11: - | J11: Alternative Operations Cost: | K11: 60% of Standard Case Operations Cost | L11: [Project data and models; engineering data]
C12: 50% of Standard Case Operations Cost | D12: [Project data and models; engineering data] | E12: 0.5 | F12: 5 | G12: FALSE | H12: 0 | I12: 1.5 | J12: Alternative Operations Cost: | K12: 50% of Standard Case Operations Cost | L12: [Project data and models; engineering data]
C13: User specified amount between 0% and 150% | E13: =I13 -> 0 | F13: 6 | G13: FALSE | H13: 0 | I13: =ROUND((I12-I7)*(I3/I4),1) -> 0 | J13: User Specified Alt Ops Cost: | K13: ="User specified amount between 0% and "&TEXT(I12,"0%") -> User specified amount between 0% and 150%
H14: =SUM(H7:H13) -> 0
A15: Alt Input 2
B16: Standard: | C16: =Std!H28 -> 0 | H16: Input | I16: Uspec
H17: 0 | I17: 0
I18: 100
B19: Annual Alt Operations | J19: Input Text | K19: Data Text | L19: Data Source
B20: =J20 -> Input Options | C20: =K20 -> Expected Annual Operations Cost: Alternative Case | D20: =L20 -> Data Sources | E20: Input Data | F20: Row | G20: True/False | H20: Active Input | I20: US Range | J20: Input Options | K20: Expected Annual Operations Cost: Alternative Case | L20: Data Sources
B21: =IF($C$16=0," ",J21&" "&TEXT(E21*$C$16,"0.0")&" ("&TEXT(E21,"0%")&")") ->  | C21: =K21 -> Same as Standard Case | D21: =L21 -> [Project data and models; engineering data] | E21: 1 | F21: 0 | G21: =IF(H$17=F21,TRUE,FALSE) -> TRUE | H21: =E21*G21*$C$16 -> 0 | I21: 0.03 | J21: Alternative Maintenance Cost: | K21: Same as Standard Case | L21: [Project data and models; engineering data]
B22: =IF($C$16=0," ",J22&" "&TEXT(E22*$C$16,"0.0")&" ("&TEXT(E22,"0%")&")") ->  | C22: =K22 -> 90% of Standard Maintenance Cost | D22: [Project data and models; engineering data] | E22: 0.9 | F22: =F21+1 -> 1 | G22: =IF(H$17=F22,TRUE,FALSE) -> FALSE | H22: =E22*G22*$C$16 -> 0 | I22: ="-" -> - | J22: Alternative Maintenance Cost: | K22: 90% of Standard Maintenance Cost | L22: [Project data and models; engineering data]
C23: 80% of Standard Maintenance Cost | D23: [Project data and models; engineering data] | E23: 0.8 | F23: =F22+1 -> 2 | G23: FALSE | H23: 0 | I23: ="-" -> - | J23: Alternative Maintenance Cost: | K23: 80% of Standard Maintenance Cost | L23: [Project data and models; engineering data]
C24: 70% of Standard Maintenance Cost | D24: [Project data and models; engineering data] | E24: 0.7 | F24: 3 | G24: FALSE | H24: 0 | I24: - | J24: Alternative Maintenance Cost: | K24: 70% of Standard Maintenance Cost | L24: [Project data and models; engineering data]
C25: 60% of Standard Maintenance Cost | D25: [Project data and models; engineering data] | E25: 0.6 | F25: 4 | G25: FALSE | H25: 0 | I25: - | J25: Alternative Maintenance Cost: | K25: 60% of Standard Maintenance Cost | L25: [Project data and models; engineering data]
C26: 50% of Standard Maintenance Cost | D26: [Project data and models; engineering data] | E26: 0.5 | F26: 5 | G26: FALSE | H26: 0 | I26: 1.5 | J26: Alternative Maintenance Cost: | K26: 50% of Standard Maintenance Cost | L26: [Project data and models; engineering data]
C27: User specified percent of Standard between 0% and 150% | E27: =I27 -> 0 | F27: 6 | G27: FALSE | H27: 0 | I27: =ROUND((I26-I21)*(I17/I18),1) -> 0 | J27: User Specified Alt Main. Cost: | K27: ="User specified percent of Standard between 0% and "&TEXT(I26,"0%") -> User specified percent of Standard between 0% and 150%
H28: =SUM(H21:H27) -> 0
A29: Alt Input 3
B30: Standard: | C30: =Std!H41 -> 0 | H30: Input | I30: Uspec
H31: 0 | I31: 1
I32: 100
B33: Alternative Debt | J33: Input Text | K33: Data Text | L33: Data Source
B34: =J34 -> Input Options | C34: $100m Project Term Debt Capitalization | D34: Data Sources | E34: Input Data | F34: Row | G34: True/False | H34: Active Input | I34: US Range | J34: Input Options | K34: ="$100m Project Term Debt Capitalization" -> $100m Project Term Debt Capitalization | L34: Data Sources
B35: No Term Project Debt | C35: Project has no term debt capitalization | D35: 0 | E35: 0 | F35: 0 | G35: =IF(H$31=F35,TRUE,FALSE) -> TRUE | H35: =E35*G35 -> 0 | I35: 0 | J35: No Term Project Debt | K35: Project has no term debt capitalization
B36: =J36&" "&TEXT(E36,"0.00%") -> 30 Year A-rated Lease Revenue Bond: 3.75% | C36: Triple-net municipal lease structure | D36: [muni market source: Barclays Muni Index 11/01/2016] | E36: 0.0375 | F36: =F35+1 -> 1 | G36: =IF(H$31=F36,TRUE,FALSE) -> FALSE | H36: =E36*G36 -> 0 | I36: ="-" -> - | J36: 30 Year A-rated Lease Revenue Bond: | K36: Triple-net municipal lease structure | L36: [muni market source: Barclays Muni Index 11/01/2016]
B37: =J37&" "&TEXT(E37,"0.00%") -> 30 Year Tax-exempt AP P3 4.00% | C37: Availability payment P3 (eligible for tax-exempt debt issue) | D37: [P3 industry source data] | E37: 0.04 | F37: =F36+1 -> 2 | G37: FALSE | H37: 0 | I37: ="-" -> - | J37: 30 Year Tax-exempt AP P3 | K37: Availability payment P3 (eligible for tax-exempt debt issue) | L37: [P3 industry source data]
B38: 30 Year Taxable AP P3 4.25% | C38: Availability payment P3 (not eligible for tax-exempt debt issue) | D38: [P3 industry source data] | E38: 0.0425 | F38: 3 | G38: FALSE | H38: 0 | I38: - | J38: 30 Year Taxable AP P3 | K38: Availability payment P3 (not eligible for tax-exempt debt issue) | L38: [P3 industry source data]
B39: 30-Year Taxable Revenue Risk P3: 6.00% | C39: Revenue risk P3, taxable debt and minimal funded equity | D39: [P3 industry source data] | E39: 0.06 | F39: 4 | G39: FALSE | H39: 0 | I39: - | J39: 30-Year Taxable Revenue Risk P3: | K39: Revenue risk P3, taxable debt and minimal funded equity | L39: [P3 industry source data]
B40: User Specified Interest Rate: 0.08% | C40: =K40 -> User specified amount between 0% and 8.00% | D40: =L40 ->  | E40: =I41 -> 0.0008 | F40: =F39+1 -> 5 | G40: FALSE | H40: 0 | I40: 0.08 | J40: User Specified Interest Rate: | K40: ="User specified amount between 0% and "&TEXT(I40,"0.00%") -> User specified amount between 0% and 8.00% | L40: =" " -> 
H41: =SUM(H35:H40) -> 0 | I41: =ROUND((I40-I35)*(I31/I32),4) -> 0.0008
F42: Pmt for CCBF Case: | H42: =-PMT(H41,30,100) -> 3.333333333
F43: Rate for CCBF Case: | H43: =MAX(E36,H41) -> 0.0375

Sheet DefM (hidden)
A1: DefM Input 1
H2: Input | I2: Uspec
H3: 0 | I3: 0
I4: 100
B5: Annual Deferred Maintenance | J5: Input Text | K5: Data Text | L5: Data Source
B6: =J6 -> Input Options | C6: Annual Deferred Maintenance During Constrained Cycle | D6: Data Sources | E6: Input Data | F6: Row | G6: True/False | H6: Active Input | I6: US Range | J6: Input Options | K6: Annual Deferred Maintenance During Constrained Cycle | L6: Data Sources
B7: Maintenance Not Deferred | C7: Full life-cycle optimum regardless of budget cycle | D7: =L7 -> [local CAFRS historical; engineering; project data] | E7: 0 | F7: 0 | G7: =IF(H$3=F7,TRUE,FALSE) -> TRUE | H7: =E7*G7 -> 0 | I7: 0 | J7: Maintenance Not Deferred | K7: Full life-cycle optimum regardless of budget cycle | L7: [local CAFRS historical; engineering; project data]
B8: =J8&" "&TEXT(E8,"0%") -> Maintenance Deferred Each Cycle: 10% | C8: 90% optimum schedule maintained | D8: [local CAFRS historical; engineering; project data] | E8: 0.1 | F8: =F7+1 -> 1 | G8: =IF(H$3=F8,TRUE,FALSE) -> FALSE | H8: =E8*G8 -> 0 | I8: ="-" -> - | J8: Maintenance Deferred Each Cycle: | K8: 90% optimum schedule maintained | L8: [local CAFRS historical; engineering; project data]
B9: =J9&" "&TEXT(E9,"0%") -> Maintenance Deferred Each Cycle: 25% | C9: 75% optimum schedule maintained | D9: [local CAFRS historical; engineering; project data] | E9: 0.25 | F9: =F8+1 -> 2 | G9: FALSE | H9: 0 | I9: ="-" -> - | J9: Maintenance Deferred Each Cycle: | K9: 75% optimum schedule maintained | L9: [local CAFRS historical; engineering; project data]
B10: Maintenance Deferred Each Cycle: 50% | C10: 50% optimum schedule maintained | D10: [local CAFRS historical; engineering; project data] | E10: 0.5 | F10: 3 | G10: FALSE | H10: 0 | I10: - | J10: Maintenance Deferred Each Cycle: | K10: 50% optimum schedule maintained | L10: [local CAFRS historical; engineering; project data]
B11: Maintenance Deferred Each Cycle: 75% | C11: 25% optimum schedule maintained | D11: [local CAFRS historical; engineering; project data] | E11: 0.75 | F11: 4 | G11: FALSE | H11: 0 | I11: - | J11: Maintenance Deferred Each Cycle: | K11: 25% optimum schedule maintained | L11: [local CAFRS historical; engineering; project data]
B12: Maintenance Deferred Each Cycle: 100% | C12: No maintenance during constrained cycle | D12: [local CAFRS historical; engineering; project data] | E12: 1 | F12: 5 | G12: FALSE | H12: 0 | I12: - | J12: Maintenance Deferred Each Cycle: | K12: No maintenance during constrained cycle | L12: [local CAFRS historical; engineering; project data]
B13: User Specified % Annual Deferral: 0% | C13: User specified amount between 0% and 100% | E13: =I14 -> 0 | F13: 6 | G13: FALSE | H13: 0 | I13: 1 | J13: User Specified % Annual Deferral: | K13: ="User specified amount between 0% and "&TEXT(I13,"0%") -> User specified amount between 0% and 100% | L13: =" " -> 
H14: =SUM(H7:H13) -> 0 | I14: =ROUND((I13-I7)*(I3/I4),2) -> 0
A15: DefM Input 2
H16: Input | I16: Uspec
H17: 0 | I17: 0
I18: 100
B19: Annual Deferred Maintenance Remediation | J19: Input Text | K19: Data Text | L19: Data Source
B20: =J20 -> Input Options | C20: Accrued Def. Main. Remediated During Unconstrained Cycle | D20: Data Sources | E20: Input Data | F20: Row | G20: True/False | H20: Active Input | I20: US Range | J20: Input Options | K20: Accrued Def. Main. Remediated During Unconstrained Cycle | L20: Data Sources
B21: Full Remediation Def. Maintenance | C21: Full remediation of accrued def. main during unconstrained cycle | D21: =L21 -> [local CAFRS historical; engineering; project data] | E21: 1 | F21: 0 | G21: =IF(H$17=F21,TRUE,FALSE) -> TRUE | H21: =E21*G21 -> 1 | I21: 0 | J21: Full Remediation Def. Maintenance | K21: Full remediation of accrued def. main during unconstrained cycle | L21: [local CAFRS historical; engineering; project data]
B22: =J22&" "&TEXT(E22,"0%") -> Def. Main. Remediated Each Cycle: 90% | C22: 10% def. main. unremediated at end of unconstrained cycle | D22: [local CAFRS historical; engineering; project data] | E22: 0.9 | F22: =F21+1 -> 1 | G22: =IF(H$17=F22,TRUE,FALSE) -> FALSE | H22: =E22*G22 -> 0 | I22: ="-" -> - | J22: Def. Main. Remediated Each Cycle: | K22: 10% def. main. unremediated at end of unconstrained cycle | L22: [local CAFRS historical; engineering; project data]
B23: =J23&" "&TEXT(E23,"0%") -> Def. Main. Remediated Each Cycle: 75% | C23: 25% def. main. unremediated at end of unconstrained cycle | D23: [local CAFRS historical; engineering; project data] | E23: 0.75 | F23: =F22+1 -> 2 | G23: FALSE | H23: 0 | I23: ="-" -> - | J23: Def. Main. Remediated Each Cycle: | K23: 25% def. main. unremediated at end of unconstrained cycle | L23: [local CAFRS historical; engineering; project data]
B24: Def. Main. Remediated Each Cycle: 50% | C24: 50% def. main. unremediated at end of unconstrained cycle | D24: [local CAFRS historical; engineering; project data] | E24: 0.5 | F24: 3 | G24: FALSE | H24: 0 | I24: - | J24: Def. Main. Remediated Each Cycle: | K24: 50% def. main. unremediated at end of unconstrained cycle | L24: [local CAFRS historical; engineering; project data]
B25: Def. Main. Remediated Each Cycle: 25% | C25: 75% def. main. unremediated at end of unconstrained cycle | D25: [local CAFRS historical; engineering; project data] | E25: 0.25 | F25: 4 | G25: FALSE | H25: 0 | I25: - | J25: Def. Main. Remediated Each Cycle: | K25: 75% def. main. unremediated at end of unconstrained cycle | L25: [local CAFRS historical; engineering; project data]
B26: Def. Main. Remediated Each Cycle: 0% | C26: No def. main. remediated during constrained cycle | D26: [local CAFRS historical; engineering; project data] | E26: 0 | F26: 5 | G26: FALSE | H26: 0 | I26: - | J26: Def. Main. Remediated Each Cycle: | K26: No def. main. remediated during constrained cycle | L26: [local CAFRS historical; engineering; project data]
B27: User Specified % Annual Remediation: 0% | C27: User specified amount between 0% and 100% | E27: =I28 -> 0 | F27: 6 | G27: FALSE | H27: 0 | I27: 1 | J27: User Specified % Annual Remediation: | K27: ="User specified amount between 0% and "&TEXT(I27,"0%") -> User specified amount between 0% and 100% | L27: =" " -> 
H28: =SUM(H21:H27) -> 1 | I28: =ROUND((I27-I21)*(I17/I18),2) -> 0
A29: DefM Input 3
H30: Input | I30: Uspec
H31: 0 | I31: 0
I32: 100
B33: Annual Deferred Maintenance Accretion Rate | J33: Input Text | K33: Data Text | L33: Data Source
B34: =J34 -> Input Options | C34: Cyclical cost of accrued deferred maintenance | D34: Data Sources | E34: Input Data | F34: Row | G34: True/False | H34: Active Input | I34: US Range | J34: Input Options | K34: Cyclical cost of accrued deferred maintenance | L34: Data Sources
B35: Deferred Maintenance Costless | C35: No physical or efficiency cost to delaying maintenance | D35: =L35 -> [local CAFRS historical; engineering; project data] | E35: 0 | F35: 0 | G35: =IF(H$31=F35,TRUE,FALSE) -> TRUE | H35: =E35*G35 -> 0 | I35: 0 | J35: Deferred Maintenance Costless | K35: No physical or efficiency cost to delaying maintenance | L35: [local CAFRS historical; engineering; project data]
B36: =J36&" "&TEXT(E36,"0%") -> Def. Maintenance Annual Cyclical Cost: 3% | C36: Deferral cost low (equal to Standard Case debt rate) | D36: [local CAFRS historical; engineering; project data] | E36: =Std!E37 -> 0.03 | F36: =F35+1 -> 1 | G36: =IF(H$31=F36,TRUE,FALSE) -> FALSE | H36: =E36*G36 -> 0 | I36: ="-" -> - | J36: Def. Maintenance Annual Cyclical Cost: | K36: Deferral cost low (equal to Standard Case debt rate) | L36: [local CAFRS historical; engineering; project data]
B37: =J37&" "&TEXT(E37,"0%") -> Def. Maintenance Annual Cyclical Cost: 5% | C37: Deferral cost moderate low | D37: [local CAFRS historical; engineering; project data] | E37: 0.05 | F37: =F36+1 -> 2 | G37: FALSE | H37: 0 | I37: ="-" -> - | J37: Def. Maintenance Annual Cyclical Cost: | K37: Deferral cost moderate low | L37: [local CAFRS historical; engineering; project data]
B38: Def. Maintenance Annual Cyclical Cost: 7% | C38: Deferral cost moderate high | D38: [local CAFRS historical; engineering; project data] | E38: 0.07 | F38: 3 | G38: FALSE | H38: 0 | I38: - | J38: Def. Maintenance Annual Cyclical Cost: | K38: Deferral cost moderate high | L38: [local CAFRS historical; engineering; project data]
B39: Def. Maintenance Annual Cyclical Cost: 9% | C39: Deferral cost high | D39: [local CAFRS historical; engineering; project data] | E39: 0.09 | F39: 4 | G39: FALSE | H39: 0 | I39: - | J39: Def. Maintenance Annual Cyclical Cost: | K39: Deferral cost high | L39: [local CAFRS historical; engineering; project data]
B40: Def. Maintenance Annual Cyclical Cost: 12% | C40: Deferral cost very high | D40: [local CAFRS historical; engineering; project data] | E40: 0.12 | F40: 5 | G40: FALSE | H40: 0 | I40: - | J40: Def. Maintenance Annual Cyclical Cost: | K40: Deferral cost very high | L40: [local CAFRS historical; engineering; project data]
B41: =J41&" "&TEXT(E41,"0.00%") -> User Specified Annual Cyclical Cost: 0.00% | C41: User specified rate between 0% and 12% | E41: =I42 -> 0 | F41: 6 | G41: FALSE | H41: 0 | I41: 0.12 | J41: User Specified Annual Cyclical Cost: | K41: ="User specified rate between 0% and "&TEXT(I41,"0%") -> User specified rate between 0% and 12% | L41: =" " -> 
H42: =SUM(H35:H41) -> 0 | I42: =ROUND((I41-I35)*(I31/I32),3) -> 0

Sheet DisS (hidden)
A1: DisS Input 1
H2: Input | I2: Uspec
H3: =DSS!J19 -> 0 | I3: =Tech4!C35 -> 100 | K3: Note: % is undeferred project cost: def. main. assumed to cause displacement if not deferred
I4: 100
B5: Annual Displaced Spending | J5: Input Text | K5: Data Text | L5: Data Source
B6: =J6 -> Input Options | C6: Annual Spending Displaced by Undeferred Project Costs During Constrained Cycle | D6: Data Sources | E6: Input Data | F6: Row | G6: True/False | H6: Active Input | I6: US Range | J6: Input Options | K6: Annual Spending Displaced by Undeferred Project Costs During Constrained Cycle | L6: Data Sources
B7: No Displaced Spending (Alt. Def. Main Only) | C7: No displaced spending due to undeferred project costs | D7: =L7 -> [local CAFRS historical] | E7: 0 | F7: 0 | G7: =IF(H$3=F7,TRUE,FALSE) -> TRUE | H7: =E7*G7 -> 0 | I7: 0 | J7: No Displaced Spending (Alt. Def. Main Only) | K7: No displaced spending due to undeferred project costs | L7: [local CAFRS historical]
B8: =J8&" "&TEXT(E8,"0%") -> Displaced Spending Each Cycle: 10% | C8: Low amount spending displaced by undeferred project costs | D8: [local CAFRS historical] | E8: 0.1 | F8: =F7+1 -> 1 | G8: =IF(H$3=F8,TRUE,FALSE) -> FALSE | H8: =E8*G8 -> 0 | I8: ="-" -> - | J8: Displaced Spending Each Cycle: | K8: Low amount spending displaced by undeferred project costs | L8: [local CAFRS historical]
B9: =J9&" "&TEXT(E9,"0%") -> Displaced Spending Each Cycle: 25% | C9: Moderate-low amount spending displaced by undeferred project costs | D9: [local CAFRS historical] | E9: 0.25 | F9: =F8+1 -> 2 | G9: FALSE | H9: 0 | I9: ="-" -> - | J9: Displaced Spending Each Cycle: | K9: Moderate-low amount spending displaced by undeferred project costs | L9: [local CAFRS historical]
B10: Displaced Spending Each Cycle: 50% | C10: Moderate-high amount spending displaced by undeferred project costs | D10: [local CAFRS historical] | E10: 0.5 | F10: 3 | G10: FALSE | H10: 0 | I10: - | J10: Displaced Spending Each Cycle: | K10: Moderate-high amount spending displaced by undeferred project costs | L10: [local CAFRS historical]
B11: Displaced Spending Each Cycle: 75% | C11: High amount spending displaced by undeferred project costs | D11: [local CAFRS historical] | E11: 0.75 | F11: 4 | G11: FALSE | H11: 0 | I11: - | J11: Displaced Spending Each Cycle: | K11: High amount spending displaced by undeferred project costs | L11: [local CAFRS historical]
B12: Displaced Spending Each Cycle: 100% | C12: All undeferred project costs cause displaced spending during constrained cycle | D12: [local CAFRS historical] | E12: 1 | F12: 5 | G12: FALSE | H12: 0 | I12: - | J12: Displaced Spending Each Cycle: | K12: All undeferred project costs cause displaced spending during constrained cycle | L12: [local CAFRS historical]
B13: User Specified % Annual Displacement: 100% | C13: User specified amount between 0% and 100% | E13: =I14 -> 1 | F13: 6 | G13: FALSE | H13: 0 | I13: 1 | J13: User Specified % Annual Displacement: | K13: ="User specified amount between 0% and "&TEXT(I13,"0%") -> User specified amount between 0% and 100% | L13: =" " -> 
H14: =SUM(H7:H13) -> 0 | I14: =ROUND((I13-I7)*(I3/I4),2) -> 1
A15: DisS Input 2
H16: Input | I16: Uspec
H17: =DSS!J20 -> 0 | I17: =Tech4!C36 -> 0
I18: 100
B19: Annual Displaced Spending Remediation | J19: Input Text | K19: Data Text | L19: Data Source
B20: =J20 -> Input Options | C20: Accrued Dis. Spend. Remediated During Unconstrained Cycle | D20: Data Sources | E20: Input Data | F20: Row | G20: True/False | H20: Active Input | I20: US Range | J20: Input Options | K20: Accrued Dis. Spend. Remediated During Unconstrained Cycle | L20: Data Sources
B21: Full Remediation Displaced Spending | C21: Full remediation of accrued dis. Spend. during unconstrained cycle | D21: =L21 -> [local CAFRS historical] | E21: 1 | F21: 0 | G21: =IF(H$17=F21,TRUE,FALSE) -> TRUE | H21: =E21*G21 -> 1 | I21: 0 | J21: Full Remediation Displaced Spending | K21: Full remediation of accrued dis. Spend. during unconstrained cycle | L21: [local CAFRS historical]
B22: =J22&" "&TEXT(E22,"0%") -> Displ. Spend. Remediated Each Cycle: 90% | C22: 90% remediation of accrued dis. spend. during unconstrained cycle | D22: [local CAFRS historical] | E22: 0.9 | F22: =F21+1 -> 1 | G22: =IF(H$17=F22,TRUE,FALSE) -> FALSE | H22: =E22*G22 -> 0 | I22: ="-" -> - | J22: Displ. Spend. Remediated Each Cycle: | K22: 90% remediation of accrued dis. spend. during unconstrained cycle | L22: [local CAFRS historical]
B23: =J23&" "&TEXT(E23,"0%") -> Disp.Spend. Remediated Each Cycle: 75% | C23: 75% remediation of accrued dis. spend. during unconstrained cycle | D23: [local CAFRS historical] | E23: 0.75 | F23: =F22+1 -> 2 | G23: FALSE | H23: 0 | I23: ="-" -> - | J23: Disp.Spend. Remediated Each Cycle: | K23: 75% remediation of accrued dis. spend. during unconstrained cycle | L23: [local CAFRS historical]
B24: Disp.Spend. Remediated Each Cycle: 50% | C24: 50% remediation of accrued dis. spend. during unconstrained cycle | D24: [local CAFRS historical] | E24: 0.5 | F24: 3 | G24: FALSE | H24: 0 | I24: - | J24: Disp.Spend. Remediated Each Cycle: | K24: 50% remediation of accrued dis. spend. during unconstrained cycle | L24: [local CAFRS historical]
B25: Disp.Spend. Remediated Each Cycle: 25% | C25: 25% remediation of accrued dis. spend. during unconstrained cycle | D25: [local CAFRS historical] | E25: 0.25 | F25: 4 | G25: FALSE | H25: 0 | I25: - | J25: Disp.Spend. Remediated Each Cycle: | K25: 25% remediation of accrued dis. spend. during unconstrained cycle | L25: [local CAFRS historical]
B26: Disp.Spend. Remediated Each Cycle: 0% | C26: No remediation of accrued dis. spend. during unconstrained cycle | D26: [local CAFRS historical] | E26: 0 | F26: 5 | G26: FALSE | H26: 0 | I26: - | J26: Disp.Spend. Remediated Each Cycle: | K26: No remediation of accrued dis. spend. during unconstrained cycle | L26: [local CAFRS historical]
B27: User Specified % Remediation: 0% | C27: User specified amount between 0% and 100% | E27: =I28 -> 0 | F27: 6 | G27: FALSE | H27: 0 | I27: 1 | J27: User Specified % Remediation: | K27: ="User specified amount between 0% and "&TEXT(I27,"0%") -> User specified amount between 0% and 100% | L27: =" " -> 
H28: =SUM(H21:H27) -> 1 | I28: =ROUND((I27-I21)*(I17/I18),2) -> 0
A29: DisS Input 3
H30: Input | I30: Uspec
H31: 0 | I31: 0
I32: 100
B33: Annual Defrred Maintenance Accretion Rate | J33: Input Text | K33: Data Text | L33: Data Source
B34: =J34 -> Input Options | C34: Cyclical cost of accrued Displaced Spending | D34: Data Sources | E34: Input Data | F34: Row | G34: True/False | H34: Active Input | I34: US Range | J34: Input Options | K34: Cyclical cost of accrued Displaced Spending | L34: Data Sources
B35: Displaced Spending Costless | C35: No loss or cost due to delaying spending | D35: =L35 -> [local CAFRS historical] | E35: 0 | F35: 0 | G35: =IF(H$31=F35,TRUE,FALSE) -> TRUE | H35: =E35*G35 -> 0 | I35: 0 | J35: Displaced Spending Costless | K35: No loss or cost due to delaying spending | L35: [local CAFRS historical]
B36: =J36&" "&TEXT(E36,"0.0%") -> Debt Reduction Rate: 3.0% | C36: Displaced spending could have reduced local debt | D36: [local CAFRS historical, debt market analysis] | E36: =Std!E37 -> 0.03 | F36: =F35+1 -> 1 | G36: =IF(H$31=F36,TRUE,FALSE) -> FALSE | H36: =E36*G36 -> 0 | I36: ="-" -> - | J36: Debt Reduction Rate: | K36: Displaced spending could have reduced local debt | L36: [local CAFRS historical, debt market analysis]
B37: =J37&" "&TEXT(E37,"0.0%") -> OPEB Funding Rate: 5.0% | C37: Displaced spending could have funded OPEB obligations | D37: [local CAFRS historical; actuarial assessment] | E37: 0.05 | F37: =F36+1 -> 2 | G37: FALSE | H37: 0 | I37: ="-" -> - | J37: OPEB Funding Rate: | K37: Displaced spending could have funded OPEB obligations | L37: [local CAFRS historical; actuarial assessment]
B38: Pension Funding Rate: 7.5% | C38: Displaced spending could have funded pension obligations | D38: [local CAFRS historical; actuarial assessment] | E38: 0.075 | F38: 3 | G38: FALSE | H38: 0 | I38: - | J38: Pension Funding Rate: | K38: Displaced spending could have funded pension obligations | L38: [local CAFRS historical; actuarial assessment]
B39: Loss of Economic Value Rate: 9.0% | C39: Displaced spending delays local economic value of other projects | D39: [local CAFRS historical; benefit:cost analyses] | E39: 0.09 | F39: 4 | G39: FALSE | H39: 0 | I39: - | J39: Loss of Economic Value Rate: | K39: Displaced spending delays local economic value of other projects | L39: [local CAFRS historical; benefit:cost analyses]
B40: Loss of Social Value Rate: 12.0% | C40: Displaced spending causes loss of social value and efficiency | D40: [local CAFRS historical; benefit:cost analyses] | E40: 0.12 | F40: 5 | G40: FALSE | H40: 0 | I40: - | J40: Loss of Social Value Rate: | K40: Displaced spending causes loss of social value and efficiency | L40: [local CAFRS historical; benefit:cost analyses]
B41: User Specified Annual Cyclical Cost: 0.0% | C41: User specified amount between 0% and 12% | E41: =I42 -> 0 | F41: 6 | G41: FALSE | H41: 0 | I41: 0.12 | J41: User Specified Annual Cyclical Cost: | K41: ="User specified amount between 0% and "&TEXT(I41,"0%") -> User specified amount between 0% and 12% | L41: =" " -> 
H42: =SUM(H35:H41) -> 0 | I42: =ROUND((I41-I35)*(I31/I32),3) -> 0

Sheet CCBF (hidden)
A1: CCBF Input 1 | B1: Alt Main: | C1: =Alt!H28 -> 0 | D1: Alt Ops: | E1: =Alt!H14 -> 0 | F1: CCBF Rate: | G1: =H41 -> 0.0375
B2: Con Cycle: | C2: =BC!H14 -> 0 | D2: Alt Pmt: | E2: =Alt!H42 -> 3.333333333 | H2: Input | I2: Uspec
H3: 0 | I3: 0 | K3: Note: No CCBF means Alt. causes displaced spending
I4: 100
B5: CCBF Amount | J5: Input Text | K5: Data Text | L5: Data Source
B6: =J6 -> Input Options | C6: CCBF Facility Size | D6: Data Sources | E6: Input Data | F6: Row | G6: True/False | H6: Active Input | I6: US Range | J6: Input Options | K6: CCBF Facility Size | L6: Data Sources
B7: No CCBF | C7: No CCBF: Alternative prohibits def. main., result in dis.spen. | D7: [Project data and models; debt market input] | E7: 0 | F7: 0 | G7: =IF(H$3=F7,TRUE,FALSE) -> TRUE | H7: =E7*G7 -> 0 | I7: 0.03 | J7: No CCBF | K7: No CCBF: Alternative prohibits def. main., result in dis.spen. | L7: [Project data and models; debt market input]
A8: CCBF % DS | B8: =J8&" "&TEXT(E8,"0.0") -> CCBF for Def. Main. Only: 0.0 | C8: CCBF sized to cover expected def. main. during constrained | D8: [Project data and models; debt market input] | E8: =ROUNDUP(C1*C2*(1+G1)^C2,0) -> 0 | F8: =F7+1 -> 1 | G8: =IF(H$3=F8,TRUE,FALSE) -> FALSE | H8: =E8*G8 -> 0 | I8: ="-" -> - | J8: CCBF for Def. Main. Only: | K8: CCBF sized to cover expected def. main. during constrained | L8: [Project data and models; debt market input]
A9: 0.25 | B9: =J9&" "&TEXT(E9,"0.0")&" ("&TEXT(A9,"0%")&")" -> CCBF % Dis. Spend. Cover: 0.0 (25%) | C9: CCBF sized to cover 25% project costs during constrained | D9: [Project data and models; debt market input] | E9: =ROUNDUP(A9*((($E$1+$E$2)*$C$2)*(1+$G$1))+$E$8,0) -> 0 | F9: =F8+1 -> 2 | G9: FALSE | H9: 0 | I9: ="-" -> - | J9: CCBF % Dis. Spend. Cover: | K9: CCBF sized to cover 25% project costs during constrained | L9: [Project data and models; debt market input]
A10: 0.5 | B10: =J10&" "&TEXT(E10,"0.0")&" ("&TEXT(A10,"0%")&")" -> CCBF % Dis. Spend. Cover: 0.0 (50%) | C10: CCBF sized to cover 50% project costs during constrained | D10: [Project data and models; debt market input] | E10: =ROUNDUP(A10*((($E$1+$E$2)*$C$2)*(1+$G$1))+$E$8,0) -> 0 | F10: 3 | G10: FALSE | H10: 0 | I10: - | J10: CCBF % Dis. Spend. Cover: | K10: CCBF sized to cover 50% project costs during constrained | L10: [Project data and models; debt market input]
A11: 0.75 | B11: CCBF % Dis. Spend. Cover: 0.0 (75%) | C11: CCBF sized to cover 75% project costs during constrained | D11: [Project data and models; debt market input] | E11: 0 | F11: 4 | G11: FALSE | H11: 0 | I11: - | J11: CCBF % Dis. Spend. Cover: | K11: CCBF sized to cover 75% project costs during constrained | L11: [Project data and models; debt market input]
A12: 1 | B12: CCBF % Dis. Spend. Cover: 0.0 (100%) | C12: CCBF sized to cover 100% project costs during constrained | D12: [Project data and models; debt market input] | E12: 0 | F12: 5 | G12: FALSE | H12: 0 | I12: 75 | J12: CCBF % Dis. Spend. Cover: | K12: CCBF sized to cover 100% project costs during constrained | L12: [Project data and models; debt market input]
B13: =J13&" "&TEXT(E13,"0.0") -> User Specified CCBF Size: 0.0 | C13: User specified CCBF size between 0 and 75.0 | E13: =I13 -> 0 | F13: 6 | G13: FALSE | H13: 0 | I13: =ROUND((I12-I7)*(I3/I4),1) -> 0 | J13: User Specified CCBF Size: | K13: ="User specified CCBF size between 0 and "&TEXT(I12,"0.0") -> User specified CCBF size between 0 and 75.0
H14: =SUM(H7:H13) -> 0
A15: CCBF Input 2
B16: Uncon Cycle: | C16: =BC!H28 -> 5 | H16: Input | I16: Uspec
H17: 2 | I17: 0
I18: 100
B19: CCBF Repayment Period | J19: Input Text | K19: Data Text | L19: Data Source
B20: =J20 -> Input Options | C20: =K20 -> CCBF Repayment Period During Unconstrained Cycle | D20: =L20 -> Data Sources | E20: Input Data | F20: Row | G20: True/False | H20: Active Input | I20: US Range | J20: Input Options | K20: CCBF Repayment Period During Unconstrained Cycle | L20: Data Sources
B21: =J21&" "&TEXT(E21,"0") -> CCBF Repayment Period: 1 | C21: =K21 -> Minimum of 1 year | D21: =L21 -> [Project data and models; debt market input] | E21: 1 | F21: 0 | G21: =IF(H$17=F21,TRUE,FALSE) -> FALSE | H21: =E21*G21 -> 0 | I21: 0 | J21: CCBF Repayment Period: | K21: Minimum of 1 year | L21: [Project data and models; debt market input]
B22: =J22&" "&TEXT(E22,"0") -> CCBF Max Repayment Period: 2 | C22: =K22 -> Minimum of Input Option or Length of Unconstrained Cycle | D22: [Project data and models; debt market input] | E22: 2 | F22: =F21+1 -> 1 | G22: =IF(H$17=F22,TRUE,FALSE) -> FALSE | H22: =E22*G22 -> 0 | I22: ="-" -> - | J22: CCBF Max Repayment Period: | K22: Minimum of Input Option or Length of Unconstrained Cycle | L22: [Project data and models; debt market input]
B23: CCBF Max Repayment Period: 3 | C23: Minimum of Input Option or Length of Unconstrained Cycle | D23: [Project data and models; debt market input] | E23: 3 | F23: =F22+1 -> 2 | G23: TRUE | H23: 3 | I23: ="-" -> - | J23: CCBF Max Repayment Period: | K23: Minimum of Input Option or Length of Unconstrained Cycle | L23: [Project data and models; debt market input]
B24: CCBF Max Repayment Period: 4 | C24: Minimum of Input Option or Length of Unconstrained Cycle | D24: [Project data and models; debt market input] | E24: 4 | F24: 3 | G24: FALSE | H24: 0 | I24: - | J24: CCBF Max Repayment Period: | K24: Minimum of Input Option or Length of Unconstrained Cycle | L24: [Project data and models; debt market input]
B25: CCBF Max Repayment Period: 5 | C25: Minimum of Input Option or Length of Unconstrained Cycle | D25: [Project data and models; debt market input] | E25: 5 | F25: 4 | G25: FALSE | H25: 0 | I25: - | J25: CCBF Max Repayment Period: | K25: Minimum of Input Option or Length of Unconstrained Cycle | L25: [Project data and models; debt market input]
B26: CCBF Max Repayment Period: 6 | C26: Minimum of Input Option or Length of Unconstrained Cycle | D26: [Project data and models; debt market input] | E26: 6 | F26: 5 | G26: FALSE | H26: 0 | I26: 30 | J26: CCBF Max Repayment Period: | K26: Minimum of Input Option or Length of Unconstrained Cycle | L26: [Project data and models; debt market input]
B27: User Specified Repayment Period: 1 | C27: User Specified Repay Period between 1 and 30 | E27: =I27 -> 1 | F27: 6 | G27: FALSE | H27: 0 | I27: =MAX(ROUND((I26-I21)*(I17/I18),1),1) -> 1 | J27: User Specified Repayment Period: | K27: ="User Specified Repay Period between 1 and "&TEXT(I26,"0") -> User Specified Repay Period between 1 and 30
H28: =MIN(SUM(H21:H27),C16) -> 3
A29: CCBF Input 3
B30: Alt Base: | C30: =Alt!H43 -> 0.0375 | H30: Input | I30: Uspec
H31: 0 | I31: 0
I32: 100
B33: CCBF Interest Rate | J33: Input Text | K33: Data Text | L33: Data Source
B34: =J34 -> Input Options | C34: CCBF Annual Interest Rate | D34: Data Sources | E34: Input Data | F34: Row | G34: True/False | H34: Active Input | I34: US Range | J34: Input Options | K34: CCBF Annual Interest Rate | L34: Data Sources
B35: =J35&" "&TEXT(E35,"0.00%") -> Same as Alternative Term Debt: 3.75% | C35: [Hypothetical] | D35: [debt markets; P3 investors] | E35: =C30 -> 0.0375 | F35: 0 | G35: =IF(H$31=F35,TRUE,FALSE) -> TRUE | H35: =E35*G35 -> 0.0375 | I35: 0 | J35: Same as Alternative Term Debt: | K35: [Hypothetical] | L35: [debt markets; P3 investors]
B36: =J36&" "&TEXT(E36,"0.00%") -> Long-term Line of Credit: 4.00% | C36: [Hypothetical] | D36: [debt markets; P3 investors] | E36: 0.04 | F36: =F35+1 -> 1 | G36: =IF(H$31=F36,TRUE,FALSE) -> FALSE | H36: =E36*G36 -> 0 | I36: ="-" -> - | J36: Long-term Line of Credit: | K36: [Hypothetical] | L36: [debt markets; P3 investors]
B37: Medium-term Line of Credit: 4.50% | C37: [Hypothetical] | D37: [debt markets; P3 investors] | E37: 0.045 | F37: =F36+1 -> 2 | G37: FALSE | H37: 0 | I37: ="-" -> - | J37: Medium-term Line of Credit: | K37: [Hypothetical] | L37: [debt markets; P3 investors]
B38: Short-term Line of Credit: 5.00% | C38: [Hypothetical] | D38: [debt markets; P3 investors] | E38: 0.05 | F38: 3 | G38: FALSE | H38: 0 | I38: - | J38: Short-term Line of Credit: | K38: [Hypothetical] | L38: [debt markets; P3 investors]
B39: Very Short-term Floating-Rate: 1.50% | C39: [Hypothetical] | D39: [debt markets; P3 investors] | E39: 0.015 | F39: 4 | G39: FALSE | H39: 0 | I39: - | J39: Very Short-term Floating-Rate: | K39: [Hypothetical] | L39: [debt markets; P3 investors]
B40: User Specified Interest Rate: 0.00% | C40: =K40 -> User specified amount between 0% and 8.00% | D40: =L40 ->  | E40: =I41 -> 0 | F40: =F39+1 -> 5 | G40: FALSE | H40: 0 | I40: 0.08 | J40: User Specified Interest Rate: | K40: ="User specified amount between 0% and "&TEXT(I40,"0.00%") -> User specified amount between 0% and 8.00% | L40: =" " -> 
H41: =SUM(H35:H40) -> 0.0375 | I41: =ROUND((I40-I35)*(I31/I32),4) -> 0

Sheet VfM (hidden)
A15: VfM Input 1
H16: Input | I16: Uspec
H17: 0 | I17: 0
I18: 100
B19: VfM Time Period | J19: Input Text | K19: Data Text | L19: Data Source
B20: =J20 -> Input Options | C20: VfM Evaluation Timeframe | D20: Data Sources | E20: Input Data | F20: Row | G20: True/False | H20: Active Input | I20: US Range | J20: Input Options | K20: VfM Evaluation Timeframe | L20: Data Sources
B21: Full 30-year Term | C21: Full evaluation framework | D21: =L21 -> [economic, financial and BCA methodollogy] | E21: 30 | F21: 0 | G21: =IF(H$17=F21,TRUE,FALSE) -> TRUE | H21: =E21*G21 -> 30 | I21: 0 | J21: Full 30-year Term | K21: Full evaluation framework | L21: [economic, financial and BCA methodollogy]
B22: Years 1-25 | C22: Long-term focus | D22: [economic, financial and BCA methodollogy] | E22: =E21-5 -> 25 | F22: =F21+1 -> 1 | G22: =IF(H$17=F22,TRUE,FALSE) -> FALSE | H22: =E22*G22 -> 0 | I22: ="-" -> - | J22: Years 1-25 | K22: Long-term focus | L22: [economic, financial and BCA methodollogy]
B23: Years 1-20 | C23: [Hypothetical] | D23: [economic, financial and BCA methodollogy] | E23: =E22-5 -> 20 | F23: =F22+1 -> 2 | G23: FALSE | H23: 0 | I23: ="-" -> - | J23: Years 1-20 | K23: [Hypothetical] | L23: [economic, financial and BCA methodollogy]
B24: Years 1-15 | C24: [Hypothetical] | D24: [economic, financial and BCA methodollogy] | E24: 15 | F24: 3 | G24: FALSE | H24: 0 | I24: - | J24: Years 1-15 | K24: [Hypothetical] | L24: [economic, financial and BCA methodollogy]
B25: Years 1-10 | C25: [Hypothetical] | D25: [economic, financial and BCA methodollogy] | E25: 10 | F25: 4 | G25: FALSE | H25: 0 | I25: - | J25: Years 1-10 | K25: [Hypothetical] | L25: [economic, financial and BCA methodollogy]
B26: Years 1-5 | C26: Medium-term focus | D26: [economic, financial and BCA methodollogy] | E26: 5 | F26: 5 | G26: FALSE | H26: 0 | I26: - | J26: Years 1-5 | K26: Medium-term focus | L26: [economic, financial and BCA methodollogy]
B27: =J27&" "&TEXT(E27,"0") -> User Specified VfM Time Period: 0 | C27: User specified timeframe between 0 and 30 | E27: =I28 -> 0 | F27: 6 | G27: FALSE | H27: 0 | I27: =E21 -> 30 | J27: User Specified VfM Time Period: | K27: ="User specified timeframe between 0 and "&TEXT(I27,"0") -> User specified timeframe between 0 and 30 | L27: =" " -> 
H28: =SUM(H21:H27) -> 30 | I28: =ROUND((I27-I21)*(I17/I18),2) -> 0
A30: VfM Input 2
H31: Input | I31: Uspec
H32: 0 | I32: 0
I33: 100
B34: VfM Discount Rate | J34: Input Text | K34: Data Text | L34: Data Source
A35: Rates: | B35: =J35 -> Input Options | C35: Discount Rate for VfM Evaluation | D35: Data Sources | E35: Input Data | F35: Row | G35: True/False | H35: Active Input | I35: US Range | J35: Input Options | K35: Discount Rate for VfM Evaluation | L35: Data Sources
A36: =Std!H41 -> 0 | B36: =J36&" "&TEXT(E36,"0.00%") -> Same as Standard Term Debt: 0.00% | C36: Lowest rate | D36: [economic, financial and BCA methodollogy] | E36: =A36 -> 0 | F36: 0 | G36: =IF(H$32=F36,TRUE,FALSE) -> TRUE | H36: =E36*G36 -> 0 | I36: 0 | J36: Same as Standard Term Debt: | K36: Lowest rate | L36: [economic, financial and BCA methodollogy]
A37: =Alt!H41 -> 0 | B37: =J37&" "&TEXT(E37,"0.00%") -> Same as Alternative Term Debt: 0.00% | C37: [Hypothetical] | D37: [economic, financial and BCA methodollogy] | E37: =A37 -> 0 | F37: =F36+1 -> 1 | G37: =IF(H$32=F37,TRUE,FALSE) -> FALSE | H37: =E37*G37 -> 0 | I37: ="-" -> - | J37: Same as Alternative Term Debt: | K37: [Hypothetical] | L37: [economic, financial and BCA methodollogy]
A38: =CCBF!H41 -> 0.0375 | B38: Same as CCBF: 3.75% | C38: [Hypothetical] | D38: [economic, financial and BCA methodollogy] | E38: 0.0375 | F38: =F37+1 -> 2 | G38: FALSE | H38: 0 | I38: ="-" -> - | J38: Same as CCBF: | K38: [Hypothetical] | L38: [economic, financial and BCA methodollogy]
A39: =DisS!E39 -> 0.09 | B39: Same as Economic Delay: 9.00% | C39: High rate reflects high potential economic potential | D39: [economic, financial and BCA methodollogy] | E39: 0.09 | F39: 3 | G39: FALSE | H39: 0 | I39: - | J39: Same as Economic Delay: | K39: High rate reflects high potential economic potential | L39: [economic, financial and BCA methodollogy]
A40: =DisS!E40 -> 0.12 | B40: Same as Social Loss: 12.00% | C40: High rate reflects social concerns | D40: [economic, financial and BCA methodollogy] | E40: 0.12 | F40: 4 | G40: FALSE | H40: 0 | I40: - | J40: Same as Social Loss: | K40: High rate reflects social concerns | L40: [economic, financial and BCA methodollogy]
B41: User Specified Discount Rate: 0.00% | C41: =K41 -> User Specified amount between 0% and 15.0% | D41: =L41 -> 0 | E41: =I42 -> 0 | F41: =F40+1 -> 5 | G41: FALSE | H41: 0 | I41: 0.15 | J41: User Specified Discount Rate: | K41: ="User Specified amount between 0% and "&TEXT(I41,"0.0%") -> User Specified amount between 0% and 15.0%
H42: =SUM(H36:H41) -> 0 | I42: =ROUND((I41-I36)*(I32/I33),3) -> 0

Sheet Tech4 (hidden)
A1: Technical 4: DSS Scenarios
A4: Tech1 Inputs | E4: Data Tables
A6: Budget Constrained | C6: =Tech1!D19 -> 0 | E6: Minimum Std/Alt | R6: Data Table Summary
A7: Budget Unconstrained | C7: =Tech1!D20 -> 5 | F7: 0 | G7: =F7+10 -> 10 | H7: =G7+10 -> 20 | I7: 30 | J7: 40 | K7: 50 | L7: 60 | M7: 70 | N7: 80 | O7: 90 | P7: 100 | T7: Standard | U7: Alt
A8: Cycle Start | C8: =Tech1!H21 -> 1 | E8: 0 | F8: =MIN(F22,F36) -> 1e-07 | G8: =MIN(G22,G36) -> 1e-07 | H8: 1e-07 | I8: 1e-07 | J8: 1e-07 | K8: 1e-07 | L8: 1e-07 | M8: 1e-07 | N8: 1e-07 | O8: 1e-07 | P8: 1e-07 | S8: Best | T8: =MIN(F22:P32) -> 1e-07 | U8: =MIN(F36:P46) -> 0.01
E9: =E8+10 -> 10 | F9: =MIN(F23,F37) -> 1e-07 | G9: 1e-07 | H9: 1e-07 | I9: 1e-07 | J9: 1e-07 | K9: 1e-07 | L9: 1e-07 | M9: 1e-07 | N9: 1e-07 | O9: 1e-07 | P9: 1e-07 | S9: Worst | T9: =MAX(F22:P32) -> 1e-07 | U9: =MAX(F36:P46) -> 0.01
A10: Standard Ops | C10: =Tech1!D13 -> 0 | E10: =E9+10 -> 20 | F10: =MIN(F24,F38) -> 1e-07 | G10: 1e-07 | H10: 1e-07 | I10: 1e-07 | J10: 1e-07 | K10: 1e-07 | L10: 1e-07 | M10: 1e-07 | N10: 1e-07 | O10: 1e-07 | P10: 1e-07 | T10: =T8-T9 -> 0 | U10: =U8-U9 -> 0
A11: Standard Main | C11: =Tech1!D12 -> 0 | E11: 30 | F11: =MIN(F25,F39) -> 1e-07 | G11: 1e-07 | H11: 1e-07 | I11: 1e-07 | J11: 1e-07 | K11: 1e-07 | L11: 1e-07 | M11: 1e-07 | N11: 1e-07 | O11: 1e-07 | P11: 1e-07
A12: Standard Debt | C12: =Tech1!D10 -> 0 | E12: 40 | F12: =MIN(F26,F40) -> 1e-07 | G12: 1e-07 | H12: 1e-07 | I12: 1e-07 | J12: 1e-07 | K12: 1e-07 | L12: 1e-07 | M12: 1e-07 | N12: 1e-07 | O12: 1e-07 | P12: 1e-07 | S12: Better % | T12: =1-U12 -> 1 | U12: =SUM(F50:P60)/121 -> 0
E13: 50 | F13: =MIN(F27,F41) -> 1e-07 | G13: 1e-07 | H13: 1e-07 | I13: 1e-07 | J13: 1e-07 | K13: 1e-07 | L13: 1e-07 | M13: 1e-07 | N13: 1e-07 | O13: 1e-07 | P13: 1e-07 | S13: Average | T13: =AVERAGE(F22:P32) -> 1e-07 | U13: =AVERAGE(F36:P46) -> 0.01
A14: Def Main % | C14: =Tech1!D23 -> 0 | E14: 60 | F14: =MIN(F28,F42) -> 1e-07 | G14: 1e-07 | H14: 1e-07 | I14: 1e-07 | J14: 1e-07 | K14: 1e-07 | L14: 1e-07 | M14: 1e-07 | N14: 1e-07 | O14: 1e-07 | P14: 1e-07 | S14: Median | T14: =MEDIAN(F22:P32) -> 1e-07 | U14: =MEDIAN(F36:P46) -> 0.01
A15: Def Main Rem % | C15: =Tech1!D25 -> 1 | E15: 70 | F15: =MIN(F29,F43) -> 1e-07 | G15: 1e-07 | H15: 1e-07 | I15: 1e-07 | J15: 1e-07 | K15: 1e-07 | L15: 1e-07 | M15: 1e-07 | N15: 1e-07 | O15: 1e-07 | P15: 1e-07 | S15: Std | T15: =_xlfn.STDEV.P(F22:P32) -> 2.249931266e-22 | U15: =_xlfn.STDEV.P(F36:P46) -> 5.204170428e-18
A16: Def Main Rate | C16: =Tech1!D24 -> 0 | E16: 80 | F16: =MIN(F30,F44) -> 1e-07 | G16: 1e-07 | H16: 1e-07 | I16: 1e-07 | J16: 1e-07 | K16: 1e-07 | L16: 1e-07 | M16: 1e-07 | N16: 1e-07 | O16: 1e-07 | P16: 1e-07
E17: 90 | F17: =MIN(F31,F45) -> 1e-07 | G17: 1e-07 | H17: 1e-07 | I17: 1e-07 | J17: 1e-07 | K17: 1e-07 | L17: 1e-07 | M17: 1e-07 | N17: 1e-07 | O17: 1e-07 | P17: 1e-07
A18: Tech2 Inputs | E18: 100 | F18: =MIN(F32,F46) -> 1e-07 | G18: 1e-07 | H18: 1e-07 | I18: 1e-07 | J18: 1e-07 | K18: 1e-07 | L18: 1e-07 | M18: 1e-07 | N18: 1e-07 | O18: 1e-07 | P18: 1e-07
A20: Alt Ops | C20: =Tech2!D13 -> 0 | E20: Standard PV | R20: Frequency Table | T20: 121 | V20: 121
A21: Alt Main | C21: =Tech2!D12 -> 0 | E21: =C31 -> 1e-07 | F21: 0 | G21: =F21+10 -> 10 | H21: =G21+10 -> 20 | I21: 30 | J21: 40 | K21: 50 | L21: 60 | M21: 70 | N21: 80 | O21: 90 | P21: 100 | R21: Bins | S21: Std Raw | T21: Std CM | U21: Alt Raw | V21: Alt CM | W21: Std % Freq | X21: Alt % Freq
A22: Alt Debt | C22: =Tech2!D10 -> 0 | E22: 0 | F22: 1e-07 | G22: 1e-07 | H22: 1e-07 | I22: 1e-07 | J22: 1e-07 | K22: 1e-07 | L22: 1e-07 | M22: 1e-07 | N22: 1e-07 | O22: 1e-07 | P22: 1e-07 | R22: 175 | S22: =FREQUENCY(F22:P32,R22:R196) -> 121 | T22: =T20-S22 -> 0 | U22: =FREQUENCY(F36:P46,R22:R196) -> 121 | V22: =V20-U22 -> 0 | W22: =T22/$T$20 -> 0 | X22: =V22/$V$20 -> 0
E23: =E22+10 -> 10 | F23: 1e-07 | G23: 1e-07 | H23: 1e-07 | I23: 1e-07 | J23: 1e-07 | K23: 1e-07 | L23: 1e-07 | M23: 1e-07 | N23: 1e-07 | O23: 1e-07 | P23: 1e-07 | R23: =R22+1 -> 176 | S23: 0 | T23: =T22-S23 -> 0 | U23: 0 | V23: =V22-U23 -> 0 | W23: =T23/$T$20 -> 0 | X23: =V23/$V$20 -> 0
A24: CCBF Amount | C24: =Tech2!D24 -> 0 | E24: =E23+10 -> 20 | F24: 1e-07 | G24: 1e-07 | H24: 1e-07 | I24: 1e-07 | J24: 1e-07 | K24: 1e-07 | L24: 1e-07 | M24: 1e-07 | N24: 1e-07 | O24: 1e-07 | P24: 1e-07 | R24: =R23+1 -> 177 | S24: 0 | T24: =T23-S24 -> 0 | U24: 0 | V24: 0 | W24: 0 | X24: 0
A25: CCBF Repay | C25: =Tech2!D25 -> 3 | E25: 30 | F25: 1e-07 | G25: 1e-07 | H25: 1e-07 | I25: 1e-07 | J25: 1e-07 | K25: 1e-07 | L25: 1e-07 | M25: 1e-07 | N25: 1e-07 | O25: 1e-07 | P25: 1e-07 | R25: 178 | S25: 0 | T25: 0 | U25: 0 | V25: 0 | W25: 0 | X25: 0
A26: CCBF Rate | C26: =Tech2!D23 -> 0.0375 | E26: 40 | F26: 1e-07 | G26: 1e-07 | H26: 1e-07 | I26: 1e-07 | J26: 1e-07 | K26: 1e-07 | L26: 1e-07 | M26: 1e-07 | N26: 1e-07 | O26: 1e-07 | P26: 1e-07 | R26: 179 | S26: 0 | T26: 0 | U26: 0 | V26: 0 | W26: 0 | X26: 0
E27: 50 | F27: 1e-07 | G27: 1e-07 | H27: 1e-07 | I27: 1e-07 | J27: 1e-07 | K27: 1e-07 | L27: 1e-07 | M27: 1e-07 | N27: 1e-07 | O27: 1e-07 | P27: 1e-07 | R27: 180 | S27: 0 | T27: 0 | U27: 0 | V27: 0 | W27: 0 | X27: 0
A28: VfM term | C28: =Tech2!D38 -> 30 | E28: 60 | F28: 1e-07 | G28: 1e-07 | H28: 1e-07 | I28: 1e-07 | J28: 1e-07 | K28: 1e-07 | L28: 1e-07 | M28: 1e-07 | N28: 1e-07 | O28: 1e-07 | P28: 1e-07 | R28: 181 | S28: 0 | T28: 0 | U28: 0 | V28: 0 | W28: 0 | X28: 0
A29: VfM Rate | C29: =Tech2!D36 -> 0 | E29: 70 | F29: 1e-07 | G29: 1e-07 | H29: 1e-07 | I29: 1e-07 | J29: 1e-07 | K29: 1e-07 | L29: 1e-07 | M29: 1e-07 | N29: 1e-07 | O29: 1e-07 | P29: 1e-07 | R29: 182 | S29: 0 | T29: 0 | U29: 0 | V29: 0 | W29: 0 | X29: 0
E30: 80 | F30: 1e-07 | G30: 1e-07 | H30: 1e-07 | I30: 1e-07 | J30: 1e-07 | K30: 1e-07 | L30: 1e-07 | M30: 1e-07 | N30: 1e-07 | O30: 1e-07 | P30: 1e-07 | R30: 183 | S30: 0 | T30: 0 | U30: 0 | V30: 0 | W30: 0 | X30: 0
A31: Standard PV | C31: =Tech2!J49 -> 1e-07 | E31: 90 | F31: 1e-07 | G31: 1e-07 | H31: 1e-07 | I31: 1e-07 | J31: 1e-07 | K31: 1e-07 | L31: 1e-07 | M31: 1e-07 | N31: 1e-07 | O31: 1e-07 | P31: 1e-07 | R31: 184 | S31: 0 | T31: 0 | U31: 0 | V31: 0 | W31: 0 | X31: 0
A32: Alt PV | C32: =Tech2!K49 -> 0.01 | E32: 100 | F32: 1e-07 | G32: 1e-07 | H32: 1e-07 | I32: 1e-07 | J32: 1e-07 | K32: 1e-07 | L32: 1e-07 | M32: 1e-07 | N32: 1e-07 | O32: 1e-07 | P32: 1e-07 | R32: 185 | S32: 0 | T32: 0 | U32: 0 | V32: 0 | W32: 0 | X32: 0
R33: 186 | S33: 0 | T33: 0 | U33: 0 | V33: 0 | W33: 0 | X33: 0
E34: Alt PV | R34: 187 | S34: 0 | T34: 0 | U34: 0 | V34: 0 | W34: 0 | X34: 0
A35: Temp DisS % | C35: 100 | E35: =C32 -> 0.01 | F35: 0 | G35: =F35+10 -> 10 | H35: =G35+10 -> 20 | I35: 30 | J35: 40 | K35: 50 | L35: 60 | M35: 70 | N35: 80 | O35: 90 | P35: 100 | R35: 188 | S35: 0 | T35: 0 | U35: 0 | V35: 0 | W35: 0 | X35: 0
A36: Temp DisSRem% | C36: 0 | E36: 0 | F36: 0.01 | G36: 0.01 | H36: 0.01 | I36: 0.01 | J36: 0.01 | K36: 0.01 | L36: 0.01 | M36: 0.01 | N36: 0.01 | O36: 0.01 | P36: 0.01 | R36: 189 | S36: 0 | T36: 0 | U36: 0 | V36: 0 | W36: 0 | X36: 0
E37: =E36+10 -> 10 | F37: 0.01 | G37: 0.01 | H37: 0.01 | I37: 0.01 | J37: 0.01 | K37: 0.01 | L37: 0.01 | M37: 0.01 | N37: 0.01 | O37: 0.01 | P37: 0.01 | R37: 190 | S37: 0 | T37: 0 | U37: 0 | V37: 0 | W37: 0 | X37: 0
E38: =E37+10 -> 20 | F38: 0.01 | G38: 0.01 | H38: 0.01 | I38: 0.01 | J38: 0.01 | K38: 0.01 | L38: 0.01 | M38: 0.01 | N38: 0.01 | O38: 0.01 | P38: 0.01 | R38: 191 | S38: 0 | T38: 0 | U38: 0 | V38: 0 | W38: 0 | X38: 0
E39: 30 | F39: 0.01 | G39: 0.01 | H39: 0.01 | I39: 0.01 | J39: 0.01 | K39: 0.01 | L39: 0.01 | M39: 0.01 | N39: 0.01 | O39: 0.01 | P39: 0.01 | R39: 192 | S39: 0 | T39: 0 | U39: 0 | V39: 0 | W39: 0 | X39: 0
E40: 40 | F40: 0.01 | G40: 0.01 | H40: 0.01 | I40: 0.01 | J40: 0.01 | K40: 0.01 | L40: 0.01 | M40: 0.01 | N40: 0.01 | O40: 0.01 | P40: 0.01 | R40: 193 | S40: 0 | T40: 0 | U40: 0 | V40: 0 | W40: 0 | X40: 0
E41: 50 | F41: 0.01 | G41: 0.01 | H41: 0.01 | I41: 0.01 | J41: 0.01 | K41: 0.01 | L41: 0.01 | M41: 0.01 | N41: 0.01 | O41: 0.01 | P41: 0.01 | R41: 194 | S41: 0 | T41: 0 | U41: 0 | V41: 0 | W41: 0 | X41: 0
E42: 60 | F42: 0.01 | G42: 0.01 | H42: 0.01 | I42: 0.01 | J42: 0.01 | K42: 0.01 | L42: 0.01 | M42: 0.01 | N42: 0.01 | O42: 0.01 | P42: 0.01 | R42: 195 | S42: 0 | T42: 0 | U42: 0 | V42: 0 | W42: 0 | X42: 0
E43: 70 | F43: 0.01 | G43: 0.01 | H43: 0.01 | I43: 0.01 | J43: 0.01 | K43: 0.01 | L43: 0.01 | M43: 0.01 | N43: 0.01 | O43: 0.01 | P43: 0.01 | R43: 196 | S43: 0 | T43: 0 | U43: 0 | V43: 0 | W43: 0 | X43: 0
E44: 80 | F44: 0.01 | G44: 0.01 | H44: 0.01 | I44: 0.01 | J44: 0.01 | K44: 0.01 | L44: 0.01 | M44: 0.01 | N44: 0.01 | O44: 0.01 | P44: 0.01 | R44: 197 | S44: 0 | T44: 0 | U44: 0 | V44: 0 | W44: 0 | X44: 0
E45: 90 | F45: 0.01 | G45: 0.01 | H45: 0.01 | I45: 0.01 | J45: 0.01 | K45: 0.01 | L45: 0.01 | M45: 0.01 | N45: 0.01 | O45: 0.01 | P45: 0.01 | R45: 198 | S45: 0 | T45: 0 | U45: 0 | V45: 0 | W45: 0 | X45: 0
E46: 100 | F46: 0.01 | G46: 0.01 | H46: 0.01 | I46: 0.01 | J46: 0.01 | K46: 0.01 | L46: 0.01 | M46: 0.01 | N46: 0.01 | O46: 0.01 | P46: 0.01 | R46: 199 | S46: 0 | T46: 0 | U46: 0 | V46: 0 | W46: 0 | X46: 0
R47: 200 | S47: 0 | T47: 0 | U47: 0 | V47: 0 | W47: 0 | X47: 0
E48: Binary | R48: 201 | S48: 0 | T48: 0 | U48: 0 | V48: 0 | W48: 0 | X48: 0
F49: 0 | G49: =F49+10 -> 10 | H49: =G49+10 -> 20 | I49: 30 | J49: 40 | K49: 50 | L49: 60 | M49: 70 | N49: 80 | O49: 90 | P49: 100 | R49: 202 | S49: 0 | T49: 0 | U49: 0 | V49: 0 | W49: 0 | X49: 0
E50: 0 | F50: =IF(F22>F36,1,0) -> 0 | G50: =IF(G22>G36,1,0) -> 0 | H50: 0 | I50: 0 | J50: 0 | K50: 0 | L50: 0 | M50: 0 | N50: 0 | O50: 0 | P50: 0 | R50: 203 | S50: 0 | T50: 0 | U50: 0 | V50: 0 | W50: 0 | X50: 0
E51: =E50+10 -> 10 | F51: =IF(F23>F37,1,0) -> 0 | G51: 0 | H51: 0 | I51: 0 | J51: 0 | K51: 0 | L51: 0 | M51: 0 | N51: 0 | O51: 0 | P51: 0 | R51: 204 | S51: 0 | T51: 0 | U51: 0 | V51: 0 | W51: 0 | X51: 0
E52: =E51+10 -> 20 | F52: =IF(F24>F38,1,0) -> 0 | G52: 0 | H52: 0 | I52: 0 | J52: 0 | K52: 0 | L52: 0 | M52: 0 | N52: 0 | O52: 0 | P52: 0 | R52: 205 | S52: 0 | T52: 0 | U52: 0 | V52: 0 | W52: 0 | X52: 0
E53: 30 | F53: =IF(F25>F39,1,0) -> 0 | G53: 0 | H53: 0 | I53: 0 | J53: 0 | K53: 0 | L53: 0 | M53: 0 | N53: 0 | O53: 0 | P53: 0 | R53: 206 | S53: 0 | T53: 0 | U53: 0 | V53: 0 | W53: 0 | X53: 0
E54: 40 | F54: =IF(F26>F40,1,0) -> 0 | G54: 0 | H54: 0 | I54: 0 | J54: 0 | K54: 0 | L54: 0 | M54: 0 | N54: 0 | O54: 0 | P54: 0 | R54: 207 | S54: 0 | T54: 0 | U54: 0 | V54: 0 | W54: 0 | X54: 0
E55: 50 | F55: =IF(F27>F41,1,0) -> 0 | G55: 0 | H55: 0 | I55: 0 | J55: 0 | K55: 0 | L55: 0 | M55: 0 | N55: 0 | O55: 0 | P55: 0 | R55: 208 | S55: 0 | T55: 0 | U55: 0 | V55: 0 | W55: 0 | X55: 0
E56: 60 | F56: =IF(F28>F42,1,0) -> 0 | G56: 0 | H56: 0 | I56: 0 | J56: 0 | K56: 0 | L56: 0 | M56: 0 | N56: 0 | O56: 0 | P56: 0 | R56: 209 | S56: 0 | T56: 0 | U56: 0 | V56: 0 | W56: 0 | X56: 0
E57: 70 | F57: =IF(F29>F43,1,0) -> 0 | G57: 0 | H57: 0 | I57: 0 | J57: 0 | K57: 0 | L57: 0 | M57: 0 | N57: 0 | O57: 0 | P57: 0 | R57: 210 | S57: 0 | T57: 0 | U57: 0 | V57: 0 | W57: 0 | X57: 0
E58: 80 | F58: =IF(F30>F44,1,0) -> 0 | G58: 0 | H58: 0 | I58: 0 | J58: 0 | K58: 0 | L58: 0 | M58: 0 | N58: 0 | O58: 0 | P58: 0 | R58: 211 | S58: 0 | T58: 0 | U58: 0 | V58: 0 | W58: 0 | X58: 0
E59: 90 | F59: =IF(F31>F45,1,0) -> 0 | G59: 0 | H59: 0 | I59: 0 | J59: 0 | K59: 0 | L59: 0 | M59: 0 | N59: 0 | O59: 0 | P59: 0 | R59: 212 | S59: 0 | T59: 0 | U59: 0 | V59: 0 | W59: 0 | X59: 0
E60: 100 | F60: =IF(F32>F46,1,0) -> 0 | G60: 0 | H60: 0 | I60: 0 | J60: 0 | K60: 0 | L60: 0 | M60: 0 | N60: 0 | O60: 0 | P60: 0 | R60: 213 | S60: 0 | T60: 0 | U60: 0 | V60: 0 | W60: 0 | X60: 0
R61: 214 | S61: 0 | T61: 0 | U61: 0 | V61: 0 | W61: 0 | X61: 0
R62: 215 | S62: 0 | T62: 0 | U62: 0 | V62: 0 | W62: 0 | X62: 0
R63: 216 | S63: 0 | T63: 0 | U63: 0 | V63: 0 | W63: 0 | X63: 0
R64: 217 | S64: 0 | T64: 0 | U64: 0 | V64: 0 | W64: 0 | X64: 0
R65: 218 | S65: 0 | T65: 0 | U65: 0 | V65: 0 | W65: 0 | X65: 0
R66: 219 | S66: 0 | T66: 0 | U66: 0 | V66: 0 | W66: 0 | X66: 0
R67: 220 | S67: 0 | T67: 0 | U67: 0 | V67: 0 | W67: 0 | X67: 0
R68: 221 | S68: 0 | T68: 0 | U68: 0 | V68: 0 | W68: 0 | X68: 0
R69: 222 | S69: 0 | T69: 0 | U69: 0 | V69: 0 | W69: 0 | X69: 0
R70: 223 | S70: 0 | T70: 0 | U70: 0 | V70: 0 | W70: 0 | X70: 0
R71: 224 | S71: 0 | T71: 0 | U71: 0 | V71: 0 | W71: 0 | X71: 0
R72: 225 | S72: 0 | T72: 0 | U72: 0 | V72: 0 | W72: 0 | X72: 0
R73: 226 | S73: 0 | T73: 0 | U73: 0 | V73: 0 | W73: 0 | X73: 0
R74: 227 | S74: 0 | T74: 0 | U74: 0 | V74: 0 | W74: 0 | X74: 0
R75: 228 | S75: 0 | T75: 0 | U75: 0 | V75: 0 | W75: 0 | X75: 0
R76: 229 | S76: 0 | T76: 0 | U76: 0 | V76: 0 | W76: 0 | X76: 0
R77: 230 | S77: 0 | T77: 0 | U77: 0 | V77: 0 | W77: 0 | X77: 0
R78: 231 | S78: 0 | T78: 0 | U78: 0 | V78: 0 | W78: 0 | X78: 0
R79: 232 | S79: 0 | T79: 0 | U79: 0 | V79: 0 | W79: 0 | X79: 0
R80: 233 | S80: 0 | T80: 0 | U80: 0 | V80: 0 | W80: 0 | X80: 0
R81: 234 | S81: 0 | T81: 0 | U81: 0 | V81: 0 | W81: 0 | X81: 0
R82: 235 | S82: 0 | T82: 0 | U82: 0 | V82: 0 | W82: 0 | X82: 0
R83: 236 | S83: 0 | T83: 0 | U83: 0 | V83: 0 | W83: 0 | X83: 0
R84: 237 | S84: 0 | T84: 0 | U84: 0 | V84: 0 | W84: 0 | X84: 0
R85: 238 | S85: 0 | T85: 0 | U85: 0 | V85: 0 | W85: 0 | X85: 0
R86: 239 | S86: 0 | T86: 0 | U86: 0 | V86: 0 | W86: 0 | X86: 0
R87: 240 | S87: 0 | T87: 0 | U87: 0 | V87: 0 | W87: =T87/$T$20 -> 0 | X87: =V87/$V$20 -> 0
R88: =R87+1 -> 241 | S88: 0 | T88: =T87-S88 -> 0 | U88: 0 | V88: 0 | W88: 0 | X88: 0
R89: 242 | S89: 0 | T89: 0 | U89: 0 | V89: 0 | W89: 0 | X89: 0
R90: 243 | S90: 0 | T90: 0 | U90: 0 | V90: 0 | W90: 0 | X90: 0
R91: 244 | S91: 0 | T91: 0 | U91: 0 | V91: 0 | W91: 0 | X91: 0
R92: 245 | S92: 0 | T92: 0 | U92: 0 | V92: 0 | W92: 0 | X92: 0
R93: 246 | S93: 0 | T93: 0 | U93: 0 | V93: 0 | W93: 0 | X93: 0
R94: 247 | S94: 0 | T94: 0 | U94: 0 | V94: 0 | W94: 0 | X94: 0
R95: 248 | S95: 0 | T95: 0 | U95: 0 | V95: 0 | W95: 0 | X95: 0
R96: 249 | S96: 0 | T96: 0 | U96: 0 | V96: 0 | W96: 0 | X96: 0
R97: 250 | S97: 0 | T97: 0 | U97: 0 | V97: 0 | W97: 0 | X97: 0
R98: 251 | S98: 0 | T98: 0 | U98: 0 | V98: 0 | W98: 0 | X98: 0
R99: 252 | S99: 0 | T99: 0 | U99: 0 | V99: 0 | W99: 0 | X99: 0
R100: 253 | S100: 0 | T100: 0 | U100: 0 | V100: 0 | W100: 0 | X100: 0
R101: 254 | S101: 0 | T101: 0 | U101: 0 | V101: 0 | W101: 0 | X101: 0
R102: 255 | S102: 0 | T102: 0 | U102: 0 | V102: 0 | W102: 0 | X102: 0
R103: 256 | S103: 0 | T103: 0 | U103: 0 | V103: 0 | W103: 0 | X103: 0
R104: 257 | S104: 0 | T104: 0 | U104: 0 | V104: 0 | W104: 0 | X104: 0
R105: 258 | S105: 0 | T105: 0 | U105: 0 | V105: 0 | W105: 0 | X105: 0
R106: 259 | S106: 0 | T106: 0 | U106: 0 | V106: 0 | W106: 0 | X106: 0
R107: 260 | S107: 0 | T107: 0 | U107: 0 | V107: 0 | W107: 0 | X107: 0
R108: 261 | S108: 0 | T108: 0 | U108: 0 | V108: 0 | W108: 0 | X108: 0
R109: 262 | S109: 0 | T109: 0 | U109: 0 | V109: 0 | W109: 0 | X109: 0
R110: 263 | S110: 0 | T110: 0 | U110: 0 | V110: 0 | W110: 0 | X110: 0
R111: 264 | S111: 0 | T111: 0 | U111: 0 | V111: 0 | W111: 0 | X111: 0
R112: 265 | S112: 0 | T112: 0 | U112: 0 | V112: 0 | W112: 0 | X112: 0
R113: 266 | S113: 0 | T113: 0 | U113: 0 | V113: 0 | W113: 0 | X113: 0
R114: 267 | S114: 0 | T114: 0 | U114: 0 | V114: 0 | W114: 0 | X114: 0
R115: 268 | S115: 0 | T115: 0 | U115: 0 | V115: 0 | W115: 0 | X115: 0
R116: 269 | S116: 0 | T116: 0 | U116: 0 | V116: 0 | W116: 0 | X116: 0
R117: 270 | S117: 0 | T117: 0 | U117: 0 | V117: 0 | W117: 0 | X117: 0
R118: 271 | S118: 0 | T118: 0 | U118: 0 | V118: 0 | W118: 0 | X118: 0
R119: 272 | S119: 0 | T119: 0 | U119: 0 | V119: 0 | W119: 0 | X119: 0
R120: 273 | S120: 0 | T120: 0 | U120: 0 | V120: 0 | W120: 0 | X120: 0
R121: 274 | S121: 0 | T121: 0 | U121: 0 | V121: 0 | W121: 0 | X121: 0
R122: 275 | S122: 0 | T122: 0 | U122: 0 | V122: 0 | W122: 0 | X122: 0
R123: 276 | S123: 0 | T123: 0 | U123: 0 | V123: 0 | W123: 0 | X123: 0
R124: 277 | S124: 0 | T124: 0 | U124: 0 | V124: 0 | W124: 0 | X124: 0
R125: 278 | S125: 0 | T125: 0 | U125: 0 | V125: 0 | W125: 0 | X125: 0
R126: 279 | S126: 0 | T126: 0 | U126: 0 | V126: 0 | W126: 0 | X126: 0
R127: 280 | S127: 0 | T127: 0 | U127: 0 | V127: 0 | W127: 0 | X127: 0
R128: 281 | S128: 0 | T128: 0 | U128: 0 | V128: 0 | W128: 0 | X128: 0
R129: 282 | S129: 0 | T129: 0 | U129: 0 | V129: 0 | W129: 0 | X129: 0
R130: 283 | S130: 0 | T130: 0 | U130: 0 | V130: 0 | W130: 0 | X130: 0
R131: 284 | S131: 0 | T131: 0 | U131: 0 | V131: 0 | W131: 0 | X131: 0
R132: 285 | S132: 0 | T132: 0 | U132: 0 | V132: 0 | W132: 0 | X132: 0
R133: 286 | S133: 0 | T133: 0 | U133: 0 | V133: 0 | W133: 0 | X133: 0
R134: 287 | S134: 0 | T134: 0 | U134: 0 | V134: 0 | W134: 0 | X134: 0
R135: 288 | S135: 0 | T135: 0 | U135: 0 | V135: 0 | W135: 0 | X135: 0
R136: 289 | S136: 0 | T136: 0 | U136: 0 | V136: 0 | W136: 0 | X136: 0
R137: 290 | S137: 0 | T137: 0 | U137: 0 | V137: 0 | W137: 0 | X137: 0
R138: 291 | S138: 0 | T138: 0 | U138: 0 | V138: 0 | W138: 0 | X138: 0
R139: 292 | S139: 0 | T139: 0 | U139: 0 | V139: 0 | W139: 0 | X139: 0
R140: 293 | S140: 0 | T140: 0 | U140: 0 | V140: 0 | W140: 0 | X140: 0
R141: 294 | S141: 0 | T141: 0 | U141: 0 | V141: 0 | W141: 0 | X141: 0
R142: 295 | S142: 0 | T142: 0 | U142: 0 | V142: 0 | W142: 0 | X142: 0
R143: 296 | S143: 0 | T143: 0 | U143: 0 | V143: 0 | W143: 0 | X143: 0
R144: 297 | S144: 0 | T144: 0 | U144: 0 | V144: 0 | W144: 0 | X144: 0
R145: 298 | S145: 0 | T145: 0 | U145: 0 | V145: 0 | W145: 0 | X145: 0
R146: 299 | S146: 0 | T146: 0 | U146: 0 | V146: 0 | W146: 0 | X146: 0
R147: 300 | S147: 0 | T147: 0 | U147: 0 | V147: 0 | W147: 0 | X147: 0
R148: 301 | S148: 0 | T148: 0 | U148: 0 | V148: 0 | W148: 0 | X148: 0
R149: 302 | S149: 0 | T149: 0 | U149: 0 | V149: 0 | W149: 0 | X149: 0
R150: 303 | S150: 0 | T150: 0 | U150: 0 | V150: 0 | W150: 0 | X150: 0
R151: 304 | S151: 0 | T151: 0 | U151: 0 | V151: 0 | W151: =T151/$T$20 -> 0 | X151: =V151/$V$20 -> 0
R152: =R151+1 -> 305 | S152: 0 | T152: =T151-S152 -> 0 | U152: 0 | V152: 0 | W152: 0 | X152: 0
R153: 306 | S153: 0 | T153: 0 | U153: 0 | V153: 0 | W153: 0 | X153: 0
R154: 307 | S154: 0 | T154: 0 | U154: 0 | V154: 0 | W154: 0 | X154: 0
R155: 308 | S155: 0 | T155: 0 | U155: 0 | V155: 0 | W155: 0 | X155: 0
R156: 309 | S156: 0 | T156: 0 | U156: 0 | V156: 0 | W156: 0 | X156: 0
R157: 310 | S157: 0 | T157: 0 | U157: 0 | V157: 0 | W157: 0 | X157: 0
R158: 311 | S158: 0 | T158: 0 | U158: 0 | V158: 0 | W158: 0 | X158: 0
R159: 312 | S159: 0 | T159: 0 | U159: 0 | V159: 0 | W159: 0 | X159: 0
R160: 313 | S160: 0 | T160: 0 | U160: 0 | V160: 0 | W160: 0 | X160: 0
R161: 314 | S161: 0 | T161: 0 | U161: 0 | V161: 0 | W161: 0 | X161: 0
R162: 315 | S162: 0 | T162: 0 | U162: 0 | V162: 0 | W162: 0 | X162: 0
R163: 316 | S163: 0 | T163: 0 | U163: 0 | V163: 0 | W163: 0 | X163: 0
R164: 317 | S164: 0 | T164: 0 | U164: 0 | V164: 0 | W164: 0 | X164: 0
R165: 318 | S165: 0 | T165: 0 | U165: 0 | V165: 0 | W165: 0 | X165: 0
R166: 319 | S166: 0 | T166: 0 | U166: 0 | V166: 0 | W166: 0 | X166: 0
R167: 320 | S167: 0 | T167: 0 | U167: 0 | V167: 0 | W167: 0 | X167: 0
R168: 321 | S168: 0 | T168: 0 | U168: 0 | V168: 0 | W168: 0 | X168: 0
R169: 322 | S169: 0 | T169: 0 | U169: 0 | V169: 0 | W169: 0 | X169: 0
R170: 323 | S170: 0 | T170: 0 | U170: 0 | V170: 0 | W170: 0 | X170: 0
R171: 324 | S171: 0 | T171: 0 | U171: 0 | V171: 0 | W171: 0 | X171: 0
R172: 325 | S172: 0 | T172: 0 | U172: 0 | V172: 0 | W172: 0 | X172: 0
R173: 326 | S173: 0 | T173: 0 | U173: 0 | V173: 0 | W173: 0 | X173: 0
R174: 327 | S174: 0 | T174: 0 | U174: 0 | V174: 0 | W174: 0 | X174: 0
R175: 328 | S175: 0 | T175: 0 | U175: 0 | V175: 0 | W175: 0 | X175: 0
R176: 329 | S176: 0 | T176: 0 | U176: 0 | V176: 0 | W176: 0 | X176: 0
R177: 330 | S177: 0 | T177: 0 | U177: 0 | V177: 0 | W177: 0 | X177: 0
R178: 331 | S178: 0 | T178: 0 | U178: 0 | V178: 0 | W178: 0 | X178: 0
R179: 332 | S179: 0 | T179: 0 | U179: 0 | V179: 0 | W179: 0 | X179: 0
R180: 333 | S180: 0 | T180: 0 | U180: 0 | V180: 0 | W180: 0 | X180: 0
R181: 334 | S181: 0 | T181: 0 | U181: 0 | V181: 0 | W181: 0 | X181: 0
R182: 335 | S182: 0 | T182: 0 | U182: 0 | V182: 0 | W182: 0 | X182: 0
R183: 336 | S183: 0 | T183: 0 | U183: 0 | V183: 0 | W183: 0 | X183: 0
R184: 337 | S184: 0 | T184: 0 | U184: 0 | V184: 0 | W184: 0 | X184: 0
R185: 338 | S185: 0 | T185: 0 | U185: 0 | V185: 0 | W185: 0 | X185: 0
R186: 339 | S186: 0 | T186: 0 | U186: 0 | V186: 0 | W186: 0 | X186: 0
R187: 340 | S187: 0 | T187: 0 | U187: 0 | V187: 0 | W187: 0 | X187: 0
R188: 341 | S188: 0 | T188: 0 | U188: 0 | V188: 0 | W188: 0 | X188: 0
R189: 342 | S189: 0 | T189: 0 | U189: 0 | V189: 0 | W189: 0 | X189: 0
R190: 343 | S190: 0 | T190: 0 | U190: 0 | V190: 0 | W190: 0 | X190: 0
R191: 344 | S191: 0 | T191: 0 | U191: 0 | V191: 0 | W191: 0 | X191: 0
R192: 345 | S192: 0 | T192: 0 | U192: 0 | V192: 0 | W192: 0 | X192: 0
R193: 346 | S193: 0 | T193: 0 | U193: 0 | V193: 0 | W193: 0 | X193: 0
R194: 347 | S194: 0 | T194: 0 | U194: 0 | V194: 0 | W194: 0 | X194: 0
R195: 348 | S195: 0 | T195: 0 | U195: 0 | V195: 0 | W195: 0 | X195: 0
R196: 349 | S196: 0 | T196: 0 | U196: 0 | V196: 0 | W196: 0 | X196: 0
S197: 0 | T197: 0 | U197: 0 | V197: 0 | W197: 0 | X197: 0
